Workbook

Sheet Change Log
C1: EDPR16 JEN ACS Metering - Opex Forecast Model
C2: Change Log
B6: Copyright Jemena Limited. All rights reserved. Jemena is not liable for any loss caused by reliance on this document.
B8: Model change log
C10: Starting model name ----> | D10: AER - Preliminary decision Jemena - Opex model - October 2015
C12: Model changes to above model
C14: Model sheet | D14: Reference | E14: Cell reference | F14: Type | G14: Legend | H14: Comments
C16: Input | Inflation | D16: Change 1 | E16: E43 | F16: Assumption | H16: Updated inflation assumption to reflect actual data from ABS
D17: Change 2 | E17: E44 | F17: Assumption | H17: Update estimate from RBA statement on monetary policy (Nov 15) - page 67 (under CPI inflation)
D18: Change 3 | E18: F6:F44 | F18: Labelling | H18: Include a column to outline the type of information for inflation (e.g. actual or forecast)
C21: Model sheet | D21: Reference | E21: Cell reference | F21: Type | G21: Legend | H21: Comments
C23: Input | Reported opex | D23: Change 4 | E23: M32 | F23: Assumption | H23: Updated the starting base year to $21.81m, to fix the AER's error in the preliminary decision
D24: Change 5 | E24: M33:M34 | F24: Assumption | H24: Updated the one-off adjustments to the base year
D25: Change 6 | E25: N53 | F25: Assumption | H25: Updated the inputs for service reclassification to include metering services opex
D26: Change 7 | E26: Rows 62:114 | F26: Structure | H26: Include workings for service reclassification for metering costs re-classified to distribution services
C29: Model sheet | D29: Reference | E29: Cell reference | F29: Type | G29: Legend | H29: Comments
C31: Input | Rate of change | D31: Change 10 | E31: P38:T38 | F31: Assumption | H31: Updated the WPI real increase over 2016-20, consistent with the AER's preliminary decision for distribution services
D32: Change 11 | E32: P49:T56 | F32: Assumption | H32: Included the escalation weights (labour vs. non-labour split) for metering services
D33: Change 12 | E33: O64:T64 | F33: Assumption | H33: Updated the customer number forecasts based on ACIL Allen report (2015)
C36: Model sheet | D36: Reference | E36: Cell reference | F36: Type | G36: Legend | H36: Comments
C38: Input | Step changes | D38: Change 13 | E38: O12:S12 | F38: Assumption | H38: Added a step change for the AEMC's Power of Choice program
E39: Rows 31:32 | F39: Labelling | H39: Amended label of next section to 'specifc forecasts' rather than 'debt raising costs'
E40: O29:S29 | F40: Assumption | H40: Updated debt raising cost inputs based on updates to PTRM
C43: Changes since 6 January 2016 Submission
C45: Model sheet | D45: Reference | E45: Cell reference | F45: Type | G45: Legend | H45: Comments
C47: Input | Reported opex | D47: Change 1 | E47: A116:T207 | F47: Structure | H47: JEN added drivers for splits between ACS and SCS by opex category
B49: End

Sheet Model Diagram
C1: EDPR16 JEN ACS Metering - Opex Forecast Model
C2: Index
B6: Copyright Jemena Limited. All rights reserved. Jemena is not liable for any loss caused by reliance on this document.
B8: Where does this model fit into our submission model suite?
B52: End

Sheet Index
B1: JEN opex model - Metering services
B2: Index
B4: Model index
C6: Sheet Name | D6: Sheet Description
C7: Input | General | D7: Inputs NSP name, regulatory years for the prior and forecast regulatory control period etc.
C8: Input | Inflation | D8: Inputs inflation data.
C9: Input | Reported opex | D9: Inputs the reported operating expenditure (opex) from the prior regulatory control period.
C10: Input | Rate of change | D10: Inputs the cost escalation weights, cost escalation forecast, and inflation actuals and forecast
C11: Input | Step changes | D11: Inputs the operating expenditure (opex) data, including historical opex by category, one-off costs, step changes, demand forecasts, carbon costs, self insurance, network growth, and partial factor productivity
C12: Calc | Opex Forecast | D12: Calculates the opex forecast from RY2014 to RY2020
C13: Output | Models | D13: Outputs the opex forecast needed as a post tax revenue model input (which excludes debt raising costs).
C14: Lookup | Tables | D14: Includes the lookup tables used within this opex model.
C15: Check | List | D15: Shows checks on the calculations within the model
B17: End

Sheet Input|General
B1: =Index!$B$1 -> JEN opex model - Metering services | J1: Back to Index | L1: Key: | M1: Input | N1: External Link | O1: Internal Link | R1: Worksheet check: | S1: =IF(COUNTA($S$5:$S$13)=COUNTIF($S5:$S14,"OK"),"OK","Check") -> OK | U1: Overall Check: | V1: ='Check|List'!$S$1 -> Ok
B2: =Index!$C$7 -> Input | General
B4: Input | General inputs
C6: Inputs | D6: Source | G6: Value
C7: NSP name | D7: NSP | G7: Jemena | S7: =IF(COUNTBLANK($G7),"Check","Ok") -> Ok
C8: Prior regulatory control period, first year | D8: NSP | G8: 2011 | S8: =IF(COUNTBLANK($G8),"Check","Ok") -> Ok
C9: Forecast base year | D9: NSP | G9: 2014 | S9: Ok
C10: Prior regulatory control period, last year | D10: NSP | G10: 2015 | S10: Ok
C11: Forecast regulatory control period, first year | D11: NSP | G11: 2016 | S11: Ok
C12: Forecast regulatory control period, last year | D12: NSP | G12: 2020 | S12: Ok
B14: End

Sheet Input|Inflation
B1: =Index!$B$1 -> JEN opex model - Metering services | J1: Back to Index | L1: Key: | M1: Input | N1: External Link | O1: Internal Link | R1: Worksheet check: | S1: =IF(COUNTA($S$5:$S$45)=COUNTIF($S5:$S46,"OK"),"OK","Check") -> OK | U1: Overall Check: | V1: ='Check|List'!$S$1 -> Ok
B2: =Index!$C$8 -> Input | Inflation
B4: Input | General inputs
D6: Index value, old base | E6: Index value, new base | F6: Infomration type
C7: Source | D7: ABS | E7: ABS | F7: ABS
C8: Unit | D8: index | E8: index | F8: Actual/Fcast
C9: 2007-03-31 | D9: 155.6 | F9: ='[12]Lookup|Tables'!$G$19 -> Actual | S9: =IF(COUNTBLANK($D9),"Check","Ok") -> Ok
C10: 2007-06-30 | D10: 157.5 | F10: ='[12]Lookup|Tables'!$G$19 -> Actual | S10: Ok
C11: 2007-09-30 | D11: 158.6 | F11: ='[12]Lookup|Tables'!$G$19 -> Actual | S11: Ok
C12: 2007-12-31 | D12: 160.1 | F12: ='[12]Lookup|Tables'!$G$19 -> Actual | S12: Ok
C13: 2008-03-31 | D13: 162.2 | F13: ='[12]Lookup|Tables'!$G$19 -> Actual | S13: Ok
C14: 2008-06-30 | D14: 164.6 | F14: ='[12]Lookup|Tables'!$G$19 -> Actual | S14: Ok
C15: 2008-09-30 | D15: 166.5 | F15: ='[12]Lookup|Tables'!$G$19 -> Actual | S15: Ok
C16: 2008-12-31 | D16: 166 | F16: ='[12]Lookup|Tables'!$G$19 -> Actual | S16: Ok
C17: 2009-03-31 | D17: 166.2 | F17: ='[12]Lookup|Tables'!$G$19 -> Actual | S17: Ok
C18: 2009-06-30 | D18: 167 | F18: ='[12]Lookup|Tables'!$G$19 -> Actual | S18: Ok
C19: 2009-09-30 | D19: 168.6 | F19: ='[12]Lookup|Tables'!$G$19 -> Actual | S19: Ok
C20: 2009-12-31 | D20: 169.5 | F20: ='[12]Lookup|Tables'!$G$19 -> Actual | S20: Ok
C21: 2010-03-31 | D21: 171 | E21: 95.2 | F21: ='[12]Lookup|Tables'!$G$19 -> Actual | S21: =IF(COUNTBLANK($D21:$E21),"Check","Ok") -> Ok
C22: 2010-06-30 | D22: 172.1 | E22: 95.8 | F22: ='[12]Lookup|Tables'!$G$19 -> Actual | S22: Ok
C23: 2010-09-30 | D23: 173.3 | E23: 96.5 | F23: ='[12]Lookup|Tables'!$G$19 -> Actual | S23: Ok
C24: 2010-12-31 | D24: 174 | E24: 96.9 | F24: ='[12]Lookup|Tables'!$G$19 -> Actual | S24: Ok
C25: 2011-03-31 | D25: 176.7 | E25: 98.3 | F25: ='[12]Lookup|Tables'!$G$19 -> Actual | S25: Ok
C26: 2011-06-30 | D26: 178.3 | E26: 99.2 | F26: ='[12]Lookup|Tables'!$G$19 -> Actual | S26: Ok
C27: 2011-09-30 | D27: 179.4 | E27: 99.8 | F27: ='[12]Lookup|Tables'!$G$19 -> Actual | S27: Ok
C28: 2011-12-31 | D28: 179.4 | E28: 99.8 | F28: ='[12]Lookup|Tables'!$G$19 -> Actual | S28: Ok
C29: 2012-03-31 | D29: 179.5 | E29: 99.9 | F29: ='[12]Lookup|Tables'!$G$19 -> Actual | S29: =IF(COUNTBLANK($E29),"Check","Ok") -> Ok
C30: 2012-06-30 | E30: 100.4 | F30: ='[12]Lookup|Tables'!$G$19 -> Actual | S30: =IF(COUNTBLANK($E30),"Check","Ok") -> Ok
C31: 2012-09-30 | E31: 101.8 | F31: ='[12]Lookup|Tables'!$G$19 -> Actual | S31: =IF(COUNTBLANK($E31),"Check","Ok") -> Ok
C32: 2012-12-31 | E32: 102 | F32: ='[12]Lookup|Tables'!$G$19 -> Actual | S32: =IF(COUNTBLANK($E32),"Check","Ok") -> Ok
C33: 2013-03-31 | E33: 102.4 | F33: ='[12]Lookup|Tables'!$G$19 -> Actual | S33: =IF(COUNTBLANK($E33),"Check","Ok") -> Ok
C34: 2013-06-30 | E34: 102.8 | F34: ='[12]Lookup|Tables'!$G$19 -> Actual | S34: Ok
C35: 2013-09-30 | E35: 104 | F35: ='[12]Lookup|Tables'!$G$19 -> Actual | S35: Ok
C36: 2013-12-31 | E36: 104.8 | F36: ='[12]Lookup|Tables'!$G$19 -> Actual | S36: Ok
C37: 2014-03-31 | E37: 105.4 | F37: ='[12]Lookup|Tables'!$G$19 -> Actual | S37: Ok
C38: 2014-06-30 | E38: 105.9 | F38: ='[12]Lookup|Tables'!$G$19 -> Actual | S38: Ok
C39: 2014-09-30 | E39: 106.4 | F39: ='[12]Lookup|Tables'!$G$19 -> Actual | S39: Ok
C40: 2014-12-31 | E40: 106.6 | F40: ='[12]Lookup|Tables'!$G$19 -> Actual | S40: Ok
C41: 2015-03-31 | E41: 106.8 | F41: ='[12]Lookup|Tables'!$G$19 -> Actual | S41: Ok
C42: 2015-06-30 | E42: 107.5 | F42: ='[12]Lookup|Tables'!$G$19 -> Actual | S42: Ok
C43: 2015-09-30 | E43: 108 | F43: ='[12]Lookup|Tables'!$G$19 -> Actual | S43: Ok
C44: 2015-12-31 | E44: =1.0175*E40 -> 108.4655 | F44: ='[12]Lookup|Tables'!$G$20 -> Estimate | G44: Estimate from RBA statement on monetary policy (Nov 15) - page 67 (under CPI inflation) | S44: Ok
B46: End

Sheet Input|Reported opex
C1: =Index!$B$1 -> JEN opex model - Metering services | J1: Back to Index | L1: Key: | M1: Input | N1: External Link | O1: Internal Link | R1: Worksheet check: | S1: =IF(COUNTA($W$32:$W$325)=COUNTIF($W$32:$W$325,"OK"),"OK","Check") -> OK | U1: Overall Check: | V1: ='Check|List'!$S$1 -> Ok
C2: =Index!$C$9 -> Input | Reported opex
D4: Source | E4: Unit | F4: Basis | J4: ='Input|General'!$G$8 -> 2011 | K4: =IF(OFFSET('Lookup|Tables'!$G$26:$G$43,MATCH('Input|General'!$G$8,'Lookup|Tables'!$G$26:$G$42,0),0,1,1)<='Input|General'!$G$12,OFFSET('Lookup|Tables'!$G$26:$G$43,MATCH('Input|General'!$G$8,'Lookup|Tables'!$G$26:$G$42,0),0,1,1),"") -> 2012 | L4: =IF(OFFSET('Lookup|Tables'!$G$28:$G$43,MATCH('Input|General'!$G$8,'Lookup|Tables'!$G$28:$G$42,0)+1,0,1,1)<='Input|General'!$G$12,OFFSET('Lookup|Tables'!$G$28:$G$43,MATCH('Input|General'!$G$8,'Lookup|Tables'!$G$28:$G$42,0)+1,0,1,1),"") -> 2013 | M4: =IF(OFFSET('Lookup|Tables'!$G$28:$G$43,MATCH('Input|General'!$G$8,'Lookup|Tables'!$G$28:$G$42,0)+2,0,1,1)<='Input|General'!$G$12,OFFSET('Lookup|Tables'!$G$28:$G$43,MATCH('Input|General'!$G$8,'Lookup|Tables'!$G$28:$G$42,0)+2,0,1,1),"") -> 2014 | N4: =IF(OFFSET('Lookup|Tables'!$G$28:$G$43,MATCH('Input|General'!$G$8,'Lookup|Tables'!$G$28:$G$42,0)+3,0,1,1)<='Input|General'!$G$12,OFFSET('Lookup|Tables'!$G$28:$G$43,MATCH('Input|General'!$G$8,'Lookup|Tables'!$G$28:$G$42,0)+3,0,1,1),"") -> 2015 | O4: =IF(OFFSET('Lookup|Tables'!$G$28:$G$43,MATCH('Input|General'!$G$8,'Lookup|Tables'!$G$28:$G$42,0)+4,0,1,1)<='Input|General'!$G$12,OFFSET('Lookup|Tables'!$G$28:$G$43,MATCH('Input|General'!$G$8,'Lookup|Tables'!$G$28:$G$42,0)+4,0,1,1),"") -> 2016 | P4: =IF(OFFSET('Lookup|Tables'!$G$28:$G$43,MATCH('Input|General'!$G$8,'Lookup|Tables'!$G$28:$G$42,0)+5,0,1,1)<='Input|General'!$G$12,OFFSET('Lookup|Tables'!$G$28:$G$43,MATCH('Input|General'!$G$8,'Lookup|Tables'!$G$28:$G$42,0)+5,0,1,1),"") -> 2017 | Q4: =IF(OFFSET('Lookup|Tables'!$G$28:$G$43,MATCH('Input|General'!$G$8,'Lookup|Tables'!$G$28:$G$42,0)+6,0,1,1)<='Input|General'!$G$12,OFFSET('Lookup|Tables'!$G$28:$G$43,MATCH('Input|General'!$G$8,'Lookup|Tables'!$G$28:$G$42,0)+6,0,1,1),"") -> 2018 | R4: =IF(OFFSET('Lookup|Tables'!$G$28:$G$43,MATCH('Input|General'!$G$8,'Lookup|Tables'!$G$28:$G$42,0)+7,0,1,1)<='Input|General'!$G$12,OFFSET('Lookup|Tables'!$G$28:$G$43,MATCH('Input|General'!$G$8,'Lookup|Tables'!$G$28:$G$42,0)+7,0,1,1),"") -> 2019 | S4: =IF(OFFSET('Lookup|Tables'!$G$28:$G$43,MATCH('Input|General'!$G$8,'Lookup|Tables'!$G$28:$G$42,0)+8,0,1,1)<='Input|General'!$G$12,OFFSET('Lookup|Tables'!$G$28:$G$43,MATCH('Input|General'!$G$8,'Lookup|Tables'!$G$28:$G$42,0)+8,0,1,1),"") -> 2020
B8: Input | Opex allowances
C10: Cost category | D10: Source | E10: Unit | F10: Basis | J10: =IF(RIGHT(J$4,2)<=RIGHT('Input|General'!$G$10,2),'Input|Reported opex'!J$4,"") -> 2011 | K10: =IF(RIGHT(K$4,2)<=RIGHT('Input|General'!$G$10,2),'Input|Reported opex'!K$4,"") -> 2012 | L10: =IF(RIGHT(L$4,2)<=RIGHT('Input|General'!$G$10,2),'Input|Reported opex'!L$4,"") -> 2013 | M10: =IF(RIGHT(M$4,2)<=RIGHT('Input|General'!$G$10,2),'Input|Reported opex'!M$4,"") -> 2014 | N10: =IF(RIGHT(N$4,2)<=RIGHT('Input|General'!$G$10,2),'Input|Reported opex'!N$4,"") -> 2015 | O10: =IF(RIGHT(O$4,2)<=RIGHT('Input|General'!$G$10,2),'Input|Reported opex'!O$4,"") ->  | P10: =IF(RIGHT(P$4,2)<=RIGHT('Input|General'!$G$10,2),'Input|Reported opex'!P$4,"") ->  | Q10: =IF(RIGHT(Q$4,2)<=RIGHT('Input|General'!$G$10,2),'Input|Reported opex'!Q$4,"") ->  | R10: =IF(RIGHT(R$4,2)<=RIGHT('Input|General'!$G$10,2),'Input|Reported opex'!R$4,"") ->  | S10: =IF(RIGHT(S$4,2)<=RIGHT('Input|General'!$G$10,2),'Input|Reported opex'!S$4,"") ->  | T10: Notes
C13: Total opex, excluding DRC and DMIA | D13: AER | E13: =$E$24 -> $millions | F13: 2010
D14: AER | E14: =$E$24 -> $millions | F14: 2010
D15: AER | E15: $millions | F15: 2010
D16: AER | E16: $millions | F16: 2010
D17: AER | E17: $millions | F17: 2010
D18: AER | E18: $millions | F18: 2010
D19: AER | E19: $millions | F19: 2010
D20: AER | E20: $millions | F20: 2010
D21: AER | E21: $millions | F21: 2010
D22: AER | E22: $millions | F22: 2010
C24: Total opex | D24: Calculated | E24: $millions | F24: 2010 | J24: =SUM(J13:J22) -> 0 | K24: 0 | L24: 0 | M24: 0 | N24: 0 | O24: 0 | P24: 0 | Q24: 0 | R24: 0 | S24: 0
B26: Input | Reported opex
J28: Actual | K28: Actual | L28: Actual | M28: Actual | N28: Estimate
C29: Cost category | D29: Source | E29: Unit | F29: Basis | J29: =IF(RIGHT(J4,2)<=RIGHT('Input|General'!$G$10,2),'Input|Reported opex'!J4,"") -> 2011 | K29: =IF(RIGHT(K4,2)<=RIGHT('Input|General'!$G$10,2),'Input|Reported opex'!K4,"") -> 2012 | L29: =IF(RIGHT(L4,2)<=RIGHT('Input|General'!$G$10,2),'Input|Reported opex'!L4,"") -> 2013 | M29: =IF(RIGHT(M4,2)<=RIGHT('Input|General'!$G$10,2),'Input|Reported opex'!M4,"") -> 2014 | N29: =IF(RIGHT(N4,2)<=RIGHT('Input|General'!$G$10,2),'Input|Reported opex'!N4,"") -> 2015 | O29: =IF(RIGHT(O4,2)<=RIGHT('Input|General'!$G$10,2),'Input|Reported opex'!O4,"") ->  | P29: =IF(RIGHT(P4,2)<=RIGHT('Input|General'!$G$10,2),'Input|Reported opex'!P4,"") ->  | Q29: =IF(RIGHT(Q4,2)<=RIGHT('Input|General'!$G$10,2),'Input|Reported opex'!Q4,"") ->  | R29: =IF(RIGHT(R4,2)<=RIGHT('Input|General'!$G$10,2),'Input|Reported opex'!R4,"") ->  | S29: =IF(RIGHT(S4,2)<=RIGHT('Input|General'!$G$10,2),'Input|Reported opex'!S4,"") ->  | T29: Notes
C32: Total opex | D32: RIN | E32: =$E$43 -> $millions | F32: =$F$43 -> nominal | J32: 16.81190899 | K32: 20.06092568 | L32: 20.13002097 | M32: 21.81073248
C33: (-) one-off - claims & complaints | D33: RIN | E33: $millions | F33: =$F$43 -> nominal | M33: -1.336210651
C34: (-) one-off - Meter data management | D34: RIN | E34: $millions | F34: nominal | M34: -0.7640607275
D35: RIN | E35: $millions | F35: nominal
D36: RIN | E36: =$E$43 -> $millions | F36: nominal
D37: RIN | E37: $millions | F37: nominal
D38: RIN | E38: $millions | F38: nominal
D39: RIN | E39: $millions | F39: nominal
D40: RIN | E40: $millions | F40: nominal
D41: RIN | E41: $millions | F41: nominal
C43: Total opex | D43: Calculated | E43: $millions | F43: nominal | J43: =SUM(J32:J41) -> 16.81190899 | K43: =SUM(K32:K41) -> 20.06092568 | L43: 20.13002097 | M43: 19.7104611 | N43: 0 | O43: 0 | P43: 0 | Q43: 0 | R43: 0 | S43: 0
B45: Input | CAM adjustment
C47: CAM adjustment | D47: Source | E47: Unit | F47: Basis | J47: =IF(RIGHT(J4,2)=RIGHT('Input|General'!$G$10,2),'Input|Reported opex'!J4,"") ->  | K47: =IF(RIGHT(K4,2)=RIGHT('Input|General'!$G$10,2),'Input|Reported opex'!K4,"") ->  | L47: =IF(RIGHT(L4,2)=RIGHT('Input|General'!$G$10,2),'Input|Reported opex'!L4,"") ->  | M47: =IF(RIGHT(M4,2)=RIGHT('Input|General'!$G$10,2),'Input|Reported opex'!M4,"") ->  | N47: =IF(RIGHT(N$4,2)=RIGHT('Input|General'!$G$10,2),N$4,"") -> 2015
C48: =C47 -> CAM adjustment | D48: External | E48: =$E$43 -> $millions | F48: 2015 | N48: 0
B50: Input | Service classification adjustment
C52: Service classification adjustment | D52: Source | E52: Unit | F52: Basis | J52: =IF(RIGHT(J9,2)=RIGHT('Input|General'!$G$10,2),'Input|Reported opex'!J9,"") ->  | K52: =IF(RIGHT(K9,2)=RIGHT('Input|General'!$G$10,2),'Input|Reported opex'!K9,"") ->  | L52: =IF(RIGHT(L9,2)=RIGHT('Input|General'!$G$10,2),'Input|Reported opex'!L9,"") ->  | M52: =IF(RIGHT(M9,2)=RIGHT('Input|General'!$G$10,2),'Input|Reported opex'!M9,"") ->  | N52: =IF(RIGHT(N$4,2)=RIGHT('Input|General'!$G$10,2),N$4,"") -> 2015
C53: =C52 -> Service classification adjustment | D53: External | E53: =$E$43 -> $millions | F53: 2015 | N53: =N114-N78 -> -8.715661334 | O53: Note. Workings outlined in section below.
B55: Input | Efficiency adjustment
C57: Efficiency adjustment | D57: Source | E57: Unit | J57: =IF(RIGHT(J14,2)=RIGHT('Input|General'!$G$10,2),'Input|Reported opex'!J14,"") ->  | K57: =IF(RIGHT(K14,2)=RIGHT('Input|General'!$G$10,2),'Input|Reported opex'!K14,"") ->  | L57: =IF(RIGHT(L14,2)=RIGHT('Input|General'!$G$10,2),'Input|Reported opex'!L14,"") ->  | M57: =IF(RIGHT(M14,2)=RIGHT('Input|General'!$G$10,2),'Input|Reported opex'!M14,"") ->  | N57: =IF(RIGHT(N$4,2)=RIGHT('Input|General'!$G$10,2),N$4,"") -> 2015
C58: Efficiency adjustment | D58: External | E58: Per cent | N58: 0
B60: Input | Service classification adjustment - workings | Q60: Base year split - quoted in Nominal 2014 dollars
C62: Opex activity - current classification | D62: Source | E62: Unit | F62: Basis | J62: =IF(RIGHT(J19,2)=RIGHT('Input|General'!$G$10,2),'Input|Reported opex'!J19,"") ->  | K62: =IF(RIGHT(K19,2)=RIGHT('Input|General'!$G$10,2),'Input|Reported opex'!K19,"") ->  | L62: =IF(RIGHT(L19,2)=RIGHT('Input|General'!$G$10,2),'Input|Reported opex'!L19,"") ->  | M62: =IF(RIGHT(M19,2)=RIGHT('Input|General'!$G$10,2),'Input|Reported opex'!M19,"") ->  | N62: =IF(RIGHT(N$4,2)=RIGHT('[12]Input|General'!$G$10,2),N$4,"") -> 2015 | Q62: Metering | R62: Distribution | S62: Fee based | T62: Total
C63: Customer support (a) to (e) | D63: JEN | E63: =$E$58 -> Per cent | F63: 2015 | N63: =Q63*'Input|Rate of change'!$N$32 -> 0.5305610163 | Q63: 0.5170147788 | R63: 1.24695363 | S63: 0 | T63: =SUM(Q63:S63) -> 1.763968409
C64: Reporting and finance (a), (b) & (c) | D64: JEN | E64: =$E$58 -> Per cent | F64: 2015 | N64: =Q64*'Input|Rate of change'!$N$32 -> 1.266718137 | Q64: 1.2343764 | R64: 0 | S64: 0 | T64: =SUM(Q64:S64) -> 1.2343764
C65: Compliance and industry representation | D65: JEN | E65: Per cent | F65: 2015 | N65: =Q65*'Input|Rate of change'!$N$32 -> 0.2112420023 | Q65: 0.20584859 | R65: 0 | S65: 0 | T65: 0.20584859
C66: Network systems IT | D66: JEN | E66: Per cent | F66: 2015 | N66: =Q66*'Input|Rate of change'!$N$32 -> 10.48632907 | Q66: 10.21859303 | R66: 0 | S66: 0 | T66: 10.21859303
C67: Network billing | D67: JEN | E67: Per cent | F67: 2015 | N67: =Q67*'Input|Rate of change'!$N$32 -> 0.3640820511 | Q67: 0.35478634 | R67: 0.69586663 | S67: 0.54856367 | T67: 1.59921664
C68: Connection point management | D68: JEN | E68: Per cent | F68: 2015 | N68: =Q68*'Input|Rate of change'!$N$32 -> 0.6280089291 | Q68: 0.61197466 | R68: -7.275957614e-18 | S68: 0.04837521 | T68: 0.66034987
C69: Technology and communications | D69: JEN | E69: Per cent | F69: 2015 | N69: =Q69*'Input|Rate of change'!$N$32 -> 0 | Q69: 0 | R69: 0 | S69: 0 | T69: 0
C70: AMI Network operations | D70: JEN | E70: Per cent | F70: 2015 | N70: =Q70*'Input|Rate of change'!$N$32 -> 1.369747822 | Q70: 1.33477554 | R70: 0 | S70: 0 | T70: 1.33477554
C71: Metering operations | D71: JEN | E71: Per cent | F71: 2015 | N71: =Q71*'Input|Rate of change'!$N$32 -> 0.3760343461 | Q71: 0.36643347 | R71: 0 | S71: 0.0097434 | T71: 0.37617687
C72: Meter data management | D72: JEN | E72: Per cent | F72: 2015 | N72: =Q72*'Input|Rate of change'!$N$32 -> 0.7844207752 | Q72: 0.7643930125 | R72: 0.1333170417 | S72: 0 | T72: 0.8977100542
C73: Metering communications, strategy & planning | D73: JEN | E73: Per cent | F73: 2015 | N73: =Q73*'Input|Rate of change'!$N$32 -> 0.7815507556 | Q73: 0.76159627 | R73: 0 | S73: 0 | T73: 0.76159627
C74: Regulated meter testing & replacement | D74: JEN | E74: Per cent | F74: 2015 | N74: =Q74*'Input|Rate of change'!$N$32 -> 0.9737325237 | Q74: 0.94887127 | R74: 0 | S74: 0 | T74: 0.94887127
C75: Regulatory compliance | D75: JEN | E75: Per cent | F75: 2015 | N75: =Q75*'Input|Rate of change'!$N$32 -> 0.4149665702 | Q75: 0.40437168 | R75: 0 | S75: 0 | T75: 0.40437168
C76: Corporate overhead (CAM) | D76: JEN | E76: Per cent | F76: 2015 | N76: =Q76*'Input|Rate of change'!$N$32 -> 2.039498415 | Q76: 1.98742612 | R76: 0 | S76: 0 | T76: 1.98742612
C78: Total reported opex - for EBSS | D78: Calculated | E78: Per cent | F78: 2015 | N78: =SUM(N63:N76) -> 20.22689241 | Q78: =SUM(Q63:Q76) -> 19.71046116 | R78: =SUM(R63:R76) -> 2.076137302 | S78: =SUM(S63:S76) -> 0.60668228 | T78: =SUM(T63:T76) -> 22.39328074
C80: Opex activity - reclassification | D80: Source | E80: Unit | F80: Basis | Q80: Metering | R80: Distribution | S80: Fee based | T80: Total
C81: =C63 -> Customer support (a) to (e) | D81: JEN | E81: =$E$58 -> Per cent | F81: 2015 | Q81: =Q124 -> 0 | R81: =R124 -> 1 | S81: 0 | T81: 1
C82: Reporting and finance (a), (b) & (c) | D82: JEN | E82: =$E$58 -> Per cent | F82: 2015 | Q82: =Q130 -> 0 | R82: =R130 -> 1 | S82: 0 | T82: 1
C83: Compliance and industry representation | D83: JEN | E83: Per cent | F83: 2015 | Q83: =Q135 -> 0 | R83: =R135 -> 1 | S83: =S135 -> 0 | T83: =T135 -> 1
C84: Network systems IT | D84: JEN | E84: Per cent | F84: 2015 | Q84: =Q144 -> 0.441 | R84: =R144 -> 0.559 | S84: =S144 -> 0 | T84: =T144 -> 1
C85: Network billing | D85: JEN | E85: Per cent | F85: 2015 | Q85: =Q148 -> 0 | R85: =R148 -> 1 | S85: =S148 -> 0 | T85: =T148 -> 1
C86: Connection point management | D86: JEN | E86: Per cent | F86: 2015 | Q86: =Q165 -> 0 | R86: =R165 -> 0 | S86: =S165 -> 1 | T86: =T165 -> 1
C87: =C69 -> Technology and communications | D87: JEN | E87: Per cent | F87: 2015 | Q87: =Q171 -> 1 | R87: =R171 -> 0 | S87: 0 | T87: 1
C88: AMI Network operations | D88: JEN | E88: Per cent | F88: 2015 | Q88: =Q178 -> 1 | R88: =R178 -> 0 | S88: 0 | T88: 1
C89: Metering operations | D89: JEN | E89: Per cent | F89: 2015 | Q89: =Q182 -> 1 | R89: =R182 -> 0 | S89: 0 | T89: 1
C90: Meter data management | D90: JEN | E90: Per cent | F90: 2015 | Q90: =Q186 -> 1 | R90: =R186 -> 0 | S90: 0 | T90: 1
C91: Metering communications, strategy & planning | D91: JEN | E91: Per cent | F91: 2015 | Q91: =Q193 -> 1 | R91: =R193 -> 0 | S91: 0 | T91: 1
C92: Regulated meter testing & replacement | D92: JEN | E92: Per cent | F92: 2015 | Q92: =Q197 -> 1 | R92: =R197 -> 0 | S92: 0 | T92: 1
C93: Regulatory compliance | D93: JEN | E93: Per cent | F93: 2015 | Q93: =Q201 -> 1 | R93: =R201 -> 0 | S93: 0 | T93: 1
C94: Corporate overhead (CAM) | D94: JEN | E94: Per cent | F94: 2015 | Q94: =Q205 -> 1 | R94: =R205 -> 0 | S94: 0 | T94: 1
C96: Total reported opex - for EBSS | D96: Calculated | E96: Per cent | F96: 2015 | Q96: 0 | R96: 0 | S96: 0 | T96: 0
C98: Opex activity - proposed reclassification | D98: Source | E98: Unit | F98: Basis | N98: =IF(RIGHT(N$4,2)=RIGHT('[12]Input|General'!$G$10,2),N$4,"") -> 2015 | Q98: Metering | R98: Distribution | S98: Fee based | T98: Total
C99: =C63 -> Customer support (a) to (e) | D99: JEN | E99: =$E$58 -> Per cent | F99: 2015 | N99: =Q99*'Input|Rate of change'!$N$32 -> 0 | Q99: =Q81*$T63 -> 0 | R99: =R81*$T63 -> 1.763968409 | S99: 0 | T99: =SUM(Q99:S99) -> 1.763968409
C100: Reporting and finance (a), (b) & (c) | D100: JEN | E100: =$E$58 -> Per cent | F100: 2015 | N100: =Q100*'Input|Rate of change'!$N$32 -> 0 | Q100: =Q82*$T64 -> 0 | R100: 1.2343764 | S100: 0 | T100: =SUM(Q100:S100) -> 1.2343764
C101: Compliance and industry representation | D101: JEN | E101: Per cent | F101: 2015 | N101: =Q101*'Input|Rate of change'!$N$32 -> 0 | Q101: =Q83*$T65 -> 0 | R101: 0.20584859 | S101: 0 | T101: 0.20584859
C102: Network systems IT | D102: JEN | E102: Per cent | F102: 2015 | N102: =Q102*'Input|Rate of change'!$N$32 -> 4.624471119 | Q102: =Q84*$T66 -> 4.506399526 | R102: 5.712193504 | S102: 0 | T102: 10.21859303
C103: Network billing | D103: JEN | E103: Per cent | F103: 2015 | N103: =Q103*'Input|Rate of change'!$N$32 -> 0 | Q103: =Q85*$T67 -> 0 | R103: 1.59921664 | S103: 0 | T103: 1.59921664
C104: Connection point management | D104: JEN | E104: Per cent | F104: 2015 | N104: =Q104*'Input|Rate of change'!$N$32 -> 0 | Q104: =Q86*$T68 -> 0 | R104: 0 | S104: 0.66034987 | T104: 0.66034987
C105: =C69 -> Technology and communications | D105: JEN | E105: Per cent | F105: 2015 | N105: =Q105*'Input|Rate of change'!$N$32 -> 0 | Q105: =Q87*$T69 -> 0 | R105: 0 | S105: 0 | T105: 0
C106: AMI Network operations | D106: JEN | E106: Per cent | F106: 2015 | N106: =Q106*'Input|Rate of change'!$N$32 -> 1.369747822 | Q106: =Q88*$T70 -> 1.33477554 | R106: 0 | S106: 0 | T106: 1.33477554
C107: Metering operations | D107: JEN | E107: Per cent | F107: 2015 | N107: =Q107*'Input|Rate of change'!$N$32 -> 0.3860330316 | Q107: =Q89*$T71 -> 0.37617687 | R107: 0 | S107: 0 | T107: 0.37617687
C108: Meter data management | D108: JEN | E108: Per cent | F108: 2015 | N108: =Q108*'Input|Rate of change'!$N$32 -> 0.9212308395 | Q108: =Q90*$T72 -> 0.8977100542 | R108: 0 | S108: 0 | T108: 0.8977100542
C109: Metering communications, strategy & planning | D109: JEN | E109: Per cent | F109: 2015 | N109: =Q109*'Input|Rate of change'!$N$32 -> 0.7815507556 | Q109: =Q91*$T73 -> 0.76159627 | R109: 0 | S109: 0 | T109: 0.76159627
C110: Regulated meter testing & replacement | D110: JEN | E110: Per cent | F110: 2015 | N110: =Q110*'Input|Rate of change'!$N$32 -> 0.9737325237 | Q110: =Q92*$T74 -> 0.94887127 | R110: 0 | S110: 0 | T110: 0.94887127
C111: Regulatory compliance | D111: JEN | E111: Per cent | F111: 2015 | N111: =Q111*'Input|Rate of change'!$N$32 -> 0.4149665702 | Q111: =Q93*$T75 -> 0.40437168 | R111: 0 | S111: 0 | T111: 0.40437168
C112: Corporate overhead (CAM) | D112: JEN | E112: Per cent | F112: 2015 | N112: =Q112*'Input|Rate of change'!$N$32 -> 2.039498415 | Q112: =Q94*$T76 -> 1.98742612 | R112: 0 | S112: 0 | T112: 1.98742612
C114: Total reported opex - for EBSS | D114: Calculated | E114: Per cent | F114: 2015 | N114: =SUM(N99:N112) -> 11.51123108 | Q114: =SUM(Q99:Q112) -> 11.21732733 | R114: =SUM(R99:R112) -> 10.51560354 | S114: =SUM(S99:S112) -> 0.66034987 | T114: =SUM(T99:T112) -> 22.39328074
B116: Input | Drivers of ACS and SCS splits
C118: =C63 -> Customer support (a) to (e) | D118: Source | E118: Unit | F118: Basis | Q118: Metering | R118: Distribution | S118: Fee based | T118: Total
C119: Claims and Complaints - % of FTE | D119: JEN | E119: Per cent | F119: n.m. | Q119: =2/5 -> 0.4 | R119: =3/5 -> 0.6 | S119: 0 | T119: =SUM(Q119:S119) -> 1
C120: Staff Management - % of Activity | D120: JEN | E120: Per cent | F120: n.m. | Q120: 0 | R120: 1 | S120: 0 | T120: 1
C121: Faults and Emergency Call Centre - % of Base Year Costs | D121: JEN | E121: Per cent | F121: n.m. | Q121: 0 | R121: 1 | S121: 0 | T121: 1
C122: Manage Customer Contract and Back Office - % of Activity | D122: JEN | E122: Per cent | F122: n.m. | Q122: 0 | R122: 1 | S122: 0 | T122: 1
C123: Service Desk - % of Service Orders | D123: JEN | E123: Per cent | F123: n.m. | Q123: =364926.466666667/1111386.98666667 -> 0.3283522941 | R123: =133943.333333333/1111386.98666667 -> 0.1205190766 | S123: =612517.186666667/1111386.98666667 -> 0.5511286294 | T123: 1
C124: Total | D124: Calculated | E124: Per cent | F124: n.m. | Q124: =IF(SUM(Q119:Q123)/SUM(T119:T123)<50%,0,1) -> 0 | R124: =IF(SUM(R119:R123)/SUM(T119:T123)<50%,0,1) -> 1 | S124: =IF(SUM(S119:S123)/SUM(T119:T123)<50%,0,1) -> 0 | T124: 1
C126: =C64 -> Reporting and finance (a), (b) & (c) | D126: Source | E126: Unit | F126: Basis | Q126: Metering | R126: Distribution | S126: Fee based | T126: Total
C127: Finance - % of FTE | D127: JEN | E127: Per cent | F127: n.m. | Q127: 0 | R127: =3/3 -> 1 | S127: 0 | T127: =SUM(Q127:S127) -> 1
C128: Performance - % of Activity | D128: JEN | E128: Per cent | F128: n.m. | Q128: 0 | R128: 1 | S128: 0 | T128: 1
C129: Contract management and procurement - % of number of contracts | D129: JEN | E129: Per cent | F129: n.m. | Q129: =7/17 -> 0.4117647059 | R129: =6/17 -> 0.3529411765 | S129: =1-SUM(Q129:R129) -> 0.2352941176 | T129: 1
C130: Total | D130: Calculated | E130: Per cent | F130: n.m. | Q130: =IF(SUM(Q127:Q129)/SUM(T127:T129)<50%,0,1) -> 0 | R130: =IF(SUM(R127:R129)/SUM(T127:T129)<50%,0,1) -> 1 | S130: =IF(SUM(S127:S129)/SUM(T127:T129)<50%,0,1) -> 0 | T130: 1
C132: Compliance and industry representation | D132: Source | E132: Unit | F132: Basis | Q132: Metering | R132: Distribution | S132: Fee based | T132: Total
C133: Metering Compliance | D133: JEN | E133: Utilisation | F133: n.m. | Q133: =6890/92561 -> 0.07443739804 | R133: 0 | S133: 0 | T133: =SUM(Q133:S133) -> 0.07443739804
C134: Network Industry Representation | D134: JEN | E134: Utilisation | F134: n.m. | Q134: 0 | R134: =1-Q133 -> 0.925562602 | S134: 0 | T134: 0.925562602
C135: Total | D135: Calculated | E135: Per cent | F135: n.m. | Q135: =IF(SUM(Q133:Q134)/SUM(T133:T134)<50%,0,1) -> 0 | R135: =IF(SUM(R133:R134)/SUM(T133:T134)<50%,0,1) -> 1 | S135: =IF(SUM(S133:S134)/SUM(T133:T134)<50%,0,1) -> 0 | T135: 1
C137: Network systems IT | D137: Source | E137: Unit | F137: Basis | P137: Weighting | Q137: Metering | R137: Distribution | S137: Fee based | T137: Total
C138: Meter Data Management System (Itron) | D138: JEN | E138: FTE | F138: n.m. | P138: 0.2142857143 | Q138: 4 | R138: 2 | S138: 0 | T138: =SUM(Q138:S138) -> 6
C139: Meter Network Management Systems (SSN) | D139: JEN | E139: FTE | F139: n.m. | P139: 0.1071428571 | Q139: 1 | R139: 2 | S139: 0 | T139: 3
C140: Enterprise Service Bus / Business to Business Market Gateway (Web Methods) | D140: JEN | E140: FTE | F140: n.m. | P140: 0.1071428571 | Q140: 1 | R140: 2 | S140: 0 | T140: =SUM(Q140:S140) -> 3
C141: Business Intelligence Data Warehouse / Reporting (Cognos) | D141: JEN | E141: FTE | F141: n.m. | P141: 0.1071428571 | Q141: 1 | R141: 2 | S141: 0 | T141: 3
C142: Connection Point Management System (SAP-ISU) | D142: JEN | E142: FTE | F142: n.m. | P142: 0.2857142857 | Q142: 3 | R142: 5 | S142: 0 | T142: 8
C143: Infrastructure Support | D143: JEN | E143: FTE | F143: n.m. | P143: 0.1785714286 | Q143: 2 | R143: 3 | S143: 0 | T143: 5
C144: Total | D144: Calculated | E144: Per cent | F144: n.m. | Q144: =ROUND(SUMPRODUCT($P$138:$P$143,Q138:Q143)/SUMPRODUCT($P$138:$P$143,$T$138:$T$143),3) -> 0.441 | R144: =ROUND(SUMPRODUCT($P$138:$P$143,R138:R143)/SUMPRODUCT($P$138:$P$143,$T$138:$T$143),3) -> 0.559 | S144: 0 | T144: 1
C146: Network billing | D146: Source | E146: Unit | F146: Basis | Q146: Metering | R146: Distribution | S146: Fee based | T146: Total
C147: Share of base year expenditure | D147: JEN | E147: Per cent | F147: n.m. | Q147: 0 | R147: =1-Q147 -> 1 | S147: 0 | T147: =SUM(Q147:S147) -> 1
C148: Total | D148: Calculated | E148: Per cent | F148: n.m. | Q148: =IF(SUM(Q147:Q147)/SUM(T147:T147)<50%,0,1) -> 0 | R148: =IF(SUM(R147:R147)/SUM(T147:T147)<50%,0,1) -> 1 | S148: =IF(SUM(S147:S147)/SUM(T147:T147)<50%,0,1) -> 0 | T148: 1
C150: Connection point management | D150: Source | E150: Unit | F150: Basis | Q150: Metering | R150: Distribution | S150: Fee based | T150: Total
C151: Abolishments - Volume of activity x time per activity | D151: JEN | E151: Number | F151: n.m. | Q151: 0 | R151: 0 | S151: 11133.2 | T151: =SUM(Q151:S151) -> 11133.2
C152: Adds/Alts - Volume of activity x time per activity | D152: JEN | E152: Number | F152: n.m. | Q152: 0 | R152: 0 | S152: 35375.6 | T152: 35375.6
C153: CATS Manual Task List - Volume of activity x time per activity | D153: JEN | E153: Number | F153: n.m. | Q153: 0 | R153: 0 | S153: 31200 | T153: =SUM(Q153:S153) -> 31200
C154: Complex Metering - Volume of activity x time per activity | D154: JEN | E154: Number | F154: n.m. | Q154: 0 | R154: 0 | S154: 26327.6 | T154: 26327.6
C155: Enquiry - Volume of activity x time per activity | D155: JEN | E155: Number | F155: n.m. | Q155: 0 | R155: 0 | S155: 12480 | T155: 12480
C156: Fixing - Volume of activity x time per activity | D156: JEN | E156: Number | F156: n.m. | Q156: 0 | R156: 0 | S156: 23400 | T156: 23400
C157: New Connections - Volume of activity x time per activity | D157: JEN | E157: Number | F157: n.m. | Q157: 0 | R157: 0 | S157: 142818 | T157: 142818
C158: Paperwork - Volume of activity x time per activity | D158: JEN | E158: Number | F158: n.m. | Q158: 0 | R158: 0 | S158: 3785.6 | T158: 3785.6
C159: Phone Calls - Volume of activity x time per activity | D159: JEN | E159: Number | F159: n.m. | Q159: 0 | R159: 0 | S159: 560898 | T159: =SUM(Q159:S159) -> 560898
C160: Solar - Volume of activity x time per activity | D160: JEN | E160: Number | F160: n.m. | Q160: 0 | R160: 0 | S160: 150715.76 | T160: 150715.76
C161: Underground/Pits - Volume of activity x time per activity | D161: JEN | E161: Number | F161: n.m. | Q161: 0 | R161: 0 | S161: 50974.56 | T161: 50974.56
C162: Unmetered - Volume of activity x time per activity | D162: JEN | E162: Number | F162: n.m. | Q162: 0 | R162: 0 | S162: 1120.08 | T162: 1120.08
C163: Workflow Work item - Volume of activity x time per activity | D163: JEN | E163: Number | F163: n.m. | Q163: 0 | R163: 0 | S163: 9360 | T163: 9360
C164: ACS Metering - Volume of activity x time per activity | D164: JEN | E164: Number | F164: n.m. | Q164: 203295.04 | R164: 0 | S164: 0 | T164: 203295.04
C165: Total | D165: Calculated | E165: Per cent | F165: n.m. | Q165: =IF(SUM(Q151:Q164)/SUM(T151:T164)<50%,0,1) -> 0 | R165: =IF(SUM(R151:R164)/SUM(T151:T164)<50%,0,1) -> 0 | S165: =IF(SUM(S151:S164)/SUM(T151:T164)<50%,0,1) -> 1 | T165: 1
C167: Technology and communications | D167: Source | E167: Unit | F167: Basis | Q167: Metering | R167: Distribution | S167: Fee based | T167: Total
C168: Meter Data - Volume of activity x time per activity | D168: JEN | E168: Utilisation | F168: n.m. | Q168: 0.625 | R168: =1-Q168 -> 0.375 | S168: 0 | T168: =SUM(Q168:S168) -> 1
C169: Event Data (Meter & Network) - Volume of activity x time per activity | D169: JEN | E169: Utilisation | F169: n.m. | Q169: =Q168 -> 0.625 | R169: =R168 -> 0.375 | S169: 0 | T169: 1
C170: Electricity Network Management - Volume of activity x time per activity | D170: JEN | E170: Utilisation | F170: n.m. | Q170: =Q169 -> 0.625 | R170: 0.375 | S170: 0 | T170: 1
C171: Total | D171: Calculated | E171: Per cent | F171: n.m. | Q171: =IF(SUM(Q168:Q170)/SUM(T168:T170)<50%,0,1) -> 1 | R171: =IF(SUM(R168:R170)/SUM(T168:T170)<50%,0,1) -> 0 | S171: =IF(SUM(S168:S170)/SUM(T168:T170)<50%,0,1) -> 0 | T171: 1
C173: AMI Network operations | D173: Source | E173: Unit | F173: Basis | Q173: Metering | R173: Distribution | S173: Fee based | T173: Total
C174: Communication Infrastructure Planning - Volume of activity x time per activity | D174: JEN | E174: Utilisation | F174: n.m. | Q174: 1 | R174: 0 | S174: 0 | T174: =SUM(Q174:S174) -> 1
C175: Investigation - Volume of activity x time per activity | D175: JEN | E175: Utilisation | F175: n.m. | Q175: 1 | R175: 0 | S175: 0 | T175: 1
C176: Meter Exchange - Volume of activity x time per activity | D176: JEN | E176: Utilisation | F176: n.m. | Q176: 1 | R176: 0 | S176: 0 | T176: 1
C177: Meter Reading - Volume of activity x time per activity | D177: JEN | E177: Utilisation | F177: n.m. | Q177: 1 | R177: 0 | S177: 0 | T177: 1
C178: Total | D178: Calculated | E178: Per cent | F178: n.m. | Q178: =IF(SUM(Q174:Q177)/SUM(T174:T177)<50%,0,1) -> 1 | R178: =IF(SUM(R174:R177)/SUM(T174:T177)<50%,0,1) -> 0 | S178: =IF(SUM(S174:S177)/SUM(T174:T177)<50%,0,1) -> 0 | T178: 1
C180: Metering operations | D180: Source | E180: Unit | F180: Basis | Q180: Metering | R180: Distribution | S180: Fee based | T180: Total
C181: Share of base year expenditure | D181: JEN | E181: Per cent | F181: n.m. | Q181: 1 | R181: =1-Q181 -> 0 | S181: 0 | T181: =SUM(Q181:S181) -> 1
C182: Total | D182: Calculated | E182: Per cent | F182: n.m. | Q182: =IF(SUM(Q181:Q181)/SUM(T181:T181)<50%,0,1) -> 1 | R182: =IF(SUM(R181:R181)/SUM(T181:T181)<50%,0,1) -> 0 | S182: =IF(SUM(S181:S181)/SUM(T181:T181)<50%,0,1) -> 0 | T182: =SUM(Q182:S182) -> 1
C184: Meter data management | D184: Source | E184: Unit | F184: Basis | Q184: Metering | R184: Distribution | S184: Fee based | T184: Total
C185: Share of base year expenditure | D185: JEN | E185: Per cent | F185: n.m. | Q185: 1 | R185: =1-Q185 -> 0 | S185: 0 | T185: =SUM(Q185:S185) -> 1
C186: Total | D186: Calculated | E186: Per cent | F186: n.m. | Q186: =IF(SUM(Q185:Q185)/SUM(T185:T185)<50%,0,1) -> 1 | R186: =IF(SUM(R185:R185)/SUM(T185:T185)<50%,0,1) -> 0 | S186: =IF(SUM(S185:S185)/SUM(T185:T185)<50%,0,1) -> 0 | T186: 1
C188: Metering communications, strategy & planning | D188: Source | E188: Unit | F188: Basis | Q188: Metering | R188: Distribution | S188: Fee based | T188: Total
C189: Regulatory Compliance | D189: JEN | E189: Activity Rating | F189: n.m. | Q189: 5 | R189: 0 | S189: 0 | T189: =SUM(Q189:S189) -> 5
C190: Meter Asset Management | D190: JEN | E190: Activity Rating | F190: n.m. | Q190: 10 | R190: 0 | S190: 0 | T190: 10
C191: Communications Asset Management | D191: JEN | E191: Activity Rating | F191: n.m. | Q191: 5 | R191: 5 | T191: 10
C192: AMI Network Benefits Realisation | D192: JEN | E192: Activity Rating | F192: n.m. | Q192: 0 | R192: 10 | S192: 0 | T192: 10
C193: Total | D193: Calculated | E193: Per cent | F193: n.m. | Q193: =IF(SUM(Q189:Q192)/SUM(T189:T192)<50%,0,1) -> 1 | R193: =IF(SUM(R189:R192)/SUM(T189:T192)<50%,0,1) -> 0 | S193: =IF(SUM(S189:S192)/SUM(T189:T192)<50%,0,1) -> 0 | T193: 1
C195: Regulated meter testing & replacement | D195: Source | E195: Unit | F195: Basis | Q195: Metering | R195: Distribution | S195: Fee based | T195: Total
C196: Share of base year expenditure | D196: JEN | E196: Per cent | F196: n.m. | Q196: 1 | R196: =1-Q196 -> 0 | S196: 0 | T196: =SUM(Q196:S196) -> 1
C197: Total | D197: Calculated | E197: Per cent | F197: n.m. | Q197: =IF(SUM(Q196:Q196)/SUM(T196:T196)<50%,0,1) -> 1 | R197: =IF(SUM(R196:R196)/SUM(T196:T196)<50%,0,1) -> 0 | S197: =IF(SUM(S196:S196)/SUM(T196:T196)<50%,0,1) -> 0 | T197: 1
C199: Regulatory compliance | D199: Source | E199: Unit | F199: Basis | Q199: Metering | R199: Distribution | S199: Fee based | T199: Total
C200: Regulatory Compliance - Volume of activity x time per activity | D200: JEN | E200: Number | F200: n.m. | Q200: 13000 | R200: 2964 | S200: 4446 | T200: =SUM(Q200:S200) -> 20410
C201: Total | D201: Calculated | E201: Per cent | F201: n.m. | Q201: =IF(SUM(Q200:Q200)/SUM(T200:T200)<50%,0,1) -> 1 | R201: =IF(SUM(R200:R200)/SUM(T200:T200)<50%,0,1) -> 0 | S201: =IF(SUM(S200:S200)/SUM(T200:T200)<50%,0,1) -> 0 | T201: 1
C203: Corporate overhead (CAM) | D203: Source | E203: Unit | F203: Basis | Q203: Metering | R203: Distribution | S203: Fee based | T203: Total
C204: Share of base year expenditure | D204: JEN | E204: Per cent | F204: n.m. | Q204: 1 | R204: =1-Q204 -> 0 | S204: 0 | T204: =SUM(Q204:S204) -> 1
C205: Total | D205: Calculated | E205: Per cent | F205: n.m. | Q205: =IF(SUM(Q204:Q204)/SUM(T204:T204)<50%,0,1) -> 1 | R205: =IF(SUM(R204:R204)/SUM(T204:T204)<50%,0,1) -> 0 | S205: =IF(SUM(S204:S204)/SUM(T204:T204)<50%,0,1) -> 0 | T205: 1
B207: End

Sheet Input|Rate of change
B1: =Index!$B$1 -> JEN opex model - Metering services | K1: Back to Index | M1: Key: | N1: Input | O1: External Link | P1: Internal Link | S1: Worksheet check: | T1: =IF(COUNTIF(W5:W96,"Check")=0,"Ok","Check") -> Ok | V1: Overall Check: | W1: ='Check|List'!$S$1 -> Ok
B2: =Index!$C$10 -> Input | Rate of change
D4: Source | E4: Unit | F4: Basis | J4: =IF(OFFSET('Lookup|Tables'!$G$26:$G$43,MATCH('Input|General'!$G$8,'Lookup|Tables'!$G$26:$G$42,0)-2,0,1,1)<='Input|General'!$G$12,OFFSET('Lookup|Tables'!$G$26:$G$43,MATCH('Input|General'!$G$8,'Lookup|Tables'!$G$26:$G$42,0)-2,0,1,1),"") -> 2010 | K4: ='Input|General'!$G$8 -> 2011 | L4: =IF(OFFSET('Lookup|Tables'!$G$26:$G$43,MATCH('Input|General'!$G$8,'Lookup|Tables'!$G$26:$G$42,0),0,1,1)<='Input|General'!$G$12,OFFSET('Lookup|Tables'!$G$26:$G$43,MATCH('Input|General'!$G$8,'Lookup|Tables'!$G$26:$G$42,0),0,1,1),"") -> 2012 | M4: =IF(OFFSET('Lookup|Tables'!$G$26:$G$43,MATCH('Input|General'!$G$8,'Lookup|Tables'!$G$26:$G$42,0)+1,0,1,1)<='Input|General'!$G$12,OFFSET('Lookup|Tables'!$G$26:$G$43,MATCH('Input|General'!$G$8,'Lookup|Tables'!$G$26:$G$42,0)+1,0,1,1),"") -> 2013 | N4: =IF(OFFSET('Lookup|Tables'!$G$26:$G$43,MATCH('Input|General'!$G$8,'Lookup|Tables'!$G$26:$G$42,0)+2,0,1,1)<='Input|General'!$G$12,OFFSET('Lookup|Tables'!$G$26:$G$43,MATCH('Input|General'!$G$8,'Lookup|Tables'!$G$26:$G$42,0)+2,0,1,1),"") -> 2014 | O4: =IF(OFFSET('Lookup|Tables'!$G$26:$G$43,MATCH('Input|General'!$G$8,'Lookup|Tables'!$G$26:$G$42,0)+3,0,1,1)<='Input|General'!$G$12,OFFSET('Lookup|Tables'!$G$26:$G$43,MATCH('Input|General'!$G$8,'Lookup|Tables'!$G$26:$G$42,0)+3,0,1,1),"") -> 2015 | P4: =IF(OFFSET('Lookup|Tables'!$G$26:$G$43,MATCH('Input|General'!$G$8,'Lookup|Tables'!$G$26:$G$42,0)+4,0,1,1)<='Input|General'!$G$12,OFFSET('Lookup|Tables'!$G$26:$G$43,MATCH('Input|General'!$G$8,'Lookup|Tables'!$G$26:$G$42,0)+4,0,1,1),"") -> 2016 | Q4: =IF(OFFSET('Lookup|Tables'!$G$26:$G$43,MATCH('Input|General'!$G$8,'Lookup|Tables'!$G$26:$G$42,0)+5,0,1,1)<='Input|General'!$G$12,OFFSET('Lookup|Tables'!$G$26:$G$43,MATCH('Input|General'!$G$8,'Lookup|Tables'!$G$26:$G$42,0)+5,0,1,1),"") -> 2017 | R4: =IF(OFFSET('Lookup|Tables'!$G$26:$G$43,MATCH('Input|General'!$G$8,'Lookup|Tables'!$G$26:$G$42,0)+6,0,1,1)<='Input|General'!$G$12,OFFSET('Lookup|Tables'!$G$26:$G$43,MATCH('Input|General'!$G$8,'Lookup|Tables'!$G$26:$G$42,0)+6,0,1,1),"") -> 2018 | S4: =IF(OFFSET('Lookup|Tables'!$G$26:$G$43,MATCH('Input|General'!$G$8,'Lookup|Tables'!$G$26:$G$42,0)+7,0,1,1)<='Input|General'!$G$12,OFFSET('Lookup|Tables'!$G$26:$G$43,MATCH('Input|General'!$G$8,'Lookup|Tables'!$G$26:$G$42,0)+7,0,1,1),"") -> 2019 | T4: =IF(OFFSET('Lookup|Tables'!$G$28:$G$43,MATCH('Input|General'!$G$8,'Lookup|Tables'!$G$28:$G$42,0)+8,0,1,1)<='Input|General'!$G$12,OFFSET('Lookup|Tables'!$G$28:$G$43,MATCH('Input|General'!$G$8,'Lookup|Tables'!$G$28:$G$42,0)+8,0,1,1),"") -> 2020
B8: Input | Inflation
C10: Inflation | J10: =J$4 -> 2010 | K10: =K$4 -> 2011 | L10: =L$4 -> 2012 | M10: 2013 | N10: 2014 | O10: 2015 | P10: 2016 | Q10: 2017 | R10: 2018 | S10: 2019 | T10: 2020
C12: Inflation | D12: calculated | E12: =percent -> Per cent | J12: ='Input|Inflation'!D24/'Input|Inflation'!D20-1 -> 0.02654867257 | K12: ='Input|Inflation'!$E28/'Input|Inflation'!$E24-1 -> 0.02992776058 | L12: ='Input|Inflation'!E32/'Input|Inflation'!E28-1 -> 0.02204408818 | M12: ='Input|Inflation'!E36/'Input|Inflation'!E32-1 -> 0.02745098039 | N12: ='Input|Inflation'!E40/'Input|Inflation'!E36-1 -> 0.01717557252 | O12: ='Input|Inflation'!E44/'Input|Inflation'!E40-1 -> 0.0175
C14: CPI indexes (real to real) | J14: =J$4 -> 2010 | K14: =K$4 -> 2011 | L14: =L4 -> 2012 | M14: =M4 -> 2013 | N14: =N4 -> 2014 | O14: =O4 -> 2015
C16: ='Lookup|Tables'!C27 -> 2009 | D16: calculated | E16: index | J16: =(1+J$12) -> 1.026548673 | K16: =J16*(1+K$12) -> 1.057270975 | L16: 1.08057755 | M16: 1.110240463 | N16: 1.129309479 | O16: =N16*(1+O$12) -> 1.149072395
C17: ='Lookup|Tables'!C28 -> 2010 | D17: calculated | E17: index | J17: 1 | K17: =J17*(1+K$12) -> 1.029927761 | L17: 1.052631579 | M17: 1.081527348 | N17: 1.100103199 | O17: =N17*(1+O$12) -> 1.119355005
C18: ='Lookup|Tables'!C29 -> 2011 | D18: calculated | E18: index | J18: =K18/(1+K$12) -> 0.9709418838 | K18: 1 | L18: =K18*(1+L$12) -> 1.022044088 | M18: =L18*(1+M$12) -> 1.0501002 | N18: 1.068136273 | O18: 1.086828657
C19: ='Lookup|Tables'!C30 -> 2012 | D19: calculated | E19: index | J19: =K19/(1+K$12) -> 0.95 | K19: =L19/(1+L$12) -> 0.9784313725 | L19: 1 | M19: =L19*(1+M$12) -> 1.02745098 | N19: 1.045098039 | O19: 1.063387255
C20: ='Lookup|Tables'!C31 -> 2013 | D20: calculated | E20: index | J20: =K20/(1+K$12) -> 0.9246183206 | K20: 0.9522900763 | L20: 0.9732824427 | M20: 1 | N20: =M20*(1+N$12) -> 1.017175573 | O20: 1.034976145
C21: ='Lookup|Tables'!C32 -> 2014 | D21: calculated | E21: index | J21: 0.9090056285 | K21: 0.9362101313 | L21: 0.95684803 | M21: 0.9831144465 | N21: 1 | O21: =N21*(1+O$12) -> 1.0175
C22: ='Lookup|Tables'!C33 -> 2015 | D22: calculated | E22: index | J22: 0.8933716251 | K22: 0.9201082372 | L22: 0.9403911843 | M22: 0.9662058443 | N22: 0.9828009828 | O22: 1
C24: CPI indexes (nominal to real) | J24: =J10 -> 2010 | K24: 2011 | L24: 2012 | M24: 2013 | N24: 2014 | O24: 2015
C26: =C16 -> 2009 | D26: calculated | E26: index | J26: =1/J16*(1+J$12)^0.5 -> 0.9869842608 | K26: 0.9598802858 | L26: 0.9355755741 | M26: 0.9129847095 | N26: 0.8930689448 | O26: 0.8778489978
C27: 2010 | D27: calculated | E27: index | J27: 1.013187383 | K27: 0.9853638332 | L27: 0.9604138637 | M27: 0.9372232416 | N27: 0.9167787398 | O27: 0.9011547234
C28: 2011 | D28: calculated | E28: index | J28: 1.043509812 | K28: 1.014853566 | L28: 0.9891568999 | M28: 0.9652722344 | N28: 0.9442158744 | O28: 0.9281242662
C29: 2012 | D29: calculated | E29: index | J29: 1.066513034 | K29: 1.037225088 | L29: 1.010961962 | M29: 0.9865507806 | N29: 0.9650302524 | O29: 0.9485839194
C30: 2013 | D30: calculated | E30: index | J30: 1.095789863 | K30: 1.065697933 | L30: 1.038713859 | M30: 1.013632567 | N30: 0.9915212789 | O30: 0.974623478
C31: 2014 | D31: calculated | E31: index | J31: 1.114610681 | K31: 1.084001905 | L31: 1.056554364 | M31: 1.031042286 | N31: 1.008551225 | O31: 0.9913631942
C32: 2015 | D32: calculated | E32: index | J32: 1.134116368 | K32: 1.102971939 | L32: 1.075044065 | M32: 1.049085526 | N32: 1.026200871 | O32: 1.00871205
B34: Input | Forecast price change
C36: Forecast price change | D36: Source | E36: Unit | K36: =IF(K$4>='Input|General'!$G$11,IF(K$4<='Input|General'!$G$12,K$4,""),"") ->  | L36: =IF(L$4>='Input|General'!$G$11,IF(L$4<='Input|General'!$G$12,L$4,""),"") ->  | M36: =IF(M$4>='Input|General'!$G$11,IF(M$4<='Input|General'!$G$12,M$4,""),"") ->  | N36: =IF(N$4>='Input|General'!$G$11,IF(N$4<='Input|General'!$G$12,N$4,""),"") ->  | O36: =IF(O$4>='Input|General'!$G$11,IF(O$4<='Input|General'!$G$12,O$4,""),"") ->  | P36: =IF(P$4>='Input|General'!$G$11,IF(P$4<='Input|General'!$G$12,P$4,""),"") -> 2016 | Q36: =IF(Q$4>='Input|General'!$G$11,IF(Q$4<='Input|General'!$G$12,Q$4,""),"") -> 2017 | R36: =IF(R$4>='Input|General'!$G$11,IF(R$4<='Input|General'!$G$12,R$4,""),"") -> 2018 | S36: =IF(S$4>='Input|General'!$G$11,IF(S$4<='Input|General'!$G$12,S$4,""),"") -> 2019 | T36: =IF(T$4>='Input|General'!$G$11,IF(T$4<='Input|General'!$G$12,T$4,""),"") -> 2020
C38: WPI | D38: external | E38: =percent -> Per cent | P38: 0.003626636602 | Q38: 0.008022635789 | R38: 0.01279632922 | S38: 0.01479639634 | T38: 0.01368165279
D39: external | E39: Per cent
D40: external | E40: Per cent
D41: external | E41: Per cent
D42: external | E42: Per cent
D43: external | E43: Per cent
D44: external | E44: Per cent
C45: CPI | D45: external | E45: Per cent | P45: 0 | Q45: 0 | R45: 0 | S45: 0 | T45: 0
C47: Weights | D47: Source | E47: Unit | K47: =IF(K$4>='Input|General'!$G$11,IF(K$4<='Input|General'!$G$12,K$4,""),"") ->  | L47: =IF(L$4>='Input|General'!$G$11,IF(L$4<='Input|General'!$G$12,L$4,""),"") ->  | M47: =IF(M$4>='Input|General'!$G$11,IF(M$4<='Input|General'!$G$12,M$4,""),"") ->  | N47: =IF(N$4>='Input|General'!$G$11,IF(N$4<='Input|General'!$G$12,N$4,""),"") ->  | O47: =IF(O$4>='Input|General'!$G$11,IF(O$4<='Input|General'!$G$12,O$4,""),"") ->  | P47: =IF(P$4>='Input|General'!$G$11,IF(P$4<='Input|General'!$G$12,P$4,""),"") -> 2016 | Q47: =IF(Q$4>='Input|General'!$G$11,IF(Q$4<='Input|General'!$G$12,Q$4,""),"") -> 2017 | R47: =IF(R$4>='Input|General'!$G$11,IF(R$4<='Input|General'!$G$12,R$4,""),"") -> 2018 | S47: =IF(S$4>='Input|General'!$G$11,IF(S$4<='Input|General'!$G$12,S$4,""),"") -> 2019 | T47: =IF(T$4>='Input|General'!$G$11,IF(T$4<='Input|General'!$G$12,T$4,""),"") -> 2020
C49: =C38 -> WPI | D49: external | E49: =percent -> Per cent | P49: 0.8314351328 | Q49: 0.8314351328 | R49: 0.8314351328 | S49: 0.8314351328 | T49: 0.8314351328
C50: =C39 -> 0 | D50: external | E50: Per cent
C51: 0 | D51: external | E51: Per cent
C52: 0 | D52: external | E52: Per cent
C53: 0 | D53: external | E53: Per cent
C54: 0 | D54: external | E54: Per cent
C55: 0 | D55: external | E55: Per cent
C56: CPI | D56: external | E56: Per cent | P56: =1-P49 -> 0.1685648672 | Q56: =1-Q49 -> 0.1685648672 | R56: 0.1685648672 | S56: 0.1685648672 | T56: 0.1685648672
C58: Check | D58: calculated | E58: Ok/Check | F58: n/a | P58: =IF(SUM(P49:P56)=1,"Ok","Check") -> Ok | Q58: =IF(SUM(Q49:Q56)=1,"Ok","Check") -> Ok | R58: Ok | S58: Ok | T58: Ok | W58: =IF(COUNTIF(K58:T58,"Check")=0,"Ok","Check") -> Ok
B60: Input | Forecast output growth
C62: Output measure | D62: Source | E62: Unit | F62: Basis | K62: =IF(K$4>='Input|General'!$G$10,IF(K$4<='Input|General'!$G$12,K$4,""),"") ->  | L62: =IF(L$4>='Input|General'!$G$10,IF(L$4<='Input|General'!$G$12,L$4,""),"") ->  | M62: =IF(M$4>='Input|General'!$G$10,IF(M$4<='Input|General'!$G$12,M$4,""),"") ->  | N62: =IF(N$4>='Input|General'!$G$10,IF(N$4<='Input|General'!$G$12,N$4,""),"") ->  | O62: =IF(O$4>='Input|General'!$G$10,IF(O$4<='Input|General'!$G$12,O$4,""),"") -> 2015 | P62: =IF(P$4>='Input|General'!$G$10,IF(P$4<='Input|General'!$G$12,P$4,""),"") -> 2016 | Q62: =IF(Q$4>='Input|General'!$G$10,IF(Q$4<='Input|General'!$G$12,Q$4,""),"") -> 2017 | R62: =IF(R$4>='Input|General'!$G$10,IF(R$4<='Input|General'!$G$12,R$4,""),"") -> 2018 | S62: =IF(S$4>='Input|General'!$G$10,IF(S$4<='Input|General'!$G$12,S$4,""),"") -> 2019 | T62: =IF(T$4>='Input|General'!$G$10,IF(T$4<='Input|General'!$G$12,T$4,""),"") -> 2020
C64: Customer numbers | D64: external | E64: number | F64: n/a | O64: 323311 | P64: 329982 | Q64: 336295 | R64: 342748 | S64: 349244 | T64: 355597
D65: external | E65: number | F65: n/a
D66: external | E66: number | F66: n/a
D67: external | E67: number | F67: n/a
D68: external | E68: number | F68: n/a
D69: external | E69: number | F69: n/a
C71: Growth rate | D71: Source | E71: Unit | F71: Basis | K71: =IF(K$4>='Input|General'!$G$11,IF(K$4<='Input|General'!$G$12,K$4,""),"") ->  | L71: =IF(L$4>='Input|General'!$G$11,IF(L$4<='Input|General'!$G$12,L$4,""),"") ->  | M71: =IF(M$4>='Input|General'!$G$11,IF(M$4<='Input|General'!$G$12,M$4,""),"") ->  | N71: =IF(N$4>='Input|General'!$G$11,IF(N$4<='Input|General'!$G$12,N$4,""),"") ->  | O71: =IF(O$4>='Input|General'!$G$11,IF(O$4<='Input|General'!$G$12,O$4,""),"") ->  | P71: =IF(P$4>='Input|General'!$G$11,IF(P$4<='Input|General'!$G$12,P$4,""),"") -> 2016 | Q71: =IF(Q$4>='Input|General'!$G$11,IF(Q$4<='Input|General'!$G$12,Q$4,""),"") -> 2017 | R71: =IF(R$4>='Input|General'!$G$11,IF(R$4<='Input|General'!$G$12,R$4,""),"") -> 2018 | S71: =IF(S$4>='Input|General'!$G$11,IF(S$4<='Input|General'!$G$12,S$4,""),"") -> 2019 | T71: =IF(T$4>='Input|General'!$G$11,IF(T$4<='Input|General'!$G$12,T$4,""),"") -> 2020 | U71: =IF(RIGHT(U$4,2)>=RIGHT('Input|General'!$G$11,2),IF(RIGHT(U$4,2)<='Input|General'!$G$12,'Input|Reported opex'!T$4,""),"") -> 
C73: =C64 -> Customer numbers | D73: calculated | E73: number | F73: n/a | K73: =IF(ISBLANK(J64),"",LN(K64)-LN(J64)) ->  | O73: =IF(ISBLANK(N64),"",LN(O64)-LN(N64)) ->  | P73: =IF(ISBLANK(O64),"",LN(P64)-LN(O64)) -> 0.02042339924 | Q73: =IF(ISBLANK(P64),"",LN(Q64)-LN(P64)) -> 0.01895064344 | R73: 0.01900673231 | S73: 0.01877533505 | T73: 0.01802724884
C74: =C65 -> 0 | D74: calculated | E74: number | F74: n/a | K74: =IF(ISBLANK(J65),"",LN(K65)-LN(J65)) ->  | O74: =IF(ISBLANK(N65),"",LN(O65)-LN(N65)) ->  | Q74: =IF(ISBLANK(P65),"",LN(Q65)-LN(P65)) -> 
C75: 0 | D75: calculated | E75: number | F75: n/a | K75: =IF(ISBLANK(J66),"",LN(K66)-LN(J66)) ->  | Q75: =IF(ISBLANK(P66),"",LN(Q66)-LN(P66)) -> 
C76: 0 | D76: calculated | E76: number | F76: n/a | P76: =IF(ISBLANK(P67),"",LN(P67)-LN(O67)) -> 
C77: 0 | D77: calculated | E77: number | F77: n/a | P77: =IF(ISBLANK(P68),"",LN(P68)-LN(O68)) -> 
C78: 0 | D78: calculated | E78: number | F78: n/a | P78: =IF(ISBLANK(P69),"",LN(P69)-LN(O69)) -> 
C80: Weights
C82: =C64 -> Customer numbers | D82: external | E82: number | F82: n/a | P82: 1
C83: =C65 -> 0 | D83: external | E83: number | F83: n/a
C84: 0 | D84: external | E84: number | F84: n/a
C85: 0 | D85: external | E85: number | F85: n/a
C86: 0 | D86: external | E86: number | F86: n/a
C87: 0 | D87: external | E87: number | F87: n/a
C89: Check | D89: calculated | E89: Ok/Check | F89: n/a | P89: =IF(SUM(P82:P87)=1,"Ok","Check") -> Ok | W89: =IF(COUNTIF(K89:T89,"Check")=0,"Ok","Check") -> Ok
B91: Input | Forecast productivity
C93: Partial factor productivity | D93: Source | E93: Unit | F93: Basis | K93: =IF(K$4>='Input|General'!$G$11,IF(K$4<='Input|General'!$G$12,K$4,""),"") ->  | L93: =IF(L$4>='Input|General'!$G$11,IF(L$4<='Input|General'!$G$12,L$4,""),"") ->  | M93: =IF(M$4>='Input|General'!$G$11,IF(M$4<='Input|General'!$G$12,M$4,""),"") ->  | N93: =IF(N$4>='Input|General'!$G$11,IF(N$4<='Input|General'!$G$12,N$4,""),"") ->  | O93: =IF(O$4>='Input|General'!$G$11,IF(O$4<='Input|General'!$G$12,O$4,""),"") ->  | P93: =IF(P$4>='Input|General'!$G$11,IF(P$4<='Input|General'!$G$12,P$4,""),"") -> 2016 | Q93: =IF(Q$4>='Input|General'!$G$11,IF(Q$4<='Input|General'!$G$12,Q$4,""),"") -> 2017 | R93: =IF(R$4>='Input|General'!$G$11,IF(R$4<='Input|General'!$G$12,R$4,""),"") -> 2018 | S93: =IF(S$4>='Input|General'!$G$11,IF(S$4<='Input|General'!$G$12,S$4,""),"") -> 2019 | T93: =IF(T$4>='Input|General'!$G$11,IF(T$4<='Input|General'!$G$12,T$4,""),"") -> 2020
C95: Partial factor productivity | D95: external | E95: =percent -> Per cent | F95: n/a | P95: 0 | Q95: 0 | R95: 0 | S95: 0 | T95: 0
B97: End

Sheet Input|Step changes
B1: =Index!$B$1 -> JEN opex model - Metering services | J1: Back to Index | L1: Key: | M1: Input | N1: External Link | O1: Internal Link | R1: Worksheet check: | S1: =IF(COUNTA($W$8:$W$224)=COUNTIF($W$8:$W$224,"OK"),"OK","Check") -> OK | U1: Overall Check: | V1: ='Check|List'!$S$1 -> Ok
B2: =Index!$C$11 -> Input | Step changes
D4: Source | E4: Unit | F4: Basis | J4: ='Input|General'!$G$8 -> 2011 | K4: =IF(OFFSET('Lookup|Tables'!$G$26:$G$43,MATCH('Input|General'!$G$8,'Lookup|Tables'!$G$26:$G$42,0),0,1,1)<='Input|General'!$G$12,OFFSET('Lookup|Tables'!$G$26:$G$43,MATCH('Input|General'!$G$8,'Lookup|Tables'!$G$26:$G$42,0),0,1,1),"") -> 2012 | L4: =IF(OFFSET('Lookup|Tables'!$G$28:$G$43,MATCH('Input|General'!$G$8,'Lookup|Tables'!$G$28:$G$42,0)+1,0,1,1)<='Input|General'!$G$12,OFFSET('Lookup|Tables'!$G$28:$G$43,MATCH('Input|General'!$G$8,'Lookup|Tables'!$G$28:$G$42,0)+1,0,1,1),"") -> 2013 | M4: =IF(OFFSET('Lookup|Tables'!$G$28:$G$43,MATCH('Input|General'!$G$8,'Lookup|Tables'!$G$28:$G$42,0)+2,0,1,1)<='Input|General'!$G$12,OFFSET('Lookup|Tables'!$G$28:$G$43,MATCH('Input|General'!$G$8,'Lookup|Tables'!$G$28:$G$42,0)+2,0,1,1),"") -> 2014 | N4: =IF(OFFSET('Lookup|Tables'!$G$28:$G$43,MATCH('Input|General'!$G$8,'Lookup|Tables'!$G$28:$G$42,0)+3,0,1,1)<='Input|General'!$G$12,OFFSET('Lookup|Tables'!$G$28:$G$43,MATCH('Input|General'!$G$8,'Lookup|Tables'!$G$28:$G$42,0)+3,0,1,1),"") -> 2015 | O4: =IF(OFFSET('Lookup|Tables'!$G$28:$G$43,MATCH('Input|General'!$G$8,'Lookup|Tables'!$G$28:$G$42,0)+4,0,1,1)<='Input|General'!$G$12,OFFSET('Lookup|Tables'!$G$28:$G$43,MATCH('Input|General'!$G$8,'Lookup|Tables'!$G$28:$G$42,0)+4,0,1,1),"") -> 2016 | P4: =IF(OFFSET('Lookup|Tables'!$G$28:$G$43,MATCH('Input|General'!$G$8,'Lookup|Tables'!$G$28:$G$42,0)+5,0,1,1)<='Input|General'!$G$12,OFFSET('Lookup|Tables'!$G$28:$G$43,MATCH('Input|General'!$G$8,'Lookup|Tables'!$G$28:$G$42,0)+5,0,1,1),"") -> 2017 | Q4: =IF(OFFSET('Lookup|Tables'!$G$28:$G$43,MATCH('Input|General'!$G$8,'Lookup|Tables'!$G$28:$G$42,0)+6,0,1,1)<='Input|General'!$G$12,OFFSET('Lookup|Tables'!$G$28:$G$43,MATCH('Input|General'!$G$8,'Lookup|Tables'!$G$28:$G$42,0)+6,0,1,1),"") -> 2018 | R4: =IF(OFFSET('Lookup|Tables'!$G$28:$G$43,MATCH('Input|General'!$G$8,'Lookup|Tables'!$G$28:$G$42,0)+7,0,1,1)<='Input|General'!$G$12,OFFSET('Lookup|Tables'!$G$28:$G$43,MATCH('Input|General'!$G$8,'Lookup|Tables'!$G$28:$G$42,0)+7,0,1,1),"") -> 2019 | S4: =IF(OFFSET('Lookup|Tables'!$G$28:$G$43,MATCH('Input|General'!$G$8,'Lookup|Tables'!$G$28:$G$42,0)+8,0,1,1)<='Input|General'!$G$12,OFFSET('Lookup|Tables'!$G$28:$G$43,MATCH('Input|General'!$G$8,'Lookup|Tables'!$G$28:$G$42,0)+8,0,1,1),"") -> 2020
B8: Input |Step changes
C10: Step change | D10: Source | E10: Unit | F10: Basis | J10: =IF(J$4>='Input|General'!$G$11,IF(J$4<='Input|General'!$G$12,'Input|Reported opex'!J$4,""),"") ->  | K10: =IF(K$4>='Input|General'!$G$11,IF(K$4<='Input|General'!$G$12,'Input|Reported opex'!K$4,""),"") ->  | L10: =IF(L$4>='Input|General'!$G$11,IF(L$4<='Input|General'!$G$12,'Input|Reported opex'!L$4,""),"") ->  | M10: =IF(M$4>='Input|General'!$G$11,IF(M$4<='Input|General'!$G$12,'Input|Reported opex'!M$4,""),"") ->  | N10: =IF(N$4>='Input|General'!$G$11,IF(N$4<='Input|General'!$G$12,'Input|Reported opex'!N$4,""),"") ->  | O10: =IF(O$4>='Input|General'!$G$11,IF(O$4<='Input|General'!$G$12,'Input|Reported opex'!O$4,""),"") -> 2016 | P10: =IF(P$4>='Input|General'!$G$11,IF(P$4<='Input|General'!$G$12,'Input|Reported opex'!P$4,""),"") -> 2017 | Q10: =IF(Q$4>='Input|General'!$G$11,IF(Q$4<='Input|General'!$G$12,'Input|Reported opex'!Q$4,""),"") -> 2018 | R10: =IF(R$4>='Input|General'!$G$11,IF(R$4<='Input|General'!$G$12,'Input|Reported opex'!R$4,""),"") -> 2019 | S10: =IF(S$4>='Input|General'!$G$11,IF(S$4<='Input|General'!$G$12,'Input|Reported opex'!S$4,""),"") -> 2020
C12: Power of Choice | D12: AER | E12: $millions | F12: 2015 | O12: 0 | P12: 0.35 | Q12: 0 | R12: 0 | S12: 0
D13: AER | E13: $millions | F13: 2015 | O13: 0 | P13: 0 | Q13: 0 | R13: 0 | S13: 0
D14: AER | E14: $millions | F14: 2015 | O14: 0 | P14: 0 | Q14: 0 | R14: 0 | S14: 0
D15: AER | E15: $millions | F15: 2015 | O15: 0 | P15: 0 | Q15: 0 | R15: 0 | S15: 0
D16: AER | E16: $millions | F16: 2015 | O16: 0 | P16: 0 | Q16: 0 | R16: 0 | S16: 0
D17: AER | E17: $millions | F17: 2015 | O17: 0 | P17: 0 | Q17: 0 | R17: 0 | S17: 0
D18: AER | E18: $millions | F18: 2015 | O18: 0 | P18: 0 | Q18: 0 | R18: 0 | S18: 0
D19: AER | E19: $millions | F19: 2015 | O19: 0 | P19: 0 | Q19: 0 | R19: 0 | S19: 0
D20: AER | E20: $millions | F20: 2015 | O20: 0 | P20: 0 | Q20: 0 | R20: 0 | S20: 0
D21: AER | E21: $millions | F21: 2015 | O21: 0 | P21: 0 | Q21: 0 | R21: 0 | S21: 0
D22: AER | E22: $millions | F22: 2015 | O22: 0 | P22: 0 | Q22: 0 | R22: 0 | S22: 0
D23: AER | E23: $millions | F23: 2015 | O23: 0 | P23: 0 | Q23: 0 | R23: 0 | S23: 0
B25: Input | Debt raising costs
C27: Debt Raising Costs | D27: Source | E27: Unit | F27: Basis | J27: =IF(J$4>='Input|General'!$G$11,IF(J$4<='Input|General'!$G$12,'Input|Reported opex'!J$4,""),"") ->  | K27: =IF(K$4>='Input|General'!$G$11,IF(K$4<='Input|General'!$G$12,'Input|Reported opex'!K$4,""),"") ->  | L27: =IF(L$4>='Input|General'!$G$11,IF(L$4<='Input|General'!$G$12,'Input|Reported opex'!L$4,""),"") ->  | M27: =IF(M$4>='Input|General'!$G$11,IF(M$4<='Input|General'!$G$12,'Input|Reported opex'!M$4,""),"") ->  | N27: =IF(N$4>='Input|General'!$G$11,IF(N$4<='Input|General'!$G$12,'Input|Reported opex'!N$4,""),"") ->  | O27: =IF(O$4>='Input|General'!$G$11,IF(O$4<='Input|General'!$G$12,'Input|Reported opex'!O$4,""),"") -> 2016 | P27: =IF(P$4>='Input|General'!$G$11,IF(P$4<='Input|General'!$G$12,'Input|Reported opex'!P$4,""),"") -> 2017 | Q27: =IF(Q$4>='Input|General'!$G$11,IF(Q$4<='Input|General'!$G$12,'Input|Reported opex'!Q$4,""),"") -> 2018 | R27: =IF(R$4>='Input|General'!$G$11,IF(R$4<='Input|General'!$G$12,'Input|Reported opex'!R$4,""),"") -> 2019 | S27: =IF(S$4>='Input|General'!$G$11,IF(S$4<='Input|General'!$G$12,'Input|Reported opex'!S$4,""),"") -> 2020
C29: Debt raising costs | D29: PTRM | E29: $millions | F29: 2014-15 | O29: ='[8]PTRM input'!G$186 -> 0.06181502026 | P29: ='[8]PTRM input'!H$186 -> 0.0539391902 | Q29: ='[8]PTRM input'!I$186 -> 0.04624165486 | R29: ='[8]PTRM input'!J$186 -> 0.04022227865 | S29: ='[8]PTRM input'!K$186 -> 0.03420467765
B31: End

Sheet Calc|Opex forecast
B1: =Index!$B$1 -> JEN opex model - Metering services | J1: Back to Index | L1: Key: | M1: Input | N1: External Link | O1: Internal Link | R1: Worksheet check: | S1: n/a | U1: Overall Check: | V1: ='Check|List'!$S$1 -> Ok
B2: =Index!$C$12 -> Calc | Opex Forecast
D4: Source | E4: Unit | F4: Basis | J4: ='Input|General'!$G$8 -> 2011 | K4: =IF(OFFSET('Lookup|Tables'!$G$26:$G$43,MATCH('Input|General'!$G$8,'Lookup|Tables'!$G$26:$G$42,0),0,1,1)<='Input|General'!$G$12,OFFSET('Lookup|Tables'!$G$26:$G$43,MATCH('Input|General'!$G$8,'Lookup|Tables'!$G$26:$G$42,0),0,1,1),"") -> 2012 | L4: =IF(OFFSET('Lookup|Tables'!$G$28:$G$43,MATCH('Input|General'!$G$8,'Lookup|Tables'!$G$28:$G$42,0)+1,0,1,1)<='Input|General'!$G$12,OFFSET('Lookup|Tables'!$G$28:$G$43,MATCH('Input|General'!$G$8,'Lookup|Tables'!$G$28:$G$42,0)+1,0,1,1),"") -> 2013 | M4: =IF(OFFSET('Lookup|Tables'!$G$28:$G$43,MATCH('Input|General'!$G$8,'Lookup|Tables'!$G$28:$G$42,0)+2,0,1,1)<='Input|General'!$G$12,OFFSET('Lookup|Tables'!$G$28:$G$43,MATCH('Input|General'!$G$8,'Lookup|Tables'!$G$28:$G$42,0)+2,0,1,1),"") -> 2014 | N4: =IF(OFFSET('Lookup|Tables'!$G$28:$G$43,MATCH('Input|General'!$G$8,'Lookup|Tables'!$G$28:$G$42,0)+3,0,1,1)<='Input|General'!$G$12,OFFSET('Lookup|Tables'!$G$28:$G$43,MATCH('Input|General'!$G$8,'Lookup|Tables'!$G$28:$G$42,0)+3,0,1,1),"") -> 2015 | O4: =IF(OFFSET('Lookup|Tables'!$G$28:$G$43,MATCH('Input|General'!$G$8,'Lookup|Tables'!$G$28:$G$42,0)+4,0,1,1)<='Input|General'!$G$12,OFFSET('Lookup|Tables'!$G$28:$G$43,MATCH('Input|General'!$G$8,'Lookup|Tables'!$G$28:$G$42,0)+4,0,1,1),"") -> 2016 | P4: =IF(OFFSET('Lookup|Tables'!$G$28:$G$43,MATCH('Input|General'!$G$8,'Lookup|Tables'!$G$28:$G$42,0)+5,0,1,1)<='Input|General'!$G$12,OFFSET('Lookup|Tables'!$G$28:$G$43,MATCH('Input|General'!$G$8,'Lookup|Tables'!$G$28:$G$42,0)+5,0,1,1),"") -> 2017 | Q4: =IF(OFFSET('Lookup|Tables'!$G$28:$G$43,MATCH('Input|General'!$G$8,'Lookup|Tables'!$G$28:$G$42,0)+6,0,1,1)<='Input|General'!$G$12,OFFSET('Lookup|Tables'!$G$28:$G$43,MATCH('Input|General'!$G$8,'Lookup|Tables'!$G$28:$G$42,0)+6,0,1,1),"") -> 2018 | R4: =IF(OFFSET('Lookup|Tables'!$G$28:$G$43,MATCH('Input|General'!$G$8,'Lookup|Tables'!$G$28:$G$42,0)+7,0,1,1)<='Input|General'!$G$12,OFFSET('Lookup|Tables'!$G$28:$G$43,MATCH('Input|General'!$G$8,'Lookup|Tables'!$G$28:$G$42,0)+7,0,1,1),"") -> 2019 | S4: =IF(OFFSET('Lookup|Tables'!$G$28:$G$43,MATCH('Input|General'!$G$8,'Lookup|Tables'!$G$28:$G$42,0)+8,0,1,1)<='Input|General'!$G$12,OFFSET('Lookup|Tables'!$G$28:$G$43,MATCH('Input|General'!$G$8,'Lookup|Tables'!$G$28:$G$42,0)+8,0,1,1),"") -> 2020
B8: Calc | Estimated final year expenditure | E8: $millions | F8: 2015
D10: Source | E10: Unit | F10: Basis | J10: =IF(RIGHT(J$4,2)>=RIGHT('Input|General'!$G$9,2),IF(RIGHT(J$4,2)<=RIGHT('Input|General'!$G$10,2),J$4,""),"") ->  | K10: =IF(RIGHT(K$4,2)>=RIGHT('Input|General'!$G$9,2),IF(RIGHT(K$4,2)<=RIGHT('Input|General'!$G$10,2),K$4,""),"") ->  | L10: =IF(RIGHT(L$4,2)>=RIGHT('Input|General'!$G$9,2),IF(RIGHT(L$4,2)<=RIGHT('Input|General'!$G$10,2),L$4,""),"") ->  | M10: =IF(RIGHT(M$4,2)>=RIGHT('Input|General'!$G$9,2),IF(RIGHT(M$4,2)<=RIGHT('Input|General'!$G$10,2),M$4,""),"") -> 2014 | N10: =IF(RIGHT(N$4,2)>=RIGHT('Input|General'!$G$9,2),IF(RIGHT(N$4,2)<=RIGHT('Input|General'!$G$10,2),N$4,""),"") -> 2015 | O10: =IF(RIGHT(O$4,2)>=RIGHT('Input|General'!$G$9,2),IF(RIGHT(O$4,2)<=RIGHT('Input|General'!$G$10,2),O$4,""),"") ->  | P10: =IF(RIGHT(P$4,2)>=RIGHT('Input|General'!$G$9,2),IF(RIGHT(P$4,2)<=RIGHT('Input|General'!$G$10,2),P$4,""),"") ->  | Q10: =IF(RIGHT(Q$4,2)>=RIGHT('Input|General'!$G$9,2),IF(RIGHT(Q$4,2)<=RIGHT('Input|General'!$G$10,2),Q$4,""),"") ->  | R10: =IF(RIGHT(R$4,2)>=RIGHT('Input|General'!$G$9,2),IF(RIGHT(R$4,2)<=RIGHT('Input|General'!$G$10,2),R$4,""),"") ->  | S10: =IF(RIGHT(S$4,2)>=RIGHT('Input|General'!$G$9,2),IF(RIGHT(S$4,2)<=RIGHT('Input|General'!$G$10,2),S$4,""),"") -> 
C12: Total reported opex | D12: Inputs|Reported opex | E12: ='Input|Reported opex'!E43 -> $millions | F12: ='Input|Reported opex'!F43 -> nominal | J12: =IF(J$10='Input|General'!$G$9,'Input|Reported opex'!J43,0) -> 0 | K12: =IF(K$10='Input|General'!$G$9,'Input|Reported opex'!K43,0) -> 0 | L12: =IF(L$10='Input|General'!$G$9,'Input|Reported opex'!L43,0) -> 0 | M12: =IF(M$10='Input|General'!$G$9,'Input|Reported opex'!M43,0) -> 19.7104611 | N12: =IF(N$10='Input|General'!$G$9,'Input|Reported opex'!N43,0) -> 0 | O12: =IF(O$10='Input|General'!$G$9,'Input|Reported opex'!O43,0) -> 0 | P12: =IF(P$10='Input|General'!$G$9,'Input|Reported opex'!P43,0) -> 0 | Q12: =IF(Q$10='Input|General'!$G$9,'Input|Reported opex'!Q43,0) -> 0 | R12: =IF(R$10='Input|General'!$G$9,'Input|Reported opex'!R43,0) -> 0 | S12: =IF(S$10='Input|General'!$G$9,'Input|Reported opex'!S43,0) -> 0
C13: Total reported opex | D13: Calculated | E13: =$E$8 -> $millions | F13: =$F$8 -> 2015 | J13: =J12*IF($F12="nominal",LOOKUP($F13,Nominal_to_Real,'Input|Rate of change'!K$26:K$32),INDEX('Input|Rate of change'!$C$14:$O$22,MATCH('Calc|Opex forecast'!$F12,'Input|Rate of change'!$C$14:$C$22,0),MATCH('Calc|Opex forecast'!$F13,'Input|Rate of change'!$C$14:$O$14,0)))*IF($E12="$millions",1000000,IF($E12="$000",1000,1))/IF($E13="$millions",1000000,IF($E13="$000",1000,1)) -> 0 | K13: =K12*IF($F12="nominal",LOOKUP($F13,Nominal_to_Real,'Input|Rate of change'!L$26:L$32),INDEX('Input|Rate of change'!$C$14:$O$22,MATCH('Calc|Opex forecast'!$F12,'Input|Rate of change'!$C$14:$C$22,0),MATCH('Calc|Opex forecast'!$F13,'Input|Rate of change'!$C$14:$O$14,0)))*IF($E12="$millions",1000000,IF($E12="$000",1000,1))/IF($E13="$millions",1000000,IF($E13="$000",1000,1)) -> 0 | L13: =L12*IF($F12="nominal",LOOKUP($F13,Nominal_to_Real,'Input|Rate of change'!M$26:M$32),INDEX('Input|Rate of change'!$C$14:$O$22,MATCH('Calc|Opex forecast'!$F12,'Input|Rate of change'!$C$14:$C$22,0),MATCH('Calc|Opex forecast'!$F13,'Input|Rate of change'!$C$14:$O$14,0)))*IF($E12="$millions",1000000,IF($E12="$000",1000,1))/IF($E13="$millions",1000000,IF($E13="$000",1000,1)) -> 0 | M13: =M12*IF($F12="nominal",LOOKUP($F13,Nominal_to_Real,'Input|Rate of change'!N$26:N$32),INDEX('Input|Rate of change'!$C$14:$O$22,MATCH('Calc|Opex forecast'!$F12,'Input|Rate of change'!$C$14:$C$22,0),MATCH('Calc|Opex forecast'!$F13,'Input|Rate of change'!$C$14:$O$14,0)))*IF($E12="$millions",1000000,IF($E12="$000",1000,1))/IF($E13="$millions",1000000,IF($E13="$000",1000,1)) -> 20.22689235 | N13: =N12*IF($F12="nominal",LOOKUP($F13,Nominal_to_Real,'Input|Rate of change'!O$26:O$32),INDEX('Input|Rate of change'!$C$14:$O$22,MATCH('Calc|Opex forecast'!$F12,'Input|Rate of change'!$C$14:$C$22,0),MATCH('Calc|Opex forecast'!$F13,'Input|Rate of change'!$C$14:$O$14,0)))*IF($E12="$millions",1000000,IF($E12="$000",1000,1))/IF($E13="$millions",1000000,IF($E13="$000",1000,1)) -> 0 | O13: =O12*IF($F12="nominal",LOOKUP($F13,Nominal_to_Real,'Input|Rate of change'!P$26:P$32),INDEX('Input|Rate of change'!$C$14:$O$22,MATCH('Calc|Opex forecast'!$F12,'Input|Rate of change'!$C$14:$C$22,0),MATCH('Calc|Opex forecast'!$F13,'Input|Rate of change'!$C$14:$O$14,0)))*IF($E12="$millions",1000000,IF($E12="$000",1000,1))/IF($E13="$millions",1000000,IF($E13="$000",1000,1)) -> 0 | P13: =P12*IF($F12="nominal",LOOKUP($F13,Nominal_to_Real,'Input|Rate of change'!Q$26:Q$32),INDEX('Input|Rate of change'!$C$14:$O$22,MATCH('Calc|Opex forecast'!$F12,'Input|Rate of change'!$C$14:$C$22,0),MATCH('Calc|Opex forecast'!$F13,'Input|Rate of change'!$C$14:$O$14,0)))*IF($E12="$millions",1000000,IF($E12="$000",1000,1))/IF($E13="$millions",1000000,IF($E13="$000",1000,1)) -> 0 | Q13: =Q12*IF($F12="nominal",LOOKUP($F13,Nominal_to_Real,'Input|Rate of change'!R$26:R$32),INDEX('Input|Rate of change'!$C$14:$O$22,MATCH('Calc|Opex forecast'!$F12,'Input|Rate of change'!$C$14:$C$22,0),MATCH('Calc|Opex forecast'!$F13,'Input|Rate of change'!$C$14:$O$14,0)))*IF($E12="$millions",1000000,IF($E12="$000",1000,1))/IF($E13="$millions",1000000,IF($E13="$000",1000,1)) -> 0 | R13: =R12*IF($F12="nominal",LOOKUP($F13,Nominal_to_Real,'Input|Rate of change'!S$26:S$32),INDEX('Input|Rate of change'!$C$14:$O$22,MATCH('Calc|Opex forecast'!$F12,'Input|Rate of change'!$C$14:$C$22,0),MATCH('Calc|Opex forecast'!$F13,'Input|Rate of change'!$C$14:$O$14,0)))*IF($E12="$millions",1000000,IF($E12="$000",1000,1))/IF($E13="$millions",1000000,IF($E13="$000",1000,1)) -> 0 | S13: =S12*IF($F12="nominal",LOOKUP($F13,Nominal_to_Real,'Input|Rate of change'!T$26:T$32),INDEX('Input|Rate of change'!$C$14:$O$22,MATCH('Calc|Opex forecast'!$F12,'Input|Rate of change'!$C$14:$C$22,0),MATCH('Calc|Opex forecast'!$F13,'Input|Rate of change'!$C$14:$O$14,0)))*IF($E12="$millions",1000000,IF($E12="$000",1000,1))/IF($E13="$millions",1000000,IF($E13="$000",1000,1)) -> 0
C14: Total base year opex allowance | D14: Inputs|Reported opex | E14: ='Input|Reported opex'!E24 -> $millions | F14: ='Input|Reported opex'!F24 -> 2010 | J14: =IF(J$10='Input|General'!$G$9,'Input|Reported opex'!J24,0) -> 0 | K14: =IF(K$10='Input|General'!$G$9,'Input|Reported opex'!K24,0) -> 0 | L14: =IF(L$10='Input|General'!$G$9,'Input|Reported opex'!L24,0) -> 0 | M14: =IF(M$10='Input|General'!$G$9,'Input|Reported opex'!M24,0) -> 0 | N14: =IF(N$10='Input|General'!$G$9,'Input|Reported opex'!N24,0) -> 0 | O14: =IF(O$10='Input|General'!$G$9,'Input|Reported opex'!O24,0) -> 0 | P14: =IF(P$10='Input|General'!$G$9,'Input|Reported opex'!P24,0) -> 0 | Q14: =IF(Q$10='Input|General'!$G$9,'Input|Reported opex'!Q24,0) -> 0 | R14: =IF(R$10='Input|General'!$G$9,'Input|Reported opex'!R24,0) -> 0 | S14: =IF(S$10='Input|General'!$G$9,'Input|Reported opex'!S24,0) -> 0
C15: Total base year opex allowance | D15: Calculated | E15: =$E$8 -> $millions | F15: =$F$8 -> 2015 | J15: =J14*IF($F14="nominal",LOOKUP($F15,Nominal_to_Real,'Input|Rate of change'!K$26:K$32),INDEX('Input|Rate of change'!$C$14:$O$22,MATCH('Calc|Opex forecast'!$F14,'Input|Rate of change'!$C$14:$C$22,0),MATCH('Calc|Opex forecast'!$F15,'Input|Rate of change'!$C$14:$O$14,0)))*IF($E14="$millions",1000000,IF($E14="$000",1000,1))/IF($E15="$millions",1000000,IF($E15="$000",1000,1)) -> 0 | K15: =K14*IF($F14="nominal",LOOKUP($F15,Nominal_to_Real,'Input|Rate of change'!L$26:L$32),INDEX('Input|Rate of change'!$C$14:$O$22,MATCH('Calc|Opex forecast'!$F14,'Input|Rate of change'!$C$14:$C$22,0),MATCH('Calc|Opex forecast'!$F15,'Input|Rate of change'!$C$14:$O$14,0)))*IF($E14="$millions",1000000,IF($E14="$000",1000,1))/IF($E15="$millions",1000000,IF($E15="$000",1000,1)) -> 0 | L15: =L14*IF($F14="nominal",LOOKUP($F15,Nominal_to_Real,'Input|Rate of change'!M$26:M$32),INDEX('Input|Rate of change'!$C$14:$O$22,MATCH('Calc|Opex forecast'!$F14,'Input|Rate of change'!$C$14:$C$22,0),MATCH('Calc|Opex forecast'!$F15,'Input|Rate of change'!$C$14:$O$14,0)))*IF($E14="$millions",1000000,IF($E14="$000",1000,1))/IF($E15="$millions",1000000,IF($E15="$000",1000,1)) -> 0 | M15: =M14*IF($F14="nominal",LOOKUP($F15,Nominal_to_Real,'Input|Rate of change'!N$26:N$32),INDEX('Input|Rate of change'!$C$14:$O$22,MATCH('Calc|Opex forecast'!$F14,'Input|Rate of change'!$C$14:$C$22,0),MATCH('Calc|Opex forecast'!$F15,'Input|Rate of change'!$C$14:$O$14,0)))*IF($E14="$millions",1000000,IF($E14="$000",1000,1))/IF($E15="$millions",1000000,IF($E15="$000",1000,1)) -> 0 | N15: =N14*IF($F14="nominal",LOOKUP($F15,Nominal_to_Real,'Input|Rate of change'!O$26:O$32),INDEX('Input|Rate of change'!$C$14:$O$22,MATCH('Calc|Opex forecast'!$F14,'Input|Rate of change'!$C$14:$C$22,0),MATCH('Calc|Opex forecast'!$F15,'Input|Rate of change'!$C$14:$O$14,0)))*IF($E14="$millions",1000000,IF($E14="$000",1000,1))/IF($E15="$millions",1000000,IF($E15="$000",1000,1)) -> 0 | O15: =O14*IF($F14="nominal",LOOKUP($F15,Nominal_to_Real,'Input|Rate of change'!P$26:P$32),INDEX('Input|Rate of change'!$C$14:$O$22,MATCH('Calc|Opex forecast'!$F14,'Input|Rate of change'!$C$14:$C$22,0),MATCH('Calc|Opex forecast'!$F15,'Input|Rate of change'!$C$14:$O$14,0)))*IF($E14="$millions",1000000,IF($E14="$000",1000,1))/IF($E15="$millions",1000000,IF($E15="$000",1000,1)) -> 0 | P15: =P14*IF($F14="nominal",LOOKUP($F15,Nominal_to_Real,'Input|Rate of change'!Q$26:Q$32),INDEX('Input|Rate of change'!$C$14:$O$22,MATCH('Calc|Opex forecast'!$F14,'Input|Rate of change'!$C$14:$C$22,0),MATCH('Calc|Opex forecast'!$F15,'Input|Rate of change'!$C$14:$O$14,0)))*IF($E14="$millions",1000000,IF($E14="$000",1000,1))/IF($E15="$millions",1000000,IF($E15="$000",1000,1)) -> 0 | Q15: =Q14*IF($F14="nominal",LOOKUP($F15,Nominal_to_Real,'Input|Rate of change'!R$26:R$32),INDEX('Input|Rate of change'!$C$14:$O$22,MATCH('Calc|Opex forecast'!$F14,'Input|Rate of change'!$C$14:$C$22,0),MATCH('Calc|Opex forecast'!$F15,'Input|Rate of change'!$C$14:$O$14,0)))*IF($E14="$millions",1000000,IF($E14="$000",1000,1))/IF($E15="$millions",1000000,IF($E15="$000",1000,1)) -> 0 | R15: =R14*IF($F14="nominal",LOOKUP($F15,Nominal_to_Real,'Input|Rate of change'!S$26:S$32),INDEX('Input|Rate of change'!$C$14:$O$22,MATCH('Calc|Opex forecast'!$F14,'Input|Rate of change'!$C$14:$C$22,0),MATCH('Calc|Opex forecast'!$F15,'Input|Rate of change'!$C$14:$O$14,0)))*IF($E14="$millions",1000000,IF($E14="$000",1000,1))/IF($E15="$millions",1000000,IF($E15="$000",1000,1)) -> 0 | S15: =S14*IF($F14="nominal",LOOKUP($F15,Nominal_to_Real,'Input|Rate of change'!T$26:T$32),INDEX('Input|Rate of change'!$C$14:$O$22,MATCH('Calc|Opex forecast'!$F14,'Input|Rate of change'!$C$14:$C$22,0),MATCH('Calc|Opex forecast'!$F15,'Input|Rate of change'!$C$14:$O$14,0)))*IF($E14="$millions",1000000,IF($E14="$000",1000,1))/IF($E15="$millions",1000000,IF($E15="$000",1000,1)) -> 0
C16: Total final year opex allowance | D16: Inputs|Reported opex | E16: ='Input|Reported opex'!E24 -> $millions | F16: ='Input|Reported opex'!F24 -> 2010 | J16: =IF(J$10='Input|General'!$G$10,'Input|Reported opex'!J24,0) -> 0 | K16: =IF(K$10='Input|General'!$G$10,'Input|Reported opex'!K24,0) -> 0 | L16: =IF(L$10='Input|General'!$G$10,'Input|Reported opex'!L24,0) -> 0 | M16: =IF(M$10='Input|General'!$G$10,'Input|Reported opex'!M24,0) -> 0 | N16: =IF(N$10='Input|General'!$G$10,'Input|Reported opex'!N24,0) -> 0 | O16: =IF(O$10='Input|General'!$G$10,'Input|Reported opex'!O24,0) -> 0 | P16: =IF(P$10='Input|General'!$G$10,'Input|Reported opex'!P24,0) -> 0 | Q16: =IF(Q$10='Input|General'!$G$10,'Input|Reported opex'!Q24,0) -> 0 | R16: =IF(R$10='Input|General'!$G$10,'Input|Reported opex'!R24,0) -> 0 | S16: =IF(S$10='Input|General'!$G$10,'Input|Reported opex'!S24,0) -> 0
C17: Total final year opex allowance | D17: Calculated | E17: =$E$8 -> $millions | F17: =$F$8 -> 2015 | J17: =J16*IF($F16="nominal",LOOKUP($F17,Nominal_to_Real,'Input|Rate of change'!K$27:K$32),INDEX('Input|Rate of change'!$C$14:$O$22,MATCH('Calc|Opex forecast'!$F16,'Input|Rate of change'!$C$14:$C$22,0),MATCH('Calc|Opex forecast'!$F17,'Input|Rate of change'!$C$14:$O$14,0)))*IF($E16="$millions",1000000,IF($E16="$000",1000,1))/IF($E17="$millions",1000000,IF($E17="$000",1000,1)) -> 0 | K17: =K16*IF($F16="nominal",LOOKUP($F17,Nominal_to_Real,'Input|Rate of change'!L$27:L$32),INDEX('Input|Rate of change'!$C$14:$O$22,MATCH('Calc|Opex forecast'!$F16,'Input|Rate of change'!$C$14:$C$22,0),MATCH('Calc|Opex forecast'!$F17,'Input|Rate of change'!$C$14:$O$14,0)))*IF($E16="$millions",1000000,IF($E16="$000",1000,1))/IF($E17="$millions",1000000,IF($E17="$000",1000,1)) -> 0 | L17: =L16*IF($F16="nominal",LOOKUP($F17,Nominal_to_Real,'Input|Rate of change'!M$27:M$32),INDEX('Input|Rate of change'!$C$14:$O$22,MATCH('Calc|Opex forecast'!$F16,'Input|Rate of change'!$C$14:$C$22,0),MATCH('Calc|Opex forecast'!$F17,'Input|Rate of change'!$C$14:$O$14,0)))*IF($E16="$millions",1000000,IF($E16="$000",1000,1))/IF($E17="$millions",1000000,IF($E17="$000",1000,1)) -> 0 | M17: =M16*IF($F16="nominal",LOOKUP($F17,Nominal_to_Real,'Input|Rate of change'!N$27:N$32),INDEX('Input|Rate of change'!$C$14:$O$22,MATCH('Calc|Opex forecast'!$F16,'Input|Rate of change'!$C$14:$C$22,0),MATCH('Calc|Opex forecast'!$F17,'Input|Rate of change'!$C$14:$O$14,0)))*IF($E16="$millions",1000000,IF($E16="$000",1000,1))/IF($E17="$millions",1000000,IF($E17="$000",1000,1)) -> 0 | N17: =N16*IF($F16="nominal",LOOKUP($F17,Nominal_to_Real,'Input|Rate of change'!O$27:O$32),INDEX('Input|Rate of change'!$C$14:$O$22,MATCH('Calc|Opex forecast'!$F16,'Input|Rate of change'!$C$14:$C$22,0),MATCH('Calc|Opex forecast'!$F17,'Input|Rate of change'!$C$14:$O$14,0)))*IF($E16="$millions",1000000,IF($E16="$000",1000,1))/IF($E17="$millions",1000000,IF($E17="$000",1000,1)) -> 0 | O17: =O16*IF($F16="nominal",LOOKUP($F17,Nominal_to_Real,'Input|Rate of change'!P$27:P$32),INDEX('Input|Rate of change'!$C$14:$O$22,MATCH('Calc|Opex forecast'!$F16,'Input|Rate of change'!$C$14:$C$22,0),MATCH('Calc|Opex forecast'!$F17,'Input|Rate of change'!$C$14:$O$14,0)))*IF($E16="$millions",1000000,IF($E16="$000",1000,1))/IF($E17="$millions",1000000,IF($E17="$000",1000,1)) -> 0 | P17: =P16*IF($F16="nominal",LOOKUP($F17,Nominal_to_Real,'Input|Rate of change'!Q$27:Q$32),INDEX('Input|Rate of change'!$C$14:$O$22,MATCH('Calc|Opex forecast'!$F16,'Input|Rate of change'!$C$14:$C$22,0),MATCH('Calc|Opex forecast'!$F17,'Input|Rate of change'!$C$14:$O$14,0)))*IF($E16="$millions",1000000,IF($E16="$000",1000,1))/IF($E17="$millions",1000000,IF($E17="$000",1000,1)) -> 0 | Q17: =Q16*IF($F16="nominal",LOOKUP($F17,Nominal_to_Real,'Input|Rate of change'!R$27:R$32),INDEX('Input|Rate of change'!$C$14:$O$22,MATCH('Calc|Opex forecast'!$F16,'Input|Rate of change'!$C$14:$C$22,0),MATCH('Calc|Opex forecast'!$F17,'Input|Rate of change'!$C$14:$O$14,0)))*IF($E16="$millions",1000000,IF($E16="$000",1000,1))/IF($E17="$millions",1000000,IF($E17="$000",1000,1)) -> 0 | R17: =R16*IF($F16="nominal",LOOKUP($F17,Nominal_to_Real,'Input|Rate of change'!S$27:S$32),INDEX('Input|Rate of change'!$C$14:$O$22,MATCH('Calc|Opex forecast'!$F16,'Input|Rate of change'!$C$14:$C$22,0),MATCH('Calc|Opex forecast'!$F17,'Input|Rate of change'!$C$14:$O$14,0)))*IF($E16="$millions",1000000,IF($E16="$000",1000,1))/IF($E17="$millions",1000000,IF($E17="$000",1000,1)) -> 0 | S17: =S16*IF($F16="nominal",LOOKUP($F17,Nominal_to_Real,'Input|Rate of change'!T$27:T$32),INDEX('Input|Rate of change'!$C$14:$O$22,MATCH('Calc|Opex forecast'!$F16,'Input|Rate of change'!$C$14:$C$22,0),MATCH('Calc|Opex forecast'!$F17,'Input|Rate of change'!$C$14:$O$14,0)))*IF($E16="$millions",1000000,IF($E16="$000",1000,1))/IF($E17="$millions",1000000,IF($E17="$000",1000,1)) -> 0
C19: Estimated final year opex | D19: Calculated | E19: =$E$8 -> $millions | F19: =$F$8 -> 2015 | J19: =IF(J$10='Input|General'!$G$10,SUM($J13:$S13)-SUM($J15:$S15)+SUM($J17:$S17),0) -> 0 | K19: =IF(K$10='Input|General'!$G$10,SUM($J13:$S13)-SUM($J15:$S15)+SUM($J17:$S17),0) -> 0 | L19: =IF(L$10='Input|General'!$G$10,SUM($J13:$S13)-SUM($J15:$S15)+SUM($J17:$S17),0) -> 0 | M19: =IF(M$10='Input|General'!$G$10,SUM($J13:$S13)-SUM($J15:$S15)+SUM($J17:$S17),0) -> 0 | N19: =IF(N$10='Input|General'!$G$10,SUM($J13:$S13)-SUM($J15:$S15)+SUM($J17:$S17),0) -> 20.22689235 | O19: =IF(O$10='Input|General'!$G$10,SUM($J13:$S13)-SUM($J15:$S15)+SUM($J17:$S17),0) -> 0 | P19: =IF(P$10='Input|General'!$G$10,SUM($J13:$S13)-SUM($J15:$S15)+SUM($J17:$S17),0) -> 0 | Q19: =IF(Q$10='Input|General'!$G$10,SUM($J13:$S13)-SUM($J15:$S15)+SUM($J17:$S17),0) -> 0 | R19: =IF(R$10='Input|General'!$G$10,SUM($J13:$S13)-SUM($J15:$S15)+SUM($J17:$S17),0) -> 0 | S19: =IF(S$10='Input|General'!$G$10,SUM($J13:$S13)-SUM($J15:$S15)+SUM($J17:$S17),0) -> 0
C21: CAM adjustment | D21: Inputs|Reported opex | E21: ='Input|Reported opex'!E48 -> $millions | F21: ='Input|Reported opex'!F48 -> 2015 | I21: =IF(I$10='Input|General'!$G$10,'Input|Reported opex'!I48,0) -> 0 | J21: =IF(J$10='Input|General'!$G$10,'Input|Reported opex'!J48,0) -> 0 | K21: =IF(K$10='Input|General'!$G$10,'Input|Reported opex'!K48,0) -> 0 | L21: =IF(L$10='Input|General'!$G$10,'Input|Reported opex'!L48,0) -> 0 | M21: =IF(M$10='Input|General'!$G$10,'Input|Reported opex'!M48,0) -> 0 | N21: =IF(N$10='Input|General'!$G$10,'Input|Reported opex'!N48,0) -> 0 | O21: =IF(O$10='Input|General'!$G$10,'Input|Reported opex'!O48,0) -> 0 | P21: =IF(P$10='Input|General'!$G$10,'Input|Reported opex'!P48,0) -> 0 | Q21: =IF(Q$10='Input|General'!$G$10,'Input|Reported opex'!Q48,0) -> 0 | R21: =IF(R$10='Input|General'!$G$10,'Input|Reported opex'!R48,0) -> 0 | S21: =IF(S$10='Input|General'!$G$10,'Input|Reported opex'!S48,0) -> 0
C22: =C21 -> CAM adjustment | D22: Calculated | E22: =$E$8 -> $millions | F22: =$F$8 -> 2015 | J22: =J21*IF($F21="nominal",LOOKUP($F22,Nominal_to_Real,'Input|Rate of change'!K$26:K$32),INDEX('Input|Rate of change'!$C$14:$O$22,MATCH('Calc|Opex forecast'!$F21,'Input|Rate of change'!$C$14:$C$22,0),MATCH('Calc|Opex forecast'!$F22,'Input|Rate of change'!$C$14:$O$14,0)))*IF($E21="$millions",1000000,IF($E21="$000",1000,1))/IF($E22="$millions",1000000,IF($E22="$000",1000,1)) -> 0 | K22: =K21*IF($F21="nominal",LOOKUP($F22,Nominal_to_Real,'Input|Rate of change'!L$26:L$32),INDEX('Input|Rate of change'!$C$14:$O$22,MATCH('Calc|Opex forecast'!$F21,'Input|Rate of change'!$C$14:$C$22,0),MATCH('Calc|Opex forecast'!$F22,'Input|Rate of change'!$C$14:$O$14,0)))*IF($E21="$millions",1000000,IF($E21="$000",1000,1))/IF($E22="$millions",1000000,IF($E22="$000",1000,1)) -> 0 | L22: =L21*IF($F21="nominal",LOOKUP($F22,Nominal_to_Real,'Input|Rate of change'!M$26:M$32),INDEX('Input|Rate of change'!$C$14:$O$22,MATCH('Calc|Opex forecast'!$F21,'Input|Rate of change'!$C$14:$C$22,0),MATCH('Calc|Opex forecast'!$F22,'Input|Rate of change'!$C$14:$O$14,0)))*IF($E21="$millions",1000000,IF($E21="$000",1000,1))/IF($E22="$millions",1000000,IF($E22="$000",1000,1)) -> 0 | M22: =M21*IF($F21="nominal",LOOKUP($F22,Nominal_to_Real,'Input|Rate of change'!N$26:N$32),INDEX('Input|Rate of change'!$C$14:$O$22,MATCH('Calc|Opex forecast'!$F21,'Input|Rate of change'!$C$14:$C$22,0),MATCH('Calc|Opex forecast'!$F22,'Input|Rate of change'!$C$14:$O$14,0)))*IF($E21="$millions",1000000,IF($E21="$000",1000,1))/IF($E22="$millions",1000000,IF($E22="$000",1000,1)) -> 0 | N22: =N21*IF($F21="nominal",LOOKUP($F22,Nominal_to_Real,'Input|Rate of change'!O$26:O$32),INDEX('Input|Rate of change'!$C$14:$O$22,MATCH('Calc|Opex forecast'!$F21,'Input|Rate of change'!$C$14:$C$22,0),MATCH('Calc|Opex forecast'!$F22,'Input|Rate of change'!$C$14:$O$14,0)))*IF($E21="$millions",1000000,IF($E21="$000",1000,1))/IF($E22="$millions",1000000,IF($E22="$000",1000,1)) -> 0 | O22: =O21*IF($F21="nominal",LOOKUP($F22,Nominal_to_Real,'Input|Rate of change'!P$26:P$32),INDEX('Input|Rate of change'!$C$14:$O$22,MATCH('Calc|Opex forecast'!$F21,'Input|Rate of change'!$C$14:$C$22,0),MATCH('Calc|Opex forecast'!$F22,'Input|Rate of change'!$C$14:$O$14,0)))*IF($E21="$millions",1000000,IF($E21="$000",1000,1))/IF($E22="$millions",1000000,IF($E22="$000",1000,1)) -> 0 | P22: =P21*IF($F21="nominal",LOOKUP($F22,Nominal_to_Real,'Input|Rate of change'!Q$26:Q$32),INDEX('Input|Rate of change'!$C$14:$O$22,MATCH('Calc|Opex forecast'!$F21,'Input|Rate of change'!$C$14:$C$22,0),MATCH('Calc|Opex forecast'!$F22,'Input|Rate of change'!$C$14:$O$14,0)))*IF($E21="$millions",1000000,IF($E21="$000",1000,1))/IF($E22="$millions",1000000,IF($E22="$000",1000,1)) -> 0 | Q22: =Q21*IF($F21="nominal",LOOKUP($F22,Nominal_to_Real,'Input|Rate of change'!R$26:R$32),INDEX('Input|Rate of change'!$C$14:$O$22,MATCH('Calc|Opex forecast'!$F21,'Input|Rate of change'!$C$14:$C$22,0),MATCH('Calc|Opex forecast'!$F22,'Input|Rate of change'!$C$14:$O$14,0)))*IF($E21="$millions",1000000,IF($E21="$000",1000,1))/IF($E22="$millions",1000000,IF($E22="$000",1000,1)) -> 0 | R22: =R21*IF($F21="nominal",LOOKUP($F22,Nominal_to_Real,'Input|Rate of change'!S$26:S$32),INDEX('Input|Rate of change'!$C$14:$O$22,MATCH('Calc|Opex forecast'!$F21,'Input|Rate of change'!$C$14:$C$22,0),MATCH('Calc|Opex forecast'!$F22,'Input|Rate of change'!$C$14:$O$14,0)))*IF($E21="$millions",1000000,IF($E21="$000",1000,1))/IF($E22="$millions",1000000,IF($E22="$000",1000,1)) -> 0 | S22: =S21*IF($F21="nominal",LOOKUP($F22,Nominal_to_Real,'Input|Rate of change'!T$26:T$32),INDEX('Input|Rate of change'!$C$14:$O$22,MATCH('Calc|Opex forecast'!$F21,'Input|Rate of change'!$C$14:$C$22,0),MATCH('Calc|Opex forecast'!$F22,'Input|Rate of change'!$C$14:$O$14,0)))*IF($E21="$millions",1000000,IF($E21="$000",1000,1))/IF($E22="$millions",1000000,IF($E22="$000",1000,1)) -> 0
C24: Service classification adjustment | D24: Inputs|Reported opex | E24: ='Input|Reported opex'!E53 -> $millions | F24: ='Input|Reported opex'!F53 -> 2015 | N24: ='Input|Reported opex'!N53 -> -8.715661334
C25: =C24 -> Service classification adjustment | D25: Calculated | E25: =$E$8 -> $millions | F25: =$F$8 -> 2015 | J25: =J24*IF($F24="nominal",LOOKUP($F25,Nominal_to_Real,'Input|Rate of change'!K$26:K$32),INDEX('Input|Rate of change'!$C$14:$O$22,MATCH('Calc|Opex forecast'!$F24,'Input|Rate of change'!$C$14:$C$22,0),MATCH('Calc|Opex forecast'!$F25,'Input|Rate of change'!$C$14:$O$14,0)))*IF($E24="$millions",1000000,IF($E24="$000",1000,1))/IF($E25="$millions",1000000,IF($E25="$000",1000,1)) -> 0 | K25: =K24*IF($F24="nominal",LOOKUP($F25,Nominal_to_Real,'Input|Rate of change'!L$26:L$32),INDEX('Input|Rate of change'!$C$14:$O$22,MATCH('Calc|Opex forecast'!$F24,'Input|Rate of change'!$C$14:$C$22,0),MATCH('Calc|Opex forecast'!$F25,'Input|Rate of change'!$C$14:$O$14,0)))*IF($E24="$millions",1000000,IF($E24="$000",1000,1))/IF($E25="$millions",1000000,IF($E25="$000",1000,1)) -> 0 | L25: =L24*IF($F24="nominal",LOOKUP($F25,Nominal_to_Real,'Input|Rate of change'!M$26:M$32),INDEX('Input|Rate of change'!$C$14:$O$22,MATCH('Calc|Opex forecast'!$F24,'Input|Rate of change'!$C$14:$C$22,0),MATCH('Calc|Opex forecast'!$F25,'Input|Rate of change'!$C$14:$O$14,0)))*IF($E24="$millions",1000000,IF($E24="$000",1000,1))/IF($E25="$millions",1000000,IF($E25="$000",1000,1)) -> 0 | M25: =M24*IF($F24="nominal",LOOKUP($F25,Nominal_to_Real,'Input|Rate of change'!N$26:N$32),INDEX('Input|Rate of change'!$C$14:$O$22,MATCH('Calc|Opex forecast'!$F24,'Input|Rate of change'!$C$14:$C$22,0),MATCH('Calc|Opex forecast'!$F25,'Input|Rate of change'!$C$14:$O$14,0)))*IF($E24="$millions",1000000,IF($E24="$000",1000,1))/IF($E25="$millions",1000000,IF($E25="$000",1000,1)) -> 0 | N25: =N24*IF($F24="nominal",LOOKUP($F25,Nominal_to_Real,'Input|Rate of change'!O$26:O$32),INDEX('Input|Rate of change'!$C$14:$O$22,MATCH('Calc|Opex forecast'!$F24,'Input|Rate of change'!$C$14:$C$22,0),MATCH('Calc|Opex forecast'!$F25,'Input|Rate of change'!$C$14:$O$14,0)))*IF($E24="$millions",1000000,IF($E24="$000",1000,1))/IF($E25="$millions",1000000,IF($E25="$000",1000,1)) -> -8.715661334 | O25: =O24*IF($F24="nominal",LOOKUP($F25,Nominal_to_Real,'Input|Rate of change'!P$26:P$32),INDEX('Input|Rate of change'!$C$14:$O$22,MATCH('Calc|Opex forecast'!$F24,'Input|Rate of change'!$C$14:$C$22,0),MATCH('Calc|Opex forecast'!$F25,'Input|Rate of change'!$C$14:$O$14,0)))*IF($E24="$millions",1000000,IF($E24="$000",1000,1))/IF($E25="$millions",1000000,IF($E25="$000",1000,1)) -> 0 | P25: =P24*IF($F24="nominal",LOOKUP($F25,Nominal_to_Real,'Input|Rate of change'!Q$26:Q$32),INDEX('Input|Rate of change'!$C$14:$O$22,MATCH('Calc|Opex forecast'!$F24,'Input|Rate of change'!$C$14:$C$22,0),MATCH('Calc|Opex forecast'!$F25,'Input|Rate of change'!$C$14:$O$14,0)))*IF($E24="$millions",1000000,IF($E24="$000",1000,1))/IF($E25="$millions",1000000,IF($E25="$000",1000,1)) -> 0 | Q25: =Q24*IF($F24="nominal",LOOKUP($F25,Nominal_to_Real,'Input|Rate of change'!R$26:R$32),INDEX('Input|Rate of change'!$C$14:$O$22,MATCH('Calc|Opex forecast'!$F24,'Input|Rate of change'!$C$14:$C$22,0),MATCH('Calc|Opex forecast'!$F25,'Input|Rate of change'!$C$14:$O$14,0)))*IF($E24="$millions",1000000,IF($E24="$000",1000,1))/IF($E25="$millions",1000000,IF($E25="$000",1000,1)) -> 0 | R25: =R24*IF($F24="nominal",LOOKUP($F25,Nominal_to_Real,'Input|Rate of change'!S$26:S$32),INDEX('Input|Rate of change'!$C$14:$O$22,MATCH('Calc|Opex forecast'!$F24,'Input|Rate of change'!$C$14:$C$22,0),MATCH('Calc|Opex forecast'!$F25,'Input|Rate of change'!$C$14:$O$14,0)))*IF($E24="$millions",1000000,IF($E24="$000",1000,1))/IF($E25="$millions",1000000,IF($E25="$000",1000,1)) -> 0 | S25: =S24*IF($F24="nominal",LOOKUP($F25,Nominal_to_Real,'Input|Rate of change'!T$26:T$32),INDEX('Input|Rate of change'!$C$14:$O$22,MATCH('Calc|Opex forecast'!$F24,'Input|Rate of change'!$C$14:$C$22,0),MATCH('Calc|Opex forecast'!$F25,'Input|Rate of change'!$C$14:$O$14,0)))*IF($E24="$millions",1000000,IF($E24="$000",1000,1))/IF($E25="$millions",1000000,IF($E25="$000",1000,1)) -> 0
C27: Efficiency adjustment | D27: calculated | E27: =$E$8 -> $millions | F27: =$F$8 -> 2015 | J27: =SUM(J19,J22,J25)*'Input|Reported opex'!$N$58 -> 0 | K27: =SUM(K19,K22,K25)*'Input|Reported opex'!$N$58 -> 0 | L27: =SUM(L19,L22,L25)*'Input|Reported opex'!$N$58 -> 0 | M27: =SUM(M19,M22,M25)*'Input|Reported opex'!$N$58 -> 0 | N27: =SUM(N19,N22,N25)*'Input|Reported opex'!$N$58 -> 0 | O27: =SUM(O19,O22,O25)*'Input|Reported opex'!$N$58 -> 0 | P27: =SUM(P19,P22,P25)*'Input|Reported opex'!$N$58 -> 0 | Q27: =SUM(Q19,Q22,Q25)*'Input|Reported opex'!$N$58 -> 0 | R27: =SUM(R19,R22,R25)*'Input|Reported opex'!$N$58 -> 0 | S27: =SUM(S19,S22,S25)*'Input|Reported opex'!$N$58 -> 0
C29: Efficiency adjustment final year opex | D29: calculated | E29: =$E$8 -> $millions | F29: =$F$8 -> 2015 | J29: =SUM(J19,J22,J25,J27) -> 0 | K29: 0 | L29: 0 | M29: 0 | N29: =SUM(N19,N22,N25,N27) -> 11.51123101 | O29: 0 | P29: 0 | Q29: 0 | R29: 0 | S29: =SUM(S19,S22,S25,S27) -> 0
B31: Calc | Rate of change
C33: Rate of change | D33: Source | E33: Unit | F33: Basis | J33: =IF(J$4>='Input|General'!$G$11,IF(J$4<='Input|General'!$G$12,'Input|Reported opex'!J$4,""),"") ->  | K33: =IF(K$4>='Input|General'!$G$11,IF(K$4<='Input|General'!$G$12,'Input|Reported opex'!K$4,""),"") ->  | L33: =IF(L$4>='Input|General'!$G$11,IF(L$4<='Input|General'!$G$12,'Input|Reported opex'!L$4,""),"") ->  | M33: =IF(M$4>='Input|General'!$G$11,IF(M$4<='Input|General'!$G$12,'Input|Reported opex'!M$4,""),"") ->  | N33: =IF(N$4>='Input|General'!$G$11,IF(N$4<='Input|General'!$G$12,'Input|Reported opex'!N$4,""),"") ->  | O33: =IF(O$4>='Input|General'!$G$11,IF(O$4<='Input|General'!$G$12,'Input|Reported opex'!O$4,""),"") -> 2016 | P33: =IF(P$4>='Input|General'!$G$11,IF(P$4<='Input|General'!$G$12,'Input|Reported opex'!P$4,""),"") -> 2017 | Q33: =IF(Q$4>='Input|General'!$G$11,IF(Q$4<='Input|General'!$G$12,'Input|Reported opex'!Q$4,""),"") -> 2018 | R33: =IF(R$4>='Input|General'!$G$11,IF(R$4<='Input|General'!$G$12,'Input|Reported opex'!R$4,""),"") -> 2019 | S33: =IF(S$4>='Input|General'!$G$11,IF(S$4<='Input|General'!$G$12,'Input|Reported opex'!S$4,""),"") -> 2020
C36: Forecast output change | D36: Calculated | E36: Per cent | F36: n/a | J36: =SUMPRODUCT('Input|Rate of change'!K73:K78,'Input|Rate of change'!$P$82:$P$87) -> 0 | K36: =SUMPRODUCT('Input|Rate of change'!L73:L78,'Input|Rate of change'!$P$82:$P$87) -> 0 | L36: =SUMPRODUCT('Input|Rate of change'!M73:M78,'Input|Rate of change'!$P$82:$P$87) -> 0 | M36: =SUMPRODUCT('Input|Rate of change'!N73:N78,'Input|Rate of change'!$P$82:$P$87) -> 0 | N36: =SUMPRODUCT('Input|Rate of change'!O73:O78,'Input|Rate of change'!$P$82:$P$87) -> 0 | O36: =SUMPRODUCT('Input|Rate of change'!P73:P78,'Input|Rate of change'!$P$82:$P$87) -> 0.02042339924 | P36: =SUMPRODUCT('Input|Rate of change'!Q73:Q78,'Input|Rate of change'!$P$82:$P$87) -> 0.01895064344 | Q36: =SUMPRODUCT('Input|Rate of change'!R73:R78,'Input|Rate of change'!$P$82:$P$87) -> 0.01900673231 | R36: =SUMPRODUCT('Input|Rate of change'!S73:S78,'Input|Rate of change'!$P$82:$P$87) -> 0.01877533505 | S36: =SUMPRODUCT('Input|Rate of change'!T73:T78,'Input|Rate of change'!$P$82:$P$87) -> 0.01802724884
C38: Forecast price change | D38: Calculated | E38: Per cent | F38: n/a | J38: =SUMPRODUCT('Input|Rate of change'!K38:K45,'Input|Rate of change'!K49:K56) -> 0 | K38: =SUMPRODUCT('Input|Rate of change'!L38:L45,'Input|Rate of change'!L49:L56) -> 0 | L38: =SUMPRODUCT('Input|Rate of change'!M38:M45,'Input|Rate of change'!M49:M56) -> 0 | M38: =SUMPRODUCT('Input|Rate of change'!N38:N45,'Input|Rate of change'!N49:N56) -> 0 | N38: =SUMPRODUCT('Input|Rate of change'!O38:O45,'Input|Rate of change'!O49:O56) -> 0 | O38: =SUMPRODUCT('Input|Rate of change'!P38:P45,'Input|Rate of change'!P49:P56) -> 0.003015313085 | P38: =SUMPRODUCT('Input|Rate of change'!Q38:Q45,'Input|Rate of change'!Q49:Q56) -> 0.006670301252 | Q38: =SUMPRODUCT('Input|Rate of change'!R38:R45,'Input|Rate of change'!R49:R56) -> 0.01063931769 | R38: =SUMPRODUCT('Input|Rate of change'!S38:S45,'Input|Rate of change'!S49:S56) -> 0.01230224376 | S38: =SUMPRODUCT('Input|Rate of change'!T38:T45,'Input|Rate of change'!T49:T56) -> 0.0113754068
C40: Forecast productivity change | D40: Calculated | E40: Per cent | F40: n/a | J40: ='Input|Rate of change'!K95 -> 0 | K40: ='Input|Rate of change'!L95 -> 0 | L40: ='Input|Rate of change'!M95 -> 0 | M40: ='Input|Rate of change'!N95 -> 0 | N40: ='Input|Rate of change'!O95 -> 0 | O40: ='Input|Rate of change'!P95 -> 0 | P40: ='Input|Rate of change'!Q95 -> 0 | Q40: ='Input|Rate of change'!R95 -> 0 | R40: ='Input|Rate of change'!S95 -> 0 | S40: ='Input|Rate of change'!T95 -> 0
C42: Forecast rate of change | D42: Calculated | E42: Per cent | F42: n/a | J42: =(1+J36)*(1+J38)*(1-J40)-1 -> 0 | K42: =(1+K36)*(1+K38)*(1-K40)-1 -> 0 | L42: 0 | M42: 0 | N42: 0 | O42: 0.02350029527 | P42: 0.02574735119 | Q42: 0.02984826866 | R42: 0.03130855756 | S42: 0.02960772293
B44: Calc | Step changes
C46: Step changes | D46: Source | E46: Unit | F46: Basis | J46: =IF(J$4>='Input|General'!$G$11,IF(J$4<='Input|General'!$G$12,'Input|Reported opex'!J$4,""),"") ->  | K46: =IF(K$4>='Input|General'!$G$11,IF(K$4<='Input|General'!$G$12,'Input|Reported opex'!K$4,""),"") ->  | L46: =IF(L$4>='Input|General'!$G$11,IF(L$4<='Input|General'!$G$12,'Input|Reported opex'!L$4,""),"") ->  | M46: =IF(M$4>='Input|General'!$G$11,IF(M$4<='Input|General'!$G$12,'Input|Reported opex'!M$4,""),"") ->  | N46: =IF(N$4>='Input|General'!$G$11,IF(N$4<='Input|General'!$G$12,'Input|Reported opex'!N$4,""),"") ->  | O46: =IF(O$4>='Input|General'!$G$11,IF(O$4<='Input|General'!$G$12,'Input|Reported opex'!O$4,""),"") -> 2016 | P46: =IF(P$4>='Input|General'!$G$11,IF(P$4<='Input|General'!$G$12,'Input|Reported opex'!P$4,""),"") -> 2017 | Q46: =IF(Q$4>='Input|General'!$G$11,IF(Q$4<='Input|General'!$G$12,'Input|Reported opex'!Q$4,""),"") -> 2018 | R46: =IF(R$4>='Input|General'!$G$11,IF(R$4<='Input|General'!$G$12,'Input|Reported opex'!R$4,""),"") -> 2019 | S46: =IF(S$4>='Input|General'!$G$11,IF(S$4<='Input|General'!$G$12,'Input|Reported opex'!S$4,""),"") -> 2020
C48: ='Input|Step changes'!C12 -> Power of Choice | D48: Calculated | E48: =$E$8 -> $millions | F48: =$F$8 -> 2015 | J48: ='Input|Step changes'!J12*IF('Input|Step changes'!$F12="nominal",LOOKUP($F48,Nominal_to_Real,'Input|Rate of change'!N$27:N$32),INDEX('Input|Rate of change'!$C$14:$O$22,MATCH('Input|Step changes'!$F12,'Input|Rate of change'!$C$14:$C$22,0),MATCH('Calc|Opex forecast'!$F48,'Input|Rate of change'!$C$14:$O$14,0)))*IF('Input|Step changes'!$E12="$millions",1000000,IF('Input|Step changes'!$E12="$000",1000,1))/IF($E48="$millions",1000000,IF($E48="$000",1000,1)) -> 0 | K48: ='Input|Step changes'!K12*IF('Input|Step changes'!$F12="nominal",LOOKUP($F48,Nominal_to_Real,'Input|Rate of change'!O$27:O$32),INDEX('Input|Rate of change'!$C$14:$O$22,MATCH('Input|Step changes'!$F12,'Input|Rate of change'!$C$14:$C$22,0),MATCH('Calc|Opex forecast'!$F48,'Input|Rate of change'!$C$14:$O$14,0)))*IF('Input|Step changes'!$E12="$millions",1000000,IF('Input|Step changes'!$E12="$000",1000,1))/IF($E48="$millions",1000000,IF($E48="$000",1000,1)) -> 0 | L48: ='Input|Step changes'!L12*IF('Input|Step changes'!$F12="nominal",LOOKUP($F48,Nominal_to_Real,'Input|Rate of change'!P$27:P$32),INDEX('Input|Rate of change'!$C$14:$O$22,MATCH('Input|Step changes'!$F12,'Input|Rate of change'!$C$14:$C$22,0),MATCH('Calc|Opex forecast'!$F48,'Input|Rate of change'!$C$14:$O$14,0)))*IF('Input|Step changes'!$E12="$millions",1000000,IF('Input|Step changes'!$E12="$000",1000,1))/IF($E48="$millions",1000000,IF($E48="$000",1000,1)) -> 0 | M48: ='Input|Step changes'!M12*IF('Input|Step changes'!$F12="nominal",LOOKUP($F48,Nominal_to_Real,'Input|Rate of change'!Q$27:Q$32),INDEX('Input|Rate of change'!$C$14:$O$22,MATCH('Input|Step changes'!$F12,'Input|Rate of change'!$C$14:$C$22,0),MATCH('Calc|Opex forecast'!$F48,'Input|Rate of change'!$C$14:$O$14,0)))*IF('Input|Step changes'!$E12="$millions",1000000,IF('Input|Step changes'!$E12="$000",1000,1))/IF($E48="$millions",1000000,IF($E48="$000",1000,1)) -> 0 | N48: ='Input|Step changes'!N12*IF('Input|Step changes'!$F12="nominal",LOOKUP($F48,Nominal_to_Real,'Input|Rate of change'!R$27:R$32),INDEX('Input|Rate of change'!$C$14:$O$22,MATCH('Input|Step changes'!$F12,'Input|Rate of change'!$C$14:$C$22,0),MATCH('Calc|Opex forecast'!$F48,'Input|Rate of change'!$C$14:$O$14,0)))*IF('Input|Step changes'!$E12="$millions",1000000,IF('Input|Step changes'!$E12="$000",1000,1))/IF($E48="$millions",1000000,IF($E48="$000",1000,1)) -> 0 | O48: ='Input|Step changes'!O12*IF('Input|Step changes'!$F12="nominal",LOOKUP($F48,Nominal_to_Real,'Input|Rate of change'!S$27:S$32),INDEX('Input|Rate of change'!$C$14:$O$22,MATCH('Input|Step changes'!$F12,'Input|Rate of change'!$C$14:$C$22,0),MATCH('Calc|Opex forecast'!$F48,'Input|Rate of change'!$C$14:$O$14,0)))*IF('Input|Step changes'!$E12="$millions",1000000,IF('Input|Step changes'!$E12="$000",1000,1))/IF($E48="$millions",1000000,IF($E48="$000",1000,1)) -> 0 | P48: ='Input|Step changes'!P12*IF('Input|Step changes'!$F12="nominal",LOOKUP($F48,Nominal_to_Real,'Input|Rate of change'!T$27:T$32),INDEX('Input|Rate of change'!$C$14:$O$22,MATCH('Input|Step changes'!$F12,'Input|Rate of change'!$C$14:$C$22,0),MATCH('Calc|Opex forecast'!$F48,'Input|Rate of change'!$C$14:$O$14,0)))*IF('Input|Step changes'!$E12="$millions",1000000,IF('Input|Step changes'!$E12="$000",1000,1))/IF($E48="$millions",1000000,IF($E48="$000",1000,1)) -> 0.35 | Q48: ='Input|Step changes'!Q12*IF('Input|Step changes'!$F12="nominal",LOOKUP($F48,Nominal_to_Real,'Input|Rate of change'!U$27:U$32),INDEX('Input|Rate of change'!$C$14:$O$22,MATCH('Input|Step changes'!$F12,'Input|Rate of change'!$C$14:$C$22,0),MATCH('Calc|Opex forecast'!$F48,'Input|Rate of change'!$C$14:$O$14,0)))*IF('Input|Step changes'!$E12="$millions",1000000,IF('Input|Step changes'!$E12="$000",1000,1))/IF($E48="$millions",1000000,IF($E48="$000",1000,1)) -> 0 | R48: ='Input|Step changes'!R12*IF('Input|Step changes'!$F12="nominal",LOOKUP($F48,Nominal_to_Real,'Input|Rate of change'!V$27:V$32),INDEX('Input|Rate of change'!$C$14:$O$22,MATCH('Input|Step changes'!$F12,'Input|Rate of change'!$C$14:$C$22,0),MATCH('Calc|Opex forecast'!$F48,'Input|Rate of change'!$C$14:$O$14,0)))*IF('Input|Step changes'!$E12="$millions",1000000,IF('Input|Step changes'!$E12="$000",1000,1))/IF($E48="$millions",1000000,IF($E48="$000",1000,1)) -> 0 | S48: ='Input|Step changes'!S12*IF('Input|Step changes'!$F12="nominal",LOOKUP($F48,Nominal_to_Real,'Input|Rate of change'!W$27:W$32),INDEX('Input|Rate of change'!$C$14:$O$22,MATCH('Input|Step changes'!$F12,'Input|Rate of change'!$C$14:$C$22,0),MATCH('Calc|Opex forecast'!$F48,'Input|Rate of change'!$C$14:$O$14,0)))*IF('Input|Step changes'!$E12="$millions",1000000,IF('Input|Step changes'!$E12="$000",1000,1))/IF($E48="$millions",1000000,IF($E48="$000",1000,1)) -> 0
C49: ='Input|Step changes'!C13 -> 0 | D49: Calculated | E49: $millions | F49: =$F$8 -> 2015 | J49: ='Input|Step changes'!J13*IF('Input|Step changes'!$F13="nominal",LOOKUP($F49,Nominal_to_Real,'Input|Rate of change'!N$27:N$32),INDEX('Input|Rate of change'!$C$14:$O$22,MATCH('Input|Step changes'!$F13,'Input|Rate of change'!$C$14:$C$22,0),MATCH('Calc|Opex forecast'!$F49,'Input|Rate of change'!$C$14:$O$14,0)))*IF('Input|Step changes'!$E13="$millions",1000000,IF('Input|Step changes'!$E13="$000",1000,1))/IF($E49="$millions",1000000,IF($E49="$000",1000,1)) -> 0 | K49: ='Input|Step changes'!K13*IF('Input|Step changes'!$F13="nominal",LOOKUP($F49,Nominal_to_Real,'Input|Rate of change'!O$27:O$32),INDEX('Input|Rate of change'!$C$14:$O$22,MATCH('Input|Step changes'!$F13,'Input|Rate of change'!$C$14:$C$22,0),MATCH('Calc|Opex forecast'!$F49,'Input|Rate of change'!$C$14:$O$14,0)))*IF('Input|Step changes'!$E13="$millions",1000000,IF('Input|Step changes'!$E13="$000",1000,1))/IF($E49="$millions",1000000,IF($E49="$000",1000,1)) -> 0 | L49: ='Input|Step changes'!L13*IF('Input|Step changes'!$F13="nominal",LOOKUP($F49,Nominal_to_Real,'Input|Rate of change'!P$27:P$32),INDEX('Input|Rate of change'!$C$14:$O$22,MATCH('Input|Step changes'!$F13,'Input|Rate of change'!$C$14:$C$22,0),MATCH('Calc|Opex forecast'!$F49,'Input|Rate of change'!$C$14:$O$14,0)))*IF('Input|Step changes'!$E13="$millions",1000000,IF('Input|Step changes'!$E13="$000",1000,1))/IF($E49="$millions",1000000,IF($E49="$000",1000,1)) -> 0 | M49: ='Input|Step changes'!M13*IF('Input|Step changes'!$F13="nominal",LOOKUP($F49,Nominal_to_Real,'Input|Rate of change'!Q$27:Q$32),INDEX('Input|Rate of change'!$C$14:$O$22,MATCH('Input|Step changes'!$F13,'Input|Rate of change'!$C$14:$C$22,0),MATCH('Calc|Opex forecast'!$F49,'Input|Rate of change'!$C$14:$O$14,0)))*IF('Input|Step changes'!$E13="$millions",1000000,IF('Input|Step changes'!$E13="$000",1000,1))/IF($E49="$millions",1000000,IF($E49="$000",1000,1)) -> 0 | N49: ='Input|Step changes'!N13*IF('Input|Step changes'!$F13="nominal",LOOKUP($F49,Nominal_to_Real,'Input|Rate of change'!R$27:R$32),INDEX('Input|Rate of change'!$C$14:$O$22,MATCH('Input|Step changes'!$F13,'Input|Rate of change'!$C$14:$C$22,0),MATCH('Calc|Opex forecast'!$F49,'Input|Rate of change'!$C$14:$O$14,0)))*IF('Input|Step changes'!$E13="$millions",1000000,IF('Input|Step changes'!$E13="$000",1000,1))/IF($E49="$millions",1000000,IF($E49="$000",1000,1)) -> 0 | O49: ='Input|Step changes'!O13*IF('Input|Step changes'!$F13="nominal",LOOKUP($F49,Nominal_to_Real,'Input|Rate of change'!S$27:S$32),INDEX('Input|Rate of change'!$C$14:$O$22,MATCH('Input|Step changes'!$F13,'Input|Rate of change'!$C$14:$C$22,0),MATCH('Calc|Opex forecast'!$F49,'Input|Rate of change'!$C$14:$O$14,0)))*IF('Input|Step changes'!$E13="$millions",1000000,IF('Input|Step changes'!$E13="$000",1000,1))/IF($E49="$millions",1000000,IF($E49="$000",1000,1)) -> 0 | P49: ='Input|Step changes'!P13*IF('Input|Step changes'!$F13="nominal",LOOKUP($F49,Nominal_to_Real,'Input|Rate of change'!T$27:T$32),INDEX('Input|Rate of change'!$C$14:$O$22,MATCH('Input|Step changes'!$F13,'Input|Rate of change'!$C$14:$C$22,0),MATCH('Calc|Opex forecast'!$F49,'Input|Rate of change'!$C$14:$O$14,0)))*IF('Input|Step changes'!$E13="$millions",1000000,IF('Input|Step changes'!$E13="$000",1000,1))/IF($E49="$millions",1000000,IF($E49="$000",1000,1)) -> 0 | Q49: ='Input|Step changes'!Q13*IF('Input|Step changes'!$F13="nominal",LOOKUP($F49,Nominal_to_Real,'Input|Rate of change'!U$27:U$32),INDEX('Input|Rate of change'!$C$14:$O$22,MATCH('Input|Step changes'!$F13,'Input|Rate of change'!$C$14:$C$22,0),MATCH('Calc|Opex forecast'!$F49,'Input|Rate of change'!$C$14:$O$14,0)))*IF('Input|Step changes'!$E13="$millions",1000000,IF('Input|Step changes'!$E13="$000",1000,1))/IF($E49="$millions",1000000,IF($E49="$000",1000,1)) -> 0 | R49: ='Input|Step changes'!R13*IF('Input|Step changes'!$F13="nominal",LOOKUP($F49,Nominal_to_Real,'Input|Rate of change'!V$27:V$32),INDEX('Input|Rate of change'!$C$14:$O$22,MATCH('Input|Step changes'!$F13,'Input|Rate of change'!$C$14:$C$22,0),MATCH('Calc|Opex forecast'!$F49,'Input|Rate of change'!$C$14:$O$14,0)))*IF('Input|Step changes'!$E13="$millions",1000000,IF('Input|Step changes'!$E13="$000",1000,1))/IF($E49="$millions",1000000,IF($E49="$000",1000,1)) -> 0 | S49: ='Input|Step changes'!S13*IF('Input|Step changes'!$F13="nominal",LOOKUP($F49,Nominal_to_Real,'Input|Rate of change'!W$27:W$32),INDEX('Input|Rate of change'!$C$14:$O$22,MATCH('Input|Step changes'!$F13,'Input|Rate of change'!$C$14:$C$22,0),MATCH('Calc|Opex forecast'!$F49,'Input|Rate of change'!$C$14:$O$14,0)))*IF('Input|Step changes'!$E13="$millions",1000000,IF('Input|Step changes'!$E13="$000",1000,1))/IF($E49="$millions",1000000,IF($E49="$000",1000,1)) -> 0
C50: ='Input|Step changes'!C14 -> 0 | D50: Calculated | E50: $millions | F50: 2015 | J50: ='Input|Step changes'!J14*IF('Input|Step changes'!$F14="nominal",LOOKUP($F50,Nominal_to_Real,'Input|Rate of change'!N$27:N$32),INDEX('Input|Rate of change'!$C$14:$O$22,MATCH('Input|Step changes'!$F14,'Input|Rate of change'!$C$14:$C$22,0),MATCH('Calc|Opex forecast'!$F50,'Input|Rate of change'!$C$14:$O$14,0)))*IF('Input|Step changes'!$E14="$millions",1000000,IF('Input|Step changes'!$E14="$000",1000,1))/IF($E50="$millions",1000000,IF($E50="$000",1000,1)) -> 0 | K50: ='Input|Step changes'!K14*IF('Input|Step changes'!$F14="nominal",LOOKUP($F50,Nominal_to_Real,'Input|Rate of change'!O$27:O$32),INDEX('Input|Rate of change'!$C$14:$O$22,MATCH('Input|Step changes'!$F14,'Input|Rate of change'!$C$14:$C$22,0),MATCH('Calc|Opex forecast'!$F50,'Input|Rate of change'!$C$14:$O$14,0)))*IF('Input|Step changes'!$E14="$millions",1000000,IF('Input|Step changes'!$E14="$000",1000,1))/IF($E50="$millions",1000000,IF($E50="$000",1000,1)) -> 0 | L50: ='Input|Step changes'!L14*IF('Input|Step changes'!$F14="nominal",LOOKUP($F50,Nominal_to_Real,'Input|Rate of change'!P$27:P$32),INDEX('Input|Rate of change'!$C$14:$O$22,MATCH('Input|Step changes'!$F14,'Input|Rate of change'!$C$14:$C$22,0),MATCH('Calc|Opex forecast'!$F50,'Input|Rate of change'!$C$14:$O$14,0)))*IF('Input|Step changes'!$E14="$millions",1000000,IF('Input|Step changes'!$E14="$000",1000,1))/IF($E50="$millions",1000000,IF($E50="$000",1000,1)) -> 0 | M50: ='Input|Step changes'!M14*IF('Input|Step changes'!$F14="nominal",LOOKUP($F50,Nominal_to_Real,'Input|Rate of change'!Q$27:Q$32),INDEX('Input|Rate of change'!$C$14:$O$22,MATCH('Input|Step changes'!$F14,'Input|Rate of change'!$C$14:$C$22,0),MATCH('Calc|Opex forecast'!$F50,'Input|Rate of change'!$C$14:$O$14,0)))*IF('Input|Step changes'!$E14="$millions",1000000,IF('Input|Step changes'!$E14="$000",1000,1))/IF($E50="$millions",1000000,IF($E50="$000",1000,1)) -> 0 | N50: ='Input|Step changes'!N14*IF('Input|Step changes'!$F14="nominal",LOOKUP($F50,Nominal_to_Real,'Input|Rate of change'!R$27:R$32),INDEX('Input|Rate of change'!$C$14:$O$22,MATCH('Input|Step changes'!$F14,'Input|Rate of change'!$C$14:$C$22,0),MATCH('Calc|Opex forecast'!$F50,'Input|Rate of change'!$C$14:$O$14,0)))*IF('Input|Step changes'!$E14="$millions",1000000,IF('Input|Step changes'!$E14="$000",1000,1))/IF($E50="$millions",1000000,IF($E50="$000",1000,1)) -> 0 | O50: ='Input|Step changes'!O14*IF('Input|Step changes'!$F14="nominal",LOOKUP($F50,Nominal_to_Real,'Input|Rate of change'!S$27:S$32),INDEX('Input|Rate of change'!$C$14:$O$22,MATCH('Input|Step changes'!$F14,'Input|Rate of change'!$C$14:$C$22,0),MATCH('Calc|Opex forecast'!$F50,'Input|Rate of change'!$C$14:$O$14,0)))*IF('Input|Step changes'!$E14="$millions",1000000,IF('Input|Step changes'!$E14="$000",1000,1))/IF($E50="$millions",1000000,IF($E50="$000",1000,1)) -> 0 | P50: ='Input|Step changes'!P14*IF('Input|Step changes'!$F14="nominal",LOOKUP($F50,Nominal_to_Real,'Input|Rate of change'!T$27:T$32),INDEX('Input|Rate of change'!$C$14:$O$22,MATCH('Input|Step changes'!$F14,'Input|Rate of change'!$C$14:$C$22,0),MATCH('Calc|Opex forecast'!$F50,'Input|Rate of change'!$C$14:$O$14,0)))*IF('Input|Step changes'!$E14="$millions",1000000,IF('Input|Step changes'!$E14="$000",1000,1))/IF($E50="$millions",1000000,IF($E50="$000",1000,1)) -> 0 | Q50: ='Input|Step changes'!Q14*IF('Input|Step changes'!$F14="nominal",LOOKUP($F50,Nominal_to_Real,'Input|Rate of change'!U$27:U$32),INDEX('Input|Rate of change'!$C$14:$O$22,MATCH('Input|Step changes'!$F14,'Input|Rate of change'!$C$14:$C$22,0),MATCH('Calc|Opex forecast'!$F50,'Input|Rate of change'!$C$14:$O$14,0)))*IF('Input|Step changes'!$E14="$millions",1000000,IF('Input|Step changes'!$E14="$000",1000,1))/IF($E50="$millions",1000000,IF($E50="$000",1000,1)) -> 0 | R50: ='Input|Step changes'!R14*IF('Input|Step changes'!$F14="nominal",LOOKUP($F50,Nominal_to_Real,'Input|Rate of change'!V$27:V$32),INDEX('Input|Rate of change'!$C$14:$O$22,MATCH('Input|Step changes'!$F14,'Input|Rate of change'!$C$14:$C$22,0),MATCH('Calc|Opex forecast'!$F50,'Input|Rate of change'!$C$14:$O$14,0)))*IF('Input|Step changes'!$E14="$millions",1000000,IF('Input|Step changes'!$E14="$000",1000,1))/IF($E50="$millions",1000000,IF($E50="$000",1000,1)) -> 0 | S50: ='Input|Step changes'!S14*IF('Input|Step changes'!$F14="nominal",LOOKUP($F50,Nominal_to_Real,'Input|Rate of change'!W$27:W$32),INDEX('Input|Rate of change'!$C$14:$O$22,MATCH('Input|Step changes'!$F14,'Input|Rate of change'!$C$14:$C$22,0),MATCH('Calc|Opex forecast'!$F50,'Input|Rate of change'!$C$14:$O$14,0)))*IF('Input|Step changes'!$E14="$millions",1000000,IF('Input|Step changes'!$E14="$000",1000,1))/IF($E50="$millions",1000000,IF($E50="$000",1000,1)) -> 0
C51: ='Input|Step changes'!C15 -> 0 | D51: Calculated | E51: $millions | F51: 2015 | J51: ='Input|Step changes'!J15*IF('Input|Step changes'!$F15="nominal",LOOKUP($F51,Nominal_to_Real,'Input|Rate of change'!N$27:N$32),INDEX('Input|Rate of change'!$C$14:$O$22,MATCH('Input|Step changes'!$F15,'Input|Rate of change'!$C$14:$C$22,0),MATCH('Calc|Opex forecast'!$F51,'Input|Rate of change'!$C$14:$O$14,0)))*IF('Input|Step changes'!$E15="$millions",1000000,IF('Input|Step changes'!$E15="$000",1000,1))/IF($E51="$millions",1000000,IF($E51="$000",1000,1)) -> 0 | K51: ='Input|Step changes'!K15*IF('Input|Step changes'!$F15="nominal",LOOKUP($F51,Nominal_to_Real,'Input|Rate of change'!O$27:O$32),INDEX('Input|Rate of change'!$C$14:$O$22,MATCH('Input|Step changes'!$F15,'Input|Rate of change'!$C$14:$C$22,0),MATCH('Calc|Opex forecast'!$F51,'Input|Rate of change'!$C$14:$O$14,0)))*IF('Input|Step changes'!$E15="$millions",1000000,IF('Input|Step changes'!$E15="$000",1000,1))/IF($E51="$millions",1000000,IF($E51="$000",1000,1)) -> 0 | L51: ='Input|Step changes'!L15*IF('Input|Step changes'!$F15="nominal",LOOKUP($F51,Nominal_to_Real,'Input|Rate of change'!P$27:P$32),INDEX('Input|Rate of change'!$C$14:$O$22,MATCH('Input|Step changes'!$F15,'Input|Rate of change'!$C$14:$C$22,0),MATCH('Calc|Opex forecast'!$F51,'Input|Rate of change'!$C$14:$O$14,0)))*IF('Input|Step changes'!$E15="$millions",1000000,IF('Input|Step changes'!$E15="$000",1000,1))/IF($E51="$millions",1000000,IF($E51="$000",1000,1)) -> 0 | M51: ='Input|Step changes'!M15*IF('Input|Step changes'!$F15="nominal",LOOKUP($F51,Nominal_to_Real,'Input|Rate of change'!Q$27:Q$32),INDEX('Input|Rate of change'!$C$14:$O$22,MATCH('Input|Step changes'!$F15,'Input|Rate of change'!$C$14:$C$22,0),MATCH('Calc|Opex forecast'!$F51,'Input|Rate of change'!$C$14:$O$14,0)))*IF('Input|Step changes'!$E15="$millions",1000000,IF('Input|Step changes'!$E15="$000",1000,1))/IF($E51="$millions",1000000,IF($E51="$000",1000,1)) -> 0 | N51: ='Input|Step changes'!N15*IF('Input|Step changes'!$F15="nominal",LOOKUP($F51,Nominal_to_Real,'Input|Rate of change'!R$27:R$32),INDEX('Input|Rate of change'!$C$14:$O$22,MATCH('Input|Step changes'!$F15,'Input|Rate of change'!$C$14:$C$22,0),MATCH('Calc|Opex forecast'!$F51,'Input|Rate of change'!$C$14:$O$14,0)))*IF('Input|Step changes'!$E15="$millions",1000000,IF('Input|Step changes'!$E15="$000",1000,1))/IF($E51="$millions",1000000,IF($E51="$000",1000,1)) -> 0 | O51: ='Input|Step changes'!O15*IF('Input|Step changes'!$F15="nominal",LOOKUP($F51,Nominal_to_Real,'Input|Rate of change'!S$27:S$32),INDEX('Input|Rate of change'!$C$14:$O$22,MATCH('Input|Step changes'!$F15,'Input|Rate of change'!$C$14:$C$22,0),MATCH('Calc|Opex forecast'!$F51,'Input|Rate of change'!$C$14:$O$14,0)))*IF('Input|Step changes'!$E15="$millions",1000000,IF('Input|Step changes'!$E15="$000",1000,1))/IF($E51="$millions",1000000,IF($E51="$000",1000,1)) -> 0 | P51: ='Input|Step changes'!P15*IF('Input|Step changes'!$F15="nominal",LOOKUP($F51,Nominal_to_Real,'Input|Rate of change'!T$27:T$32),INDEX('Input|Rate of change'!$C$14:$O$22,MATCH('Input|Step changes'!$F15,'Input|Rate of change'!$C$14:$C$22,0),MATCH('Calc|Opex forecast'!$F51,'Input|Rate of change'!$C$14:$O$14,0)))*IF('Input|Step changes'!$E15="$millions",1000000,IF('Input|Step changes'!$E15="$000",1000,1))/IF($E51="$millions",1000000,IF($E51="$000",1000,1)) -> 0 | Q51: ='Input|Step changes'!Q15*IF('Input|Step changes'!$F15="nominal",LOOKUP($F51,Nominal_to_Real,'Input|Rate of change'!U$27:U$32),INDEX('Input|Rate of change'!$C$14:$O$22,MATCH('Input|Step changes'!$F15,'Input|Rate of change'!$C$14:$C$22,0),MATCH('Calc|Opex forecast'!$F51,'Input|Rate of change'!$C$14:$O$14,0)))*IF('Input|Step changes'!$E15="$millions",1000000,IF('Input|Step changes'!$E15="$000",1000,1))/IF($E51="$millions",1000000,IF($E51="$000",1000,1)) -> 0 | R51: ='Input|Step changes'!R15*IF('Input|Step changes'!$F15="nominal",LOOKUP($F51,Nominal_to_Real,'Input|Rate of change'!V$27:V$32),INDEX('Input|Rate of change'!$C$14:$O$22,MATCH('Input|Step changes'!$F15,'Input|Rate of change'!$C$14:$C$22,0),MATCH('Calc|Opex forecast'!$F51,'Input|Rate of change'!$C$14:$O$14,0)))*IF('Input|Step changes'!$E15="$millions",1000000,IF('Input|Step changes'!$E15="$000",1000,1))/IF($E51="$millions",1000000,IF($E51="$000",1000,1)) -> 0 | S51: ='Input|Step changes'!S15*IF('Input|Step changes'!$F15="nominal",LOOKUP($F51,Nominal_to_Real,'Input|Rate of change'!W$27:W$32),INDEX('Input|Rate of change'!$C$14:$O$22,MATCH('Input|Step changes'!$F15,'Input|Rate of change'!$C$14:$C$22,0),MATCH('Calc|Opex forecast'!$F51,'Input|Rate of change'!$C$14:$O$14,0)))*IF('Input|Step changes'!$E15="$millions",1000000,IF('Input|Step changes'!$E15="$000",1000,1))/IF($E51="$millions",1000000,IF($E51="$000",1000,1)) -> 0
C52: ='Input|Step changes'!C16 -> 0 | D52: Calculated | E52: $millions | F52: 2015 | J52: ='Input|Step changes'!J16*IF('Input|Step changes'!$F16="nominal",LOOKUP($F52,Nominal_to_Real,'Input|Rate of change'!N$27:N$32),INDEX('Input|Rate of change'!$C$14:$O$22,MATCH('Input|Step changes'!$F16,'Input|Rate of change'!$C$14:$C$22,0),MATCH('Calc|Opex forecast'!$F52,'Input|Rate of change'!$C$14:$O$14,0)))*IF('Input|Step changes'!$E16="$millions",1000000,IF('Input|Step changes'!$E16="$000",1000,1))/IF($E52="$millions",1000000,IF($E52="$000",1000,1)) -> 0 | K52: ='Input|Step changes'!K16*IF('Input|Step changes'!$F16="nominal",LOOKUP($F52,Nominal_to_Real,'Input|Rate of change'!O$27:O$32),INDEX('Input|Rate of change'!$C$14:$O$22,MATCH('Input|Step changes'!$F16,'Input|Rate of change'!$C$14:$C$22,0),MATCH('Calc|Opex forecast'!$F52,'Input|Rate of change'!$C$14:$O$14,0)))*IF('Input|Step changes'!$E16="$millions",1000000,IF('Input|Step changes'!$E16="$000",1000,1))/IF($E52="$millions",1000000,IF($E52="$000",1000,1)) -> 0 | L52: ='Input|Step changes'!L16*IF('Input|Step changes'!$F16="nominal",LOOKUP($F52,Nominal_to_Real,'Input|Rate of change'!P$27:P$32),INDEX('Input|Rate of change'!$C$14:$O$22,MATCH('Input|Step changes'!$F16,'Input|Rate of change'!$C$14:$C$22,0),MATCH('Calc|Opex forecast'!$F52,'Input|Rate of change'!$C$14:$O$14,0)))*IF('Input|Step changes'!$E16="$millions",1000000,IF('Input|Step changes'!$E16="$000",1000,1))/IF($E52="$millions",1000000,IF($E52="$000",1000,1)) -> 0 | M52: ='Input|Step changes'!M16*IF('Input|Step changes'!$F16="nominal",LOOKUP($F52,Nominal_to_Real,'Input|Rate of change'!Q$27:Q$32),INDEX('Input|Rate of change'!$C$14:$O$22,MATCH('Input|Step changes'!$F16,'Input|Rate of change'!$C$14:$C$22,0),MATCH('Calc|Opex forecast'!$F52,'Input|Rate of change'!$C$14:$O$14,0)))*IF('Input|Step changes'!$E16="$millions",1000000,IF('Input|Step changes'!$E16="$000",1000,1))/IF($E52="$millions",1000000,IF($E52="$000",1000,1)) -> 0 | N52: ='Input|Step changes'!N16*IF('Input|Step changes'!$F16="nominal",LOOKUP($F52,Nominal_to_Real,'Input|Rate of change'!R$27:R$32),INDEX('Input|Rate of change'!$C$14:$O$22,MATCH('Input|Step changes'!$F16,'Input|Rate of change'!$C$14:$C$22,0),MATCH('Calc|Opex forecast'!$F52,'Input|Rate of change'!$C$14:$O$14,0)))*IF('Input|Step changes'!$E16="$millions",1000000,IF('Input|Step changes'!$E16="$000",1000,1))/IF($E52="$millions",1000000,IF($E52="$000",1000,1)) -> 0 | O52: ='Input|Step changes'!O16*IF('Input|Step changes'!$F16="nominal",LOOKUP($F52,Nominal_to_Real,'Input|Rate of change'!S$27:S$32),INDEX('Input|Rate of change'!$C$14:$O$22,MATCH('Input|Step changes'!$F16,'Input|Rate of change'!$C$14:$C$22,0),MATCH('Calc|Opex forecast'!$F52,'Input|Rate of change'!$C$14:$O$14,0)))*IF('Input|Step changes'!$E16="$millions",1000000,IF('Input|Step changes'!$E16="$000",1000,1))/IF($E52="$millions",1000000,IF($E52="$000",1000,1)) -> 0 | P52: ='Input|Step changes'!P16*IF('Input|Step changes'!$F16="nominal",LOOKUP($F52,Nominal_to_Real,'Input|Rate of change'!T$27:T$32),INDEX('Input|Rate of change'!$C$14:$O$22,MATCH('Input|Step changes'!$F16,'Input|Rate of change'!$C$14:$C$22,0),MATCH('Calc|Opex forecast'!$F52,'Input|Rate of change'!$C$14:$O$14,0)))*IF('Input|Step changes'!$E16="$millions",1000000,IF('Input|Step changes'!$E16="$000",1000,1))/IF($E52="$millions",1000000,IF($E52="$000",1000,1)) -> 0 | Q52: ='Input|Step changes'!Q16*IF('Input|Step changes'!$F16="nominal",LOOKUP($F52,Nominal_to_Real,'Input|Rate of change'!U$27:U$32),INDEX('Input|Rate of change'!$C$14:$O$22,MATCH('Input|Step changes'!$F16,'Input|Rate of change'!$C$14:$C$22,0),MATCH('Calc|Opex forecast'!$F52,'Input|Rate of change'!$C$14:$O$14,0)))*IF('Input|Step changes'!$E16="$millions",1000000,IF('Input|Step changes'!$E16="$000",1000,1))/IF($E52="$millions",1000000,IF($E52="$000",1000,1)) -> 0 | R52: ='Input|Step changes'!R16*IF('Input|Step changes'!$F16="nominal",LOOKUP($F52,Nominal_to_Real,'Input|Rate of change'!V$27:V$32),INDEX('Input|Rate of change'!$C$14:$O$22,MATCH('Input|Step changes'!$F16,'Input|Rate of change'!$C$14:$C$22,0),MATCH('Calc|Opex forecast'!$F52,'Input|Rate of change'!$C$14:$O$14,0)))*IF('Input|Step changes'!$E16="$millions",1000000,IF('Input|Step changes'!$E16="$000",1000,1))/IF($E52="$millions",1000000,IF($E52="$000",1000,1)) -> 0 | S52: ='Input|Step changes'!S16*IF('Input|Step changes'!$F16="nominal",LOOKUP($F52,Nominal_to_Real,'Input|Rate of change'!W$27:W$32),INDEX('Input|Rate of change'!$C$14:$O$22,MATCH('Input|Step changes'!$F16,'Input|Rate of change'!$C$14:$C$22,0),MATCH('Calc|Opex forecast'!$F52,'Input|Rate of change'!$C$14:$O$14,0)))*IF('Input|Step changes'!$E16="$millions",1000000,IF('Input|Step changes'!$E16="$000",1000,1))/IF($E52="$millions",1000000,IF($E52="$000",1000,1)) -> 0
C53: ='Input|Step changes'!C17 -> 0 | D53: Calculated | E53: $millions | F53: 2015 | J53: ='Input|Step changes'!J17*IF('Input|Step changes'!$F17="nominal",LOOKUP($F53,Nominal_to_Real,'Input|Rate of change'!N$27:N$32),INDEX('Input|Rate of change'!$C$14:$O$22,MATCH('Input|Step changes'!$F17,'Input|Rate of change'!$C$14:$C$22,0),MATCH('Calc|Opex forecast'!$F53,'Input|Rate of change'!$C$14:$O$14,0)))*IF('Input|Step changes'!$E17="$millions",1000000,IF('Input|Step changes'!$E17="$000",1000,1))/IF($E53="$millions",1000000,IF($E53="$000",1000,1)) -> 0 | K53: ='Input|Step changes'!K17*IF('Input|Step changes'!$F17="nominal",LOOKUP($F53,Nominal_to_Real,'Input|Rate of change'!O$27:O$32),INDEX('Input|Rate of change'!$C$14:$O$22,MATCH('Input|Step changes'!$F17,'Input|Rate of change'!$C$14:$C$22,0),MATCH('Calc|Opex forecast'!$F53,'Input|Rate of change'!$C$14:$O$14,0)))*IF('Input|Step changes'!$E17="$millions",1000000,IF('Input|Step changes'!$E17="$000",1000,1))/IF($E53="$millions",1000000,IF($E53="$000",1000,1)) -> 0 | L53: ='Input|Step changes'!L17*IF('Input|Step changes'!$F17="nominal",LOOKUP($F53,Nominal_to_Real,'Input|Rate of change'!P$27:P$32),INDEX('Input|Rate of change'!$C$14:$O$22,MATCH('Input|Step changes'!$F17,'Input|Rate of change'!$C$14:$C$22,0),MATCH('Calc|Opex forecast'!$F53,'Input|Rate of change'!$C$14:$O$14,0)))*IF('Input|Step changes'!$E17="$millions",1000000,IF('Input|Step changes'!$E17="$000",1000,1))/IF($E53="$millions",1000000,IF($E53="$000",1000,1)) -> 0 | M53: ='Input|Step changes'!M17*IF('Input|Step changes'!$F17="nominal",LOOKUP($F53,Nominal_to_Real,'Input|Rate of change'!Q$27:Q$32),INDEX('Input|Rate of change'!$C$14:$O$22,MATCH('Input|Step changes'!$F17,'Input|Rate of change'!$C$14:$C$22,0),MATCH('Calc|Opex forecast'!$F53,'Input|Rate of change'!$C$14:$O$14,0)))*IF('Input|Step changes'!$E17="$millions",1000000,IF('Input|Step changes'!$E17="$000",1000,1))/IF($E53="$millions",1000000,IF($E53="$000",1000,1)) -> 0 | N53: ='Input|Step changes'!N17*IF('Input|Step changes'!$F17="nominal",LOOKUP($F53,Nominal_to_Real,'Input|Rate of change'!R$27:R$32),INDEX('Input|Rate of change'!$C$14:$O$22,MATCH('Input|Step changes'!$F17,'Input|Rate of change'!$C$14:$C$22,0),MATCH('Calc|Opex forecast'!$F53,'Input|Rate of change'!$C$14:$O$14,0)))*IF('Input|Step changes'!$E17="$millions",1000000,IF('Input|Step changes'!$E17="$000",1000,1))/IF($E53="$millions",1000000,IF($E53="$000",1000,1)) -> 0 | O53: ='Input|Step changes'!O17*IF('Input|Step changes'!$F17="nominal",LOOKUP($F53,Nominal_to_Real,'Input|Rate of change'!S$27:S$32),INDEX('Input|Rate of change'!$C$14:$O$22,MATCH('Input|Step changes'!$F17,'Input|Rate of change'!$C$14:$C$22,0),MATCH('Calc|Opex forecast'!$F53,'Input|Rate of change'!$C$14:$O$14,0)))*IF('Input|Step changes'!$E17="$millions",1000000,IF('Input|Step changes'!$E17="$000",1000,1))/IF($E53="$millions",1000000,IF($E53="$000",1000,1)) -> 0 | P53: ='Input|Step changes'!P17*IF('Input|Step changes'!$F17="nominal",LOOKUP($F53,Nominal_to_Real,'Input|Rate of change'!T$27:T$32),INDEX('Input|Rate of change'!$C$14:$O$22,MATCH('Input|Step changes'!$F17,'Input|Rate of change'!$C$14:$C$22,0),MATCH('Calc|Opex forecast'!$F53,'Input|Rate of change'!$C$14:$O$14,0)))*IF('Input|Step changes'!$E17="$millions",1000000,IF('Input|Step changes'!$E17="$000",1000,1))/IF($E53="$millions",1000000,IF($E53="$000",1000,1)) -> 0 | Q53: ='Input|Step changes'!Q17*IF('Input|Step changes'!$F17="nominal",LOOKUP($F53,Nominal_to_Real,'Input|Rate of change'!U$27:U$32),INDEX('Input|Rate of change'!$C$14:$O$22,MATCH('Input|Step changes'!$F17,'Input|Rate of change'!$C$14:$C$22,0),MATCH('Calc|Opex forecast'!$F53,'Input|Rate of change'!$C$14:$O$14,0)))*IF('Input|Step changes'!$E17="$millions",1000000,IF('Input|Step changes'!$E17="$000",1000,1))/IF($E53="$millions",1000000,IF($E53="$000",1000,1)) -> 0 | R53: ='Input|Step changes'!R17*IF('Input|Step changes'!$F17="nominal",LOOKUP($F53,Nominal_to_Real,'Input|Rate of change'!V$27:V$32),INDEX('Input|Rate of change'!$C$14:$O$22,MATCH('Input|Step changes'!$F17,'Input|Rate of change'!$C$14:$C$22,0),MATCH('Calc|Opex forecast'!$F53,'Input|Rate of change'!$C$14:$O$14,0)))*IF('Input|Step changes'!$E17="$millions",1000000,IF('Input|Step changes'!$E17="$000",1000,1))/IF($E53="$millions",1000000,IF($E53="$000",1000,1)) -> 0 | S53: ='Input|Step changes'!S17*IF('Input|Step changes'!$F17="nominal",LOOKUP($F53,Nominal_to_Real,'Input|Rate of change'!W$27:W$32),INDEX('Input|Rate of change'!$C$14:$O$22,MATCH('Input|Step changes'!$F17,'Input|Rate of change'!$C$14:$C$22,0),MATCH('Calc|Opex forecast'!$F53,'Input|Rate of change'!$C$14:$O$14,0)))*IF('Input|Step changes'!$E17="$millions",1000000,IF('Input|Step changes'!$E17="$000",1000,1))/IF($E53="$millions",1000000,IF($E53="$000",1000,1)) -> 0
C54: ='Input|Step changes'!C18 -> 0 | D54: Calculated | E54: $millions | F54: 2015 | J54: ='Input|Step changes'!J18*IF('Input|Step changes'!$F18="nominal",LOOKUP($F54,Nominal_to_Real,'Input|Rate of change'!N$27:N$32),INDEX('Input|Rate of change'!$C$14:$O$22,MATCH('Input|Step changes'!$F18,'Input|Rate of change'!$C$14:$C$22,0),MATCH('Calc|Opex forecast'!$F54,'Input|Rate of change'!$C$14:$O$14,0)))*IF('Input|Step changes'!$E18="$millions",1000000,IF('Input|Step changes'!$E18="$000",1000,1))/IF($E54="$millions",1000000,IF($E54="$000",1000,1)) -> 0 | K54: ='Input|Step changes'!K18*IF('Input|Step changes'!$F18="nominal",LOOKUP($F54,Nominal_to_Real,'Input|Rate of change'!O$27:O$32),INDEX('Input|Rate of change'!$C$14:$O$22,MATCH('Input|Step changes'!$F18,'Input|Rate of change'!$C$14:$C$22,0),MATCH('Calc|Opex forecast'!$F54,'Input|Rate of change'!$C$14:$O$14,0)))*IF('Input|Step changes'!$E18="$millions",1000000,IF('Input|Step changes'!$E18="$000",1000,1))/IF($E54="$millions",1000000,IF($E54="$000",1000,1)) -> 0 | L54: ='Input|Step changes'!L18*IF('Input|Step changes'!$F18="nominal",LOOKUP($F54,Nominal_to_Real,'Input|Rate of change'!P$27:P$32),INDEX('Input|Rate of change'!$C$14:$O$22,MATCH('Input|Step changes'!$F18,'Input|Rate of change'!$C$14:$C$22,0),MATCH('Calc|Opex forecast'!$F54,'Input|Rate of change'!$C$14:$O$14,0)))*IF('Input|Step changes'!$E18="$millions",1000000,IF('Input|Step changes'!$E18="$000",1000,1))/IF($E54="$millions",1000000,IF($E54="$000",1000,1)) -> 0 | M54: ='Input|Step changes'!M18*IF('Input|Step changes'!$F18="nominal",LOOKUP($F54,Nominal_to_Real,'Input|Rate of change'!Q$27:Q$32),INDEX('Input|Rate of change'!$C$14:$O$22,MATCH('Input|Step changes'!$F18,'Input|Rate of change'!$C$14:$C$22,0),MATCH('Calc|Opex forecast'!$F54,'Input|Rate of change'!$C$14:$O$14,0)))*IF('Input|Step changes'!$E18="$millions",1000000,IF('Input|Step changes'!$E18="$000",1000,1))/IF($E54="$millions",1000000,IF($E54="$000",1000,1)) -> 0 | N54: ='Input|Step changes'!N18*IF('Input|Step changes'!$F18="nominal",LOOKUP($F54,Nominal_to_Real,'Input|Rate of change'!R$27:R$32),INDEX('Input|Rate of change'!$C$14:$O$22,MATCH('Input|Step changes'!$F18,'Input|Rate of change'!$C$14:$C$22,0),MATCH('Calc|Opex forecast'!$F54,'Input|Rate of change'!$C$14:$O$14,0)))*IF('Input|Step changes'!$E18="$millions",1000000,IF('Input|Step changes'!$E18="$000",1000,1))/IF($E54="$millions",1000000,IF($E54="$000",1000,1)) -> 0 | O54: ='Input|Step changes'!O18*IF('Input|Step changes'!$F18="nominal",LOOKUP($F54,Nominal_to_Real,'Input|Rate of change'!S$27:S$32),INDEX('Input|Rate of change'!$C$14:$O$22,MATCH('Input|Step changes'!$F18,'Input|Rate of change'!$C$14:$C$22,0),MATCH('Calc|Opex forecast'!$F54,'Input|Rate of change'!$C$14:$O$14,0)))*IF('Input|Step changes'!$E18="$millions",1000000,IF('Input|Step changes'!$E18="$000",1000,1))/IF($E54="$millions",1000000,IF($E54="$000",1000,1)) -> 0 | P54: ='Input|Step changes'!P18*IF('Input|Step changes'!$F18="nominal",LOOKUP($F54,Nominal_to_Real,'Input|Rate of change'!T$27:T$32),INDEX('Input|Rate of change'!$C$14:$O$22,MATCH('Input|Step changes'!$F18,'Input|Rate of change'!$C$14:$C$22,0),MATCH('Calc|Opex forecast'!$F54,'Input|Rate of change'!$C$14:$O$14,0)))*IF('Input|Step changes'!$E18="$millions",1000000,IF('Input|Step changes'!$E18="$000",1000,1))/IF($E54="$millions",1000000,IF($E54="$000",1000,1)) -> 0 | Q54: ='Input|Step changes'!Q18*IF('Input|Step changes'!$F18="nominal",LOOKUP($F54,Nominal_to_Real,'Input|Rate of change'!U$27:U$32),INDEX('Input|Rate of change'!$C$14:$O$22,MATCH('Input|Step changes'!$F18,'Input|Rate of change'!$C$14:$C$22,0),MATCH('Calc|Opex forecast'!$F54,'Input|Rate of change'!$C$14:$O$14,0)))*IF('Input|Step changes'!$E18="$millions",1000000,IF('Input|Step changes'!$E18="$000",1000,1))/IF($E54="$millions",1000000,IF($E54="$000",1000,1)) -> 0 | R54: ='Input|Step changes'!R18*IF('Input|Step changes'!$F18="nominal",LOOKUP($F54,Nominal_to_Real,'Input|Rate of change'!V$27:V$32),INDEX('Input|Rate of change'!$C$14:$O$22,MATCH('Input|Step changes'!$F18,'Input|Rate of change'!$C$14:$C$22,0),MATCH('Calc|Opex forecast'!$F54,'Input|Rate of change'!$C$14:$O$14,0)))*IF('Input|Step changes'!$E18="$millions",1000000,IF('Input|Step changes'!$E18="$000",1000,1))/IF($E54="$millions",1000000,IF($E54="$000",1000,1)) -> 0 | S54: ='Input|Step changes'!S18*IF('Input|Step changes'!$F18="nominal",LOOKUP($F54,Nominal_to_Real,'Input|Rate of change'!W$27:W$32),INDEX('Input|Rate of change'!$C$14:$O$22,MATCH('Input|Step changes'!$F18,'Input|Rate of change'!$C$14:$C$22,0),MATCH('Calc|Opex forecast'!$F54,'Input|Rate of change'!$C$14:$O$14,0)))*IF('Input|Step changes'!$E18="$millions",1000000,IF('Input|Step changes'!$E18="$000",1000,1))/IF($E54="$millions",1000000,IF($E54="$000",1000,1)) -> 0
C55: ='Input|Step changes'!C19 -> 0 | D55: Calculated | E55: $millions | F55: 2015 | J55: ='Input|Step changes'!J19*IF('Input|Step changes'!$F19="nominal",LOOKUP($F55,Nominal_to_Real,'Input|Rate of change'!N$27:N$32),INDEX('Input|Rate of change'!$C$14:$O$22,MATCH('Input|Step changes'!$F19,'Input|Rate of change'!$C$14:$C$22,0),MATCH('Calc|Opex forecast'!$F55,'Input|Rate of change'!$C$14:$O$14,0)))*IF('Input|Step changes'!$E19="$millions",1000000,IF('Input|Step changes'!$E19="$000",1000,1))/IF($E55="$millions",1000000,IF($E55="$000",1000,1)) -> 0 | K55: ='Input|Step changes'!K19*IF('Input|Step changes'!$F19="nominal",LOOKUP($F55,Nominal_to_Real,'Input|Rate of change'!O$27:O$32),INDEX('Input|Rate of change'!$C$14:$O$22,MATCH('Input|Step changes'!$F19,'Input|Rate of change'!$C$14:$C$22,0),MATCH('Calc|Opex forecast'!$F55,'Input|Rate of change'!$C$14:$O$14,0)))*IF('Input|Step changes'!$E19="$millions",1000000,IF('Input|Step changes'!$E19="$000",1000,1))/IF($E55="$millions",1000000,IF($E55="$000",1000,1)) -> 0 | L55: ='Input|Step changes'!L19*IF('Input|Step changes'!$F19="nominal",LOOKUP($F55,Nominal_to_Real,'Input|Rate of change'!P$27:P$32),INDEX('Input|Rate of change'!$C$14:$O$22,MATCH('Input|Step changes'!$F19,'Input|Rate of change'!$C$14:$C$22,0),MATCH('Calc|Opex forecast'!$F55,'Input|Rate of change'!$C$14:$O$14,0)))*IF('Input|Step changes'!$E19="$millions",1000000,IF('Input|Step changes'!$E19="$000",1000,1))/IF($E55="$millions",1000000,IF($E55="$000",1000,1)) -> 0 | M55: ='Input|Step changes'!M19*IF('Input|Step changes'!$F19="nominal",LOOKUP($F55,Nominal_to_Real,'Input|Rate of change'!Q$27:Q$32),INDEX('Input|Rate of change'!$C$14:$O$22,MATCH('Input|Step changes'!$F19,'Input|Rate of change'!$C$14:$C$22,0),MATCH('Calc|Opex forecast'!$F55,'Input|Rate of change'!$C$14:$O$14,0)))*IF('Input|Step changes'!$E19="$millions",1000000,IF('Input|Step changes'!$E19="$000",1000,1))/IF($E55="$millions",1000000,IF($E55="$000",1000,1)) -> 0 | N55: ='Input|Step changes'!N19*IF('Input|Step changes'!$F19="nominal",LOOKUP($F55,Nominal_to_Real,'Input|Rate of change'!R$27:R$32),INDEX('Input|Rate of change'!$C$14:$O$22,MATCH('Input|Step changes'!$F19,'Input|Rate of change'!$C$14:$C$22,0),MATCH('Calc|Opex forecast'!$F55,'Input|Rate of change'!$C$14:$O$14,0)))*IF('Input|Step changes'!$E19="$millions",1000000,IF('Input|Step changes'!$E19="$000",1000,1))/IF($E55="$millions",1000000,IF($E55="$000",1000,1)) -> 0 | O55: ='Input|Step changes'!O19*IF('Input|Step changes'!$F19="nominal",LOOKUP($F55,Nominal_to_Real,'Input|Rate of change'!S$27:S$32),INDEX('Input|Rate of change'!$C$14:$O$22,MATCH('Input|Step changes'!$F19,'Input|Rate of change'!$C$14:$C$22,0),MATCH('Calc|Opex forecast'!$F55,'Input|Rate of change'!$C$14:$O$14,0)))*IF('Input|Step changes'!$E19="$millions",1000000,IF('Input|Step changes'!$E19="$000",1000,1))/IF($E55="$millions",1000000,IF($E55="$000",1000,1)) -> 0 | P55: ='Input|Step changes'!P19*IF('Input|Step changes'!$F19="nominal",LOOKUP($F55,Nominal_to_Real,'Input|Rate of change'!T$27:T$32),INDEX('Input|Rate of change'!$C$14:$O$22,MATCH('Input|Step changes'!$F19,'Input|Rate of change'!$C$14:$C$22,0),MATCH('Calc|Opex forecast'!$F55,'Input|Rate of change'!$C$14:$O$14,0)))*IF('Input|Step changes'!$E19="$millions",1000000,IF('Input|Step changes'!$E19="$000",1000,1))/IF($E55="$millions",1000000,IF($E55="$000",1000,1)) -> 0 | Q55: ='Input|Step changes'!Q19*IF('Input|Step changes'!$F19="nominal",LOOKUP($F55,Nominal_to_Real,'Input|Rate of change'!U$27:U$32),INDEX('Input|Rate of change'!$C$14:$O$22,MATCH('Input|Step changes'!$F19,'Input|Rate of change'!$C$14:$C$22,0),MATCH('Calc|Opex forecast'!$F55,'Input|Rate of change'!$C$14:$O$14,0)))*IF('Input|Step changes'!$E19="$millions",1000000,IF('Input|Step changes'!$E19="$000",1000,1))/IF($E55="$millions",1000000,IF($E55="$000",1000,1)) -> 0 | R55: ='Input|Step changes'!R19*IF('Input|Step changes'!$F19="nominal",LOOKUP($F55,Nominal_to_Real,'Input|Rate of change'!V$27:V$32),INDEX('Input|Rate of change'!$C$14:$O$22,MATCH('Input|Step changes'!$F19,'Input|Rate of change'!$C$14:$C$22,0),MATCH('Calc|Opex forecast'!$F55,'Input|Rate of change'!$C$14:$O$14,0)))*IF('Input|Step changes'!$E19="$millions",1000000,IF('Input|Step changes'!$E19="$000",1000,1))/IF($E55="$millions",1000000,IF($E55="$000",1000,1)) -> 0 | S55: ='Input|Step changes'!S19*IF('Input|Step changes'!$F19="nominal",LOOKUP($F55,Nominal_to_Real,'Input|Rate of change'!W$27:W$32),INDEX('Input|Rate of change'!$C$14:$O$22,MATCH('Input|Step changes'!$F19,'Input|Rate of change'!$C$14:$C$22,0),MATCH('Calc|Opex forecast'!$F55,'Input|Rate of change'!$C$14:$O$14,0)))*IF('Input|Step changes'!$E19="$millions",1000000,IF('Input|Step changes'!$E19="$000",1000,1))/IF($E55="$millions",1000000,IF($E55="$000",1000,1)) -> 0
C56: ='Input|Step changes'!C20 -> 0 | D56: Calculated | E56: $millions | F56: 2015 | J56: ='Input|Step changes'!J20*IF('Input|Step changes'!$F20="nominal",LOOKUP($F56,Nominal_to_Real,'Input|Rate of change'!N$27:N$32),INDEX('Input|Rate of change'!$C$14:$O$22,MATCH('Input|Step changes'!$F20,'Input|Rate of change'!$C$14:$C$22,0),MATCH('Calc|Opex forecast'!$F56,'Input|Rate of change'!$C$14:$O$14,0)))*IF('Input|Step changes'!$E20="$millions",1000000,IF('Input|Step changes'!$E20="$000",1000,1))/IF($E56="$millions",1000000,IF($E56="$000",1000,1)) -> 0 | K56: ='Input|Step changes'!K20*IF('Input|Step changes'!$F20="nominal",LOOKUP($F56,Nominal_to_Real,'Input|Rate of change'!O$27:O$32),INDEX('Input|Rate of change'!$C$14:$O$22,MATCH('Input|Step changes'!$F20,'Input|Rate of change'!$C$14:$C$22,0),MATCH('Calc|Opex forecast'!$F56,'Input|Rate of change'!$C$14:$O$14,0)))*IF('Input|Step changes'!$E20="$millions",1000000,IF('Input|Step changes'!$E20="$000",1000,1))/IF($E56="$millions",1000000,IF($E56="$000",1000,1)) -> 0 | L56: ='Input|Step changes'!L20*IF('Input|Step changes'!$F20="nominal",LOOKUP($F56,Nominal_to_Real,'Input|Rate of change'!P$27:P$32),INDEX('Input|Rate of change'!$C$14:$O$22,MATCH('Input|Step changes'!$F20,'Input|Rate of change'!$C$14:$C$22,0),MATCH('Calc|Opex forecast'!$F56,'Input|Rate of change'!$C$14:$O$14,0)))*IF('Input|Step changes'!$E20="$millions",1000000,IF('Input|Step changes'!$E20="$000",1000,1))/IF($E56="$millions",1000000,IF($E56="$000",1000,1)) -> 0 | M56: ='Input|Step changes'!M20*IF('Input|Step changes'!$F20="nominal",LOOKUP($F56,Nominal_to_Real,'Input|Rate of change'!Q$27:Q$32),INDEX('Input|Rate of change'!$C$14:$O$22,MATCH('Input|Step changes'!$F20,'Input|Rate of change'!$C$14:$C$22,0),MATCH('Calc|Opex forecast'!$F56,'Input|Rate of change'!$C$14:$O$14,0)))*IF('Input|Step changes'!$E20="$millions",1000000,IF('Input|Step changes'!$E20="$000",1000,1))/IF($E56="$millions",1000000,IF($E56="$000",1000,1)) -> 0 | N56: ='Input|Step changes'!N20*IF('Input|Step changes'!$F20="nominal",LOOKUP($F56,Nominal_to_Real,'Input|Rate of change'!R$27:R$32),INDEX('Input|Rate of change'!$C$14:$O$22,MATCH('Input|Step changes'!$F20,'Input|Rate of change'!$C$14:$C$22,0),MATCH('Calc|Opex forecast'!$F56,'Input|Rate of change'!$C$14:$O$14,0)))*IF('Input|Step changes'!$E20="$millions",1000000,IF('Input|Step changes'!$E20="$000",1000,1))/IF($E56="$millions",1000000,IF($E56="$000",1000,1)) -> 0 | O56: ='Input|Step changes'!O20*IF('Input|Step changes'!$F20="nominal",LOOKUP($F56,Nominal_to_Real,'Input|Rate of change'!S$27:S$32),INDEX('Input|Rate of change'!$C$14:$O$22,MATCH('Input|Step changes'!$F20,'Input|Rate of change'!$C$14:$C$22,0),MATCH('Calc|Opex forecast'!$F56,'Input|Rate of change'!$C$14:$O$14,0)))*IF('Input|Step changes'!$E20="$millions",1000000,IF('Input|Step changes'!$E20="$000",1000,1))/IF($E56="$millions",1000000,IF($E56="$000",1000,1)) -> 0 | P56: ='Input|Step changes'!P20*IF('Input|Step changes'!$F20="nominal",LOOKUP($F56,Nominal_to_Real,'Input|Rate of change'!T$27:T$32),INDEX('Input|Rate of change'!$C$14:$O$22,MATCH('Input|Step changes'!$F20,'Input|Rate of change'!$C$14:$C$22,0),MATCH('Calc|Opex forecast'!$F56,'Input|Rate of change'!$C$14:$O$14,0)))*IF('Input|Step changes'!$E20="$millions",1000000,IF('Input|Step changes'!$E20="$000",1000,1))/IF($E56="$millions",1000000,IF($E56="$000",1000,1)) -> 0 | Q56: ='Input|Step changes'!Q20*IF('Input|Step changes'!$F20="nominal",LOOKUP($F56,Nominal_to_Real,'Input|Rate of change'!U$27:U$32),INDEX('Input|Rate of change'!$C$14:$O$22,MATCH('Input|Step changes'!$F20,'Input|Rate of change'!$C$14:$C$22,0),MATCH('Calc|Opex forecast'!$F56,'Input|Rate of change'!$C$14:$O$14,0)))*IF('Input|Step changes'!$E20="$millions",1000000,IF('Input|Step changes'!$E20="$000",1000,1))/IF($E56="$millions",1000000,IF($E56="$000",1000,1)) -> 0 | R56: ='Input|Step changes'!R20*IF('Input|Step changes'!$F20="nominal",LOOKUP($F56,Nominal_to_Real,'Input|Rate of change'!V$27:V$32),INDEX('Input|Rate of change'!$C$14:$O$22,MATCH('Input|Step changes'!$F20,'Input|Rate of change'!$C$14:$C$22,0),MATCH('Calc|Opex forecast'!$F56,'Input|Rate of change'!$C$14:$O$14,0)))*IF('Input|Step changes'!$E20="$millions",1000000,IF('Input|Step changes'!$E20="$000",1000,1))/IF($E56="$millions",1000000,IF($E56="$000",1000,1)) -> 0 | S56: ='Input|Step changes'!S20*IF('Input|Step changes'!$F20="nominal",LOOKUP($F56,Nominal_to_Real,'Input|Rate of change'!W$27:W$32),INDEX('Input|Rate of change'!$C$14:$O$22,MATCH('Input|Step changes'!$F20,'Input|Rate of change'!$C$14:$C$22,0),MATCH('Calc|Opex forecast'!$F56,'Input|Rate of change'!$C$14:$O$14,0)))*IF('Input|Step changes'!$E20="$millions",1000000,IF('Input|Step changes'!$E20="$000",1000,1))/IF($E56="$millions",1000000,IF($E56="$000",1000,1)) -> 0
C57: ='Input|Step changes'!C21 -> 0 | D57: Calculated | E57: $millions | F57: 2015 | J57: ='Input|Step changes'!J21*IF('Input|Step changes'!$F21="nominal",LOOKUP($F57,Nominal_to_Real,'Input|Rate of change'!N$27:N$32),INDEX('Input|Rate of change'!$C$14:$O$22,MATCH('Input|Step changes'!$F21,'Input|Rate of change'!$C$14:$C$22,0),MATCH('Calc|Opex forecast'!$F57,'Input|Rate of change'!$C$14:$O$14,0)))*IF('Input|Step changes'!$E21="$millions",1000000,IF('Input|Step changes'!$E21="$000",1000,1))/IF($E57="$millions",1000000,IF($E57="$000",1000,1)) -> 0 | K57: ='Input|Step changes'!K21*IF('Input|Step changes'!$F21="nominal",LOOKUP($F57,Nominal_to_Real,'Input|Rate of change'!O$27:O$32),INDEX('Input|Rate of change'!$C$14:$O$22,MATCH('Input|Step changes'!$F21,'Input|Rate of change'!$C$14:$C$22,0),MATCH('Calc|Opex forecast'!$F57,'Input|Rate of change'!$C$14:$O$14,0)))*IF('Input|Step changes'!$E21="$millions",1000000,IF('Input|Step changes'!$E21="$000",1000,1))/IF($E57="$millions",1000000,IF($E57="$000",1000,1)) -> 0 | L57: ='Input|Step changes'!L21*IF('Input|Step changes'!$F21="nominal",LOOKUP($F57,Nominal_to_Real,'Input|Rate of change'!P$27:P$32),INDEX('Input|Rate of change'!$C$14:$O$22,MATCH('Input|Step changes'!$F21,'Input|Rate of change'!$C$14:$C$22,0),MATCH('Calc|Opex forecast'!$F57,'Input|Rate of change'!$C$14:$O$14,0)))*IF('Input|Step changes'!$E21="$millions",1000000,IF('Input|Step changes'!$E21="$000",1000,1))/IF($E57="$millions",1000000,IF($E57="$000",1000,1)) -> 0 | M57: ='Input|Step changes'!M21*IF('Input|Step changes'!$F21="nominal",LOOKUP($F57,Nominal_to_Real,'Input|Rate of change'!Q$27:Q$32),INDEX('Input|Rate of change'!$C$14:$O$22,MATCH('Input|Step changes'!$F21,'Input|Rate of change'!$C$14:$C$22,0),MATCH('Calc|Opex forecast'!$F57,'Input|Rate of change'!$C$14:$O$14,0)))*IF('Input|Step changes'!$E21="$millions",1000000,IF('Input|Step changes'!$E21="$000",1000,1))/IF($E57="$millions",1000000,IF($E57="$000",1000,1)) -> 0 | N57: ='Input|Step changes'!N21*IF('Input|Step changes'!$F21="nominal",LOOKUP($F57,Nominal_to_Real,'Input|Rate of change'!R$27:R$32),INDEX('Input|Rate of change'!$C$14:$O$22,MATCH('Input|Step changes'!$F21,'Input|Rate of change'!$C$14:$C$22,0),MATCH('Calc|Opex forecast'!$F57,'Input|Rate of change'!$C$14:$O$14,0)))*IF('Input|Step changes'!$E21="$millions",1000000,IF('Input|Step changes'!$E21="$000",1000,1))/IF($E57="$millions",1000000,IF($E57="$000",1000,1)) -> 0 | O57: ='Input|Step changes'!O21*IF('Input|Step changes'!$F21="nominal",LOOKUP($F57,Nominal_to_Real,'Input|Rate of change'!S$27:S$32),INDEX('Input|Rate of change'!$C$14:$O$22,MATCH('Input|Step changes'!$F21,'Input|Rate of change'!$C$14:$C$22,0),MATCH('Calc|Opex forecast'!$F57,'Input|Rate of change'!$C$14:$O$14,0)))*IF('Input|Step changes'!$E21="$millions",1000000,IF('Input|Step changes'!$E21="$000",1000,1))/IF($E57="$millions",1000000,IF($E57="$000",1000,1)) -> 0 | P57: ='Input|Step changes'!P21*IF('Input|Step changes'!$F21="nominal",LOOKUP($F57,Nominal_to_Real,'Input|Rate of change'!T$27:T$32),INDEX('Input|Rate of change'!$C$14:$O$22,MATCH('Input|Step changes'!$F21,'Input|Rate of change'!$C$14:$C$22,0),MATCH('Calc|Opex forecast'!$F57,'Input|Rate of change'!$C$14:$O$14,0)))*IF('Input|Step changes'!$E21="$millions",1000000,IF('Input|Step changes'!$E21="$000",1000,1))/IF($E57="$millions",1000000,IF($E57="$000",1000,1)) -> 0 | Q57: ='Input|Step changes'!Q21*IF('Input|Step changes'!$F21="nominal",LOOKUP($F57,Nominal_to_Real,'Input|Rate of change'!U$27:U$32),INDEX('Input|Rate of change'!$C$14:$O$22,MATCH('Input|Step changes'!$F21,'Input|Rate of change'!$C$14:$C$22,0),MATCH('Calc|Opex forecast'!$F57,'Input|Rate of change'!$C$14:$O$14,0)))*IF('Input|Step changes'!$E21="$millions",1000000,IF('Input|Step changes'!$E21="$000",1000,1))/IF($E57="$millions",1000000,IF($E57="$000",1000,1)) -> 0 | R57: ='Input|Step changes'!R21*IF('Input|Step changes'!$F21="nominal",LOOKUP($F57,Nominal_to_Real,'Input|Rate of change'!V$27:V$32),INDEX('Input|Rate of change'!$C$14:$O$22,MATCH('Input|Step changes'!$F21,'Input|Rate of change'!$C$14:$C$22,0),MATCH('Calc|Opex forecast'!$F57,'Input|Rate of change'!$C$14:$O$14,0)))*IF('Input|Step changes'!$E21="$millions",1000000,IF('Input|Step changes'!$E21="$000",1000,1))/IF($E57="$millions",1000000,IF($E57="$000",1000,1)) -> 0 | S57: ='Input|Step changes'!S21*IF('Input|Step changes'!$F21="nominal",LOOKUP($F57,Nominal_to_Real,'Input|Rate of change'!W$27:W$32),INDEX('Input|Rate of change'!$C$14:$O$22,MATCH('Input|Step changes'!$F21,'Input|Rate of change'!$C$14:$C$22,0),MATCH('Calc|Opex forecast'!$F57,'Input|Rate of change'!$C$14:$O$14,0)))*IF('Input|Step changes'!$E21="$millions",1000000,IF('Input|Step changes'!$E21="$000",1000,1))/IF($E57="$millions",1000000,IF($E57="$000",1000,1)) -> 0
C58: ='Input|Step changes'!C22 -> 0 | D58: Calculated | E58: $millions | F58: 2015 | J58: ='Input|Step changes'!J22*IF('Input|Step changes'!$F22="nominal",LOOKUP($F58,Nominal_to_Real,'Input|Rate of change'!N$27:N$32),INDEX('Input|Rate of change'!$C$14:$O$22,MATCH('Input|Step changes'!$F22,'Input|Rate of change'!$C$14:$C$22,0),MATCH('Calc|Opex forecast'!$F58,'Input|Rate of change'!$C$14:$O$14,0)))*IF('Input|Step changes'!$E22="$millions",1000000,IF('Input|Step changes'!$E22="$000",1000,1))/IF($E58="$millions",1000000,IF($E58="$000",1000,1)) -> 0 | K58: ='Input|Step changes'!K22*IF('Input|Step changes'!$F22="nominal",LOOKUP($F58,Nominal_to_Real,'Input|Rate of change'!O$27:O$32),INDEX('Input|Rate of change'!$C$14:$O$22,MATCH('Input|Step changes'!$F22,'Input|Rate of change'!$C$14:$C$22,0),MATCH('Calc|Opex forecast'!$F58,'Input|Rate of change'!$C$14:$O$14,0)))*IF('Input|Step changes'!$E22="$millions",1000000,IF('Input|Step changes'!$E22="$000",1000,1))/IF($E58="$millions",1000000,IF($E58="$000",1000,1)) -> 0 | L58: ='Input|Step changes'!L22*IF('Input|Step changes'!$F22="nominal",LOOKUP($F58,Nominal_to_Real,'Input|Rate of change'!P$27:P$32),INDEX('Input|Rate of change'!$C$14:$O$22,MATCH('Input|Step changes'!$F22,'Input|Rate of change'!$C$14:$C$22,0),MATCH('Calc|Opex forecast'!$F58,'Input|Rate of change'!$C$14:$O$14,0)))*IF('Input|Step changes'!$E22="$millions",1000000,IF('Input|Step changes'!$E22="$000",1000,1))/IF($E58="$millions",1000000,IF($E58="$000",1000,1)) -> 0 | M58: ='Input|Step changes'!M22*IF('Input|Step changes'!$F22="nominal",LOOKUP($F58,Nominal_to_Real,'Input|Rate of change'!Q$27:Q$32),INDEX('Input|Rate of change'!$C$14:$O$22,MATCH('Input|Step changes'!$F22,'Input|Rate of change'!$C$14:$C$22,0),MATCH('Calc|Opex forecast'!$F58,'Input|Rate of change'!$C$14:$O$14,0)))*IF('Input|Step changes'!$E22="$millions",1000000,IF('Input|Step changes'!$E22="$000",1000,1))/IF($E58="$millions",1000000,IF($E58="$000",1000,1)) -> 0 | N58: ='Input|Step changes'!N22*IF('Input|Step changes'!$F22="nominal",LOOKUP($F58,Nominal_to_Real,'Input|Rate of change'!R$27:R$32),INDEX('Input|Rate of change'!$C$14:$O$22,MATCH('Input|Step changes'!$F22,'Input|Rate of change'!$C$14:$C$22,0),MATCH('Calc|Opex forecast'!$F58,'Input|Rate of change'!$C$14:$O$14,0)))*IF('Input|Step changes'!$E22="$millions",1000000,IF('Input|Step changes'!$E22="$000",1000,1))/IF($E58="$millions",1000000,IF($E58="$000",1000,1)) -> 0 | O58: ='Input|Step changes'!O22*IF('Input|Step changes'!$F22="nominal",LOOKUP($F58,Nominal_to_Real,'Input|Rate of change'!S$27:S$32),INDEX('Input|Rate of change'!$C$14:$O$22,MATCH('Input|Step changes'!$F22,'Input|Rate of change'!$C$14:$C$22,0),MATCH('Calc|Opex forecast'!$F58,'Input|Rate of change'!$C$14:$O$14,0)))*IF('Input|Step changes'!$E22="$millions",1000000,IF('Input|Step changes'!$E22="$000",1000,1))/IF($E58="$millions",1000000,IF($E58="$000",1000,1)) -> 0 | P58: ='Input|Step changes'!P22*IF('Input|Step changes'!$F22="nominal",LOOKUP($F58,Nominal_to_Real,'Input|Rate of change'!T$27:T$32),INDEX('Input|Rate of change'!$C$14:$O$22,MATCH('Input|Step changes'!$F22,'Input|Rate of change'!$C$14:$C$22,0),MATCH('Calc|Opex forecast'!$F58,'Input|Rate of change'!$C$14:$O$14,0)))*IF('Input|Step changes'!$E22="$millions",1000000,IF('Input|Step changes'!$E22="$000",1000,1))/IF($E58="$millions",1000000,IF($E58="$000",1000,1)) -> 0 | Q58: ='Input|Step changes'!Q22*IF('Input|Step changes'!$F22="nominal",LOOKUP($F58,Nominal_to_Real,'Input|Rate of change'!U$27:U$32),INDEX('Input|Rate of change'!$C$14:$O$22,MATCH('Input|Step changes'!$F22,'Input|Rate of change'!$C$14:$C$22,0),MATCH('Calc|Opex forecast'!$F58,'Input|Rate of change'!$C$14:$O$14,0)))*IF('Input|Step changes'!$E22="$millions",1000000,IF('Input|Step changes'!$E22="$000",1000,1))/IF($E58="$millions",1000000,IF($E58="$000",1000,1)) -> 0 | R58: ='Input|Step changes'!R22*IF('Input|Step changes'!$F22="nominal",LOOKUP($F58,Nominal_to_Real,'Input|Rate of change'!V$27:V$32),INDEX('Input|Rate of change'!$C$14:$O$22,MATCH('Input|Step changes'!$F22,'Input|Rate of change'!$C$14:$C$22,0),MATCH('Calc|Opex forecast'!$F58,'Input|Rate of change'!$C$14:$O$14,0)))*IF('Input|Step changes'!$E22="$millions",1000000,IF('Input|Step changes'!$E22="$000",1000,1))/IF($E58="$millions",1000000,IF($E58="$000",1000,1)) -> 0 | S58: ='Input|Step changes'!S22*IF('Input|Step changes'!$F22="nominal",LOOKUP($F58,Nominal_to_Real,'Input|Rate of change'!W$27:W$32),INDEX('Input|Rate of change'!$C$14:$O$22,MATCH('Input|Step changes'!$F22,'Input|Rate of change'!$C$14:$C$22,0),MATCH('Calc|Opex forecast'!$F58,'Input|Rate of change'!$C$14:$O$14,0)))*IF('Input|Step changes'!$E22="$millions",1000000,IF('Input|Step changes'!$E22="$000",1000,1))/IF($E58="$millions",1000000,IF($E58="$000",1000,1)) -> 0
C59: ='Input|Step changes'!C23 -> 0 | D59: Calculated | E59: $millions | F59: 2015 | J59: ='Input|Step changes'!J23*IF('Input|Step changes'!$F23="nominal",LOOKUP($F59,Nominal_to_Real,'Input|Rate of change'!N$27:N$32),INDEX('Input|Rate of change'!$C$14:$O$22,MATCH('Input|Step changes'!$F23,'Input|Rate of change'!$C$14:$C$22,0),MATCH('Calc|Opex forecast'!$F59,'Input|Rate of change'!$C$14:$O$14,0)))*IF('Input|Step changes'!$E23="$millions",1000000,IF('Input|Step changes'!$E23="$000",1000,1))/IF($E59="$millions",1000000,IF($E59="$000",1000,1)) -> 0 | K59: ='Input|Step changes'!K23*IF('Input|Step changes'!$F23="nominal",LOOKUP($F59,Nominal_to_Real,'Input|Rate of change'!O$27:O$32),INDEX('Input|Rate of change'!$C$14:$O$22,MATCH('Input|Step changes'!$F23,'Input|Rate of change'!$C$14:$C$22,0),MATCH('Calc|Opex forecast'!$F59,'Input|Rate of change'!$C$14:$O$14,0)))*IF('Input|Step changes'!$E23="$millions",1000000,IF('Input|Step changes'!$E23="$000",1000,1))/IF($E59="$millions",1000000,IF($E59="$000",1000,1)) -> 0 | L59: ='Input|Step changes'!L23*IF('Input|Step changes'!$F23="nominal",LOOKUP($F59,Nominal_to_Real,'Input|Rate of change'!P$27:P$32),INDEX('Input|Rate of change'!$C$14:$O$22,MATCH('Input|Step changes'!$F23,'Input|Rate of change'!$C$14:$C$22,0),MATCH('Calc|Opex forecast'!$F59,'Input|Rate of change'!$C$14:$O$14,0)))*IF('Input|Step changes'!$E23="$millions",1000000,IF('Input|Step changes'!$E23="$000",1000,1))/IF($E59="$millions",1000000,IF($E59="$000",1000,1)) -> 0 | M59: ='Input|Step changes'!M23*IF('Input|Step changes'!$F23="nominal",LOOKUP($F59,Nominal_to_Real,'Input|Rate of change'!Q$27:Q$32),INDEX('Input|Rate of change'!$C$14:$O$22,MATCH('Input|Step changes'!$F23,'Input|Rate of change'!$C$14:$C$22,0),MATCH('Calc|Opex forecast'!$F59,'Input|Rate of change'!$C$14:$O$14,0)))*IF('Input|Step changes'!$E23="$millions",1000000,IF('Input|Step changes'!$E23="$000",1000,1))/IF($E59="$millions",1000000,IF($E59="$000",1000,1)) -> 0 | N59: ='Input|Step changes'!N23*IF('Input|Step changes'!$F23="nominal",LOOKUP($F59,Nominal_to_Real,'Input|Rate of change'!R$27:R$32),INDEX('Input|Rate of change'!$C$14:$O$22,MATCH('Input|Step changes'!$F23,'Input|Rate of change'!$C$14:$C$22,0),MATCH('Calc|Opex forecast'!$F59,'Input|Rate of change'!$C$14:$O$14,0)))*IF('Input|Step changes'!$E23="$millions",1000000,IF('Input|Step changes'!$E23="$000",1000,1))/IF($E59="$millions",1000000,IF($E59="$000",1000,1)) -> 0 | O59: ='Input|Step changes'!O23*IF('Input|Step changes'!$F23="nominal",LOOKUP($F59,Nominal_to_Real,'Input|Rate of change'!S$27:S$32),INDEX('Input|Rate of change'!$C$14:$O$22,MATCH('Input|Step changes'!$F23,'Input|Rate of change'!$C$14:$C$22,0),MATCH('Calc|Opex forecast'!$F59,'Input|Rate of change'!$C$14:$O$14,0)))*IF('Input|Step changes'!$E23="$millions",1000000,IF('Input|Step changes'!$E23="$000",1000,1))/IF($E59="$millions",1000000,IF($E59="$000",1000,1)) -> 0 | P59: ='Input|Step changes'!P23*IF('Input|Step changes'!$F23="nominal",LOOKUP($F59,Nominal_to_Real,'Input|Rate of change'!T$27:T$32),INDEX('Input|Rate of change'!$C$14:$O$22,MATCH('Input|Step changes'!$F23,'Input|Rate of change'!$C$14:$C$22,0),MATCH('Calc|Opex forecast'!$F59,'Input|Rate of change'!$C$14:$O$14,0)))*IF('Input|Step changes'!$E23="$millions",1000000,IF('Input|Step changes'!$E23="$000",1000,1))/IF($E59="$millions",1000000,IF($E59="$000",1000,1)) -> 0 | Q59: ='Input|Step changes'!Q23*IF('Input|Step changes'!$F23="nominal",LOOKUP($F59,Nominal_to_Real,'Input|Rate of change'!U$27:U$32),INDEX('Input|Rate of change'!$C$14:$O$22,MATCH('Input|Step changes'!$F23,'Input|Rate of change'!$C$14:$C$22,0),MATCH('Calc|Opex forecast'!$F59,'Input|Rate of change'!$C$14:$O$14,0)))*IF('Input|Step changes'!$E23="$millions",1000000,IF('Input|Step changes'!$E23="$000",1000,1))/IF($E59="$millions",1000000,IF($E59="$000",1000,1)) -> 0 | R59: ='Input|Step changes'!R23*IF('Input|Step changes'!$F23="nominal",LOOKUP($F59,Nominal_to_Real,'Input|Rate of change'!V$27:V$32),INDEX('Input|Rate of change'!$C$14:$O$22,MATCH('Input|Step changes'!$F23,'Input|Rate of change'!$C$14:$C$22,0),MATCH('Calc|Opex forecast'!$F59,'Input|Rate of change'!$C$14:$O$14,0)))*IF('Input|Step changes'!$E23="$millions",1000000,IF('Input|Step changes'!$E23="$000",1000,1))/IF($E59="$millions",1000000,IF($E59="$000",1000,1)) -> 0 | S59: ='Input|Step changes'!S23*IF('Input|Step changes'!$F23="nominal",LOOKUP($F59,Nominal_to_Real,'Input|Rate of change'!W$27:W$32),INDEX('Input|Rate of change'!$C$14:$O$22,MATCH('Input|Step changes'!$F23,'Input|Rate of change'!$C$14:$C$22,0),MATCH('Calc|Opex forecast'!$F59,'Input|Rate of change'!$C$14:$O$14,0)))*IF('Input|Step changes'!$E23="$millions",1000000,IF('Input|Step changes'!$E23="$000",1000,1))/IF($E59="$millions",1000000,IF($E59="$000",1000,1)) -> 0
C61: Total step changes | D61: Calculated | E61: =$E$8 -> $millions | F61: =$F$8 -> 2015 | J61: =SUM(J48:J60) -> 0 | K61: =SUM(K48:K60) -> 0 | L61: 0 | M61: 0 | N61: 0 | O61: =SUM(O48:O60) -> 0 | P61: 0.35 | Q61: 0 | R61: 0 | S61: 0
B63: Calc | Total forecast operating expenditure
J65: =IF(RIGHT(J$4,2)>=RIGHT('Input|General'!$G$9,2),IF(RIGHT(J$4,2)<=RIGHT('Input|General'!$G$12,2),J$4,""),"") ->  | K65: =IF(RIGHT(K$4,2)>=RIGHT('Input|General'!$G$9,2),IF(RIGHT(K$4,2)<=RIGHT('Input|General'!$G$12,2),K$4,""),"") ->  | L65: =IF(RIGHT(L$4,2)>=RIGHT('Input|General'!$G$9,2),IF(RIGHT(L$4,2)<=RIGHT('Input|General'!$G$12,2),L$4,""),"") ->  | M65: =IF(RIGHT(M$4,2)>=RIGHT('Input|General'!$G$9,2),IF(RIGHT(M$4,2)<=RIGHT('Input|General'!$G$12,2),M$4,""),"") -> 2014 | N65: =IF(RIGHT(N$4,2)>=RIGHT('Input|General'!$G$9,2),IF(RIGHT(N$4,2)<=RIGHT('Input|General'!$G$12,2),N$4,""),"") -> 2015 | O65: =IF(RIGHT(O$4,2)>=RIGHT('Input|General'!$G$9,2),IF(RIGHT(O$4,2)<=RIGHT('Input|General'!$G$12,2),O$4,""),"") -> 2016 | P65: =IF(RIGHT(P$4,2)>=RIGHT('Input|General'!$G$9,2),IF(RIGHT(P$4,2)<=RIGHT('Input|General'!$G$12,2),P$4,""),"") -> 2017 | Q65: =IF(RIGHT(Q$4,2)>=RIGHT('Input|General'!$G$9,2),IF(RIGHT(Q$4,2)<=RIGHT('Input|General'!$G$12,2),Q$4,""),"") -> 2018 | R65: =IF(RIGHT(R$4,2)>=RIGHT('Input|General'!$G$9,2),IF(RIGHT(R$4,2)<=RIGHT('Input|General'!$G$12,2),R$4,""),"") -> 2019 | S65: =IF(RIGHT(S$4,2)>=RIGHT('Input|General'!$G$9,2),IF(RIGHT(S$4,2)<=RIGHT('Input|General'!$G$12,2),S$4,""),"") -> 2020
C67: Total forecast opex, excluding debt raising costs | D67: Calculated | E67: =$E$8 -> $millions | F67: =$F$8 -> 2015 | J67: =J13 -> 0 | K67: 0 | L67: 0 | M67: =M13 -> 20.22689235 | N67: =N19 -> 20.22689235 | O67: =IF(O$4>='Input|General'!$G$11,IF(O$4<='Input|General'!$G$12,IF(ISBLANK(O65),"",PRODUCT(1+$J42:O42)*SUM($J29:$S29)+O61),""),"") -> 11.78174834 | P67: =IF(P$4>='Input|General'!$G$11,IF(P$4<='Input|General'!$G$12,IF(ISBLANK(P65),"",PRODUCT(1+$J42:P42)*SUM($J29:$S29)+P61),""),"") -> 12.43509715 | Q67: =IF(Q$4>='Input|General'!$G$11,IF(Q$4<='Input|General'!$G$12,IF(ISBLANK(Q65),"",PRODUCT(1+$J42:Q42)*SUM($J29:$S29)+Q61),""),"") -> 12.44581638 | R67: =IF(R$4>='Input|General'!$G$11,IF(R$4<='Input|General'!$G$12,IF(ISBLANK(R65),"",PRODUCT(1+$J42:R42)*SUM($J29:$S29)+R61),""),"") -> 12.83547694 | S67: =IF(S$4>='Input|General'!$G$11,IF(S$4<='Input|General'!$G$12,IF(ISBLANK(S65),"",PRODUCT(1+$J42:S42)*SUM($J29:$S29)+S61),""),"") -> 13.21550618
C68: Total forecast opex, including debt raising costs | D68: Calculated | E68: =$E$8 -> $millions | F68: =$F$8 -> 2015 | O68: =O67+'Input|Step changes'!O29 -> 11.84356336 | P68: =P67+'Input|Step changes'!P29 -> 12.48903635 | Q68: =Q67+'Input|Step changes'!Q29 -> 12.49205804 | R68: =R67+'Input|Step changes'!R29 -> 12.87569922 | S68: =S67+'Input|Step changes'!S29 -> 13.24971086
B70: End

Sheet Output|Models
B1: =Index!$B$1 -> JEN opex model - Metering services | J1: Back to Index | L1: Key: | M1: Input | N1: External Link | O1: Internal Link | R1: Worksheet check: | S1: =IF(COUNTA($W$14:$W$471)=COUNTIF($W$14:$W$471,"OK"),"OK","Check") -> OK | U1: Overall Check: | V1: ='Check|List'!$S$1 -> Ok
B2: =Index!$C$13 -> Output | Models
D4: Source | E4: Unit | F4: Basis | J4: ='Input|General'!$G$8 -> 2011 | K4: =IF(OFFSET('Lookup|Tables'!$G$28:$G$43,MATCH('Input|General'!$G$8,'Lookup|Tables'!$G$28:$G$42,0)+1,0,1,1)<='Input|General'!$G$12,OFFSET('Lookup|Tables'!$G$28:$G$43,MATCH('Input|General'!$G$8,'Lookup|Tables'!$G$28:$G$42,0),0,1,1),"") -> 2012 | L4: =IF(OFFSET('Lookup|Tables'!$G$28:$G$43,MATCH('Input|General'!$G$8,'Lookup|Tables'!$G$28:$G$42,0)+1,0,1,1)<='Input|General'!$G$12,OFFSET('Lookup|Tables'!$G$28:$G$43,MATCH('Input|General'!$G$8,'Lookup|Tables'!$G$28:$G$42,0)+1,0,1,1),"") -> 2013 | M4: =IF(OFFSET('Lookup|Tables'!$G$28:$G$43,MATCH('Input|General'!$G$8,'Lookup|Tables'!$G$28:$G$42,0)+2,0,1,1)<='Input|General'!$G$12,OFFSET('Lookup|Tables'!$G$28:$G$43,MATCH('Input|General'!$G$8,'Lookup|Tables'!$G$28:$G$42,0)+2,0,1,1),"") -> 2014 | N4: =IF(OFFSET('Lookup|Tables'!$G$28:$G$43,MATCH('Input|General'!$G$8,'Lookup|Tables'!$G$28:$G$42,0)+3,0,1,1)<='Input|General'!$G$12,OFFSET('Lookup|Tables'!$G$28:$G$43,MATCH('Input|General'!$G$8,'Lookup|Tables'!$G$28:$G$42,0)+3,0,1,1),"") -> 2015 | O4: =IF(OFFSET('Lookup|Tables'!$G$28:$G$43,MATCH('Input|General'!$G$8,'Lookup|Tables'!$G$28:$G$42,0)+4,0,1,1)<='Input|General'!$G$12,OFFSET('Lookup|Tables'!$G$28:$G$43,MATCH('Input|General'!$G$8,'Lookup|Tables'!$G$28:$G$42,0)+4,0,1,1),"") -> 2016 | P4: =IF(OFFSET('Lookup|Tables'!$G$28:$G$43,MATCH('Input|General'!$G$8,'Lookup|Tables'!$G$28:$G$42,0)+5,0,1,1)<='Input|General'!$G$12,OFFSET('Lookup|Tables'!$G$28:$G$43,MATCH('Input|General'!$G$8,'Lookup|Tables'!$G$28:$G$42,0)+5,0,1,1),"") -> 2017 | Q4: =IF(OFFSET('Lookup|Tables'!$G$28:$G$43,MATCH('Input|General'!$G$8,'Lookup|Tables'!$G$28:$G$42,0)+6,0,1,1)<='Input|General'!$G$12,OFFSET('Lookup|Tables'!$G$28:$G$43,MATCH('Input|General'!$G$8,'Lookup|Tables'!$G$28:$G$42,0)+6,0,1,1),"") -> 2018 | R4: =IF(OFFSET('Lookup|Tables'!$G$28:$G$43,MATCH('Input|General'!$G$8,'Lookup|Tables'!$G$28:$G$42,0)+7,0,1,1)<='Input|General'!$G$12,OFFSET('Lookup|Tables'!$G$28:$G$43,MATCH('Input|General'!$G$8,'Lookup|Tables'!$G$28:$G$42,0)+7,0,1,1),"") -> 2019 | S4: =IF(OFFSET('Lookup|Tables'!$G$28:$G$43,MATCH('Input|General'!$G$8,'Lookup|Tables'!$G$28:$G$42,0)+8,0,1,1)<='Input|General'!$G$12,OFFSET('Lookup|Tables'!$G$28:$G$43,MATCH('Input|General'!$G$8,'Lookup|Tables'!$G$28:$G$42,0)+8,0,1,1),"") -> 2020
B8: Inputs for Post Tax Revenue Model | E8: $millions | F8: 2015 | J8: Note. The dollar base should be consistent with the post tax revenue model
C11: Operating expenditure | D11: Source | E11: Unit | F11: Basis | J11: =IF(RIGHT(J$4,2)>=RIGHT('Input|General'!$G$11,2),IF(RIGHT(J$4,2)<=RIGHT('Input|General'!$G$12,2),J$4,""),"") ->  | K11: =IF(RIGHT(K$4,2)>=RIGHT('Input|General'!$G$11,2),IF(RIGHT(K$4,2)<=RIGHT('Input|General'!$G$12,2),K$4,""),"") ->  | L11: =IF(RIGHT(L$4,2)>=RIGHT('Input|General'!$G$11,2),IF(RIGHT(L$4,2)<=RIGHT('Input|General'!$G$12,2),L$4,""),"") ->  | M11: =IF(RIGHT(M$4,2)>=RIGHT('Input|General'!$G$11,2),IF(RIGHT(M$4,2)<=RIGHT('Input|General'!$G$12,2),M$4,""),"") ->  | N11: =IF(RIGHT(N$4,2)>=RIGHT('Input|General'!$G$11,2),IF(RIGHT(N$4,2)<=RIGHT('Input|General'!$G$12,2),N$4,""),"") ->  | O11: =IF(RIGHT(O$4,2)>=RIGHT('Input|General'!$G$11,2),IF(RIGHT(O$4,2)<=RIGHT('Input|General'!$G$12,2),O$4,""),"") -> 2016 | P11: =IF(RIGHT(P$4,2)>=RIGHT('Input|General'!$G$11,2),IF(RIGHT(P$4,2)<=RIGHT('Input|General'!$G$12,2),P$4,""),"") -> 2017 | Q11: =IF(RIGHT(Q$4,2)>=RIGHT('Input|General'!$G$11,2),IF(RIGHT(Q$4,2)<=RIGHT('Input|General'!$G$12,2),Q$4,""),"") -> 2018 | R11: =IF(RIGHT(R$4,2)>=RIGHT('Input|General'!$G$11,2),IF(RIGHT(R$4,2)<=RIGHT('Input|General'!$G$12,2),R$4,""),"") -> 2019 | S11: =IF(RIGHT(S$4,2)>=RIGHT('Input|General'!$G$11,2),IF(RIGHT(S$4,2)<=RIGHT('Input|General'!$G$12,2),S$4,""),"") -> 2020 | U11: Notes
C12: Forecast operating expenditure (excl. DRC) | D12: Calc | Opex forecast | E12: =$E$8 -> $millions | F12: =$F$8 -> 2015 | J12: =IF(J11="",0,'Calc|Opex forecast'!J67*IF('Calc|Opex forecast'!$F$67="nominal",LOOKUP($F12,Nominal_to_Real,'Input|Rate of change'!P$27:P$32),INDEX('Input|Rate of change'!$C$14:$O$22,MATCH('Calc|Opex forecast'!$F$67,'Input|Rate of change'!$C$14:$C$22,0),MATCH('Output|Models'!$F12,'Input|Rate of change'!$C$14:$O$14,0)))*IF('Calc|Opex forecast'!$E$67="$millions",1000000,IF('Output|Models'!B47="$000",1000,1))/IF($E12="$millions",1000000,IF($E12="$000",1000,1))) -> 0 | K12: =IF(K11="",0,'Calc|Opex forecast'!K67*IF('Calc|Opex forecast'!$F$67="nominal",LOOKUP($F12,Nominal_to_Real,'Input|Rate of change'!Q$27:Q$32),INDEX('Input|Rate of change'!$C$14:$O$22,MATCH('Calc|Opex forecast'!$F$67,'Input|Rate of change'!$C$14:$C$22,0),MATCH('Output|Models'!$F12,'Input|Rate of change'!$C$14:$O$14,0)))*IF('Calc|Opex forecast'!$E$67="$millions",1000000,IF('Output|Models'!C47="$000",1000,1))/IF($E12="$millions",1000000,IF($E12="$000",1000,1))) -> 0 | L12: =IF(L11="",0,'Calc|Opex forecast'!L67*IF('Calc|Opex forecast'!$F$67="nominal",LOOKUP($F12,Nominal_to_Real,'Input|Rate of change'!R$27:R$32),INDEX('Input|Rate of change'!$C$14:$O$22,MATCH('Calc|Opex forecast'!$F$67,'Input|Rate of change'!$C$14:$C$22,0),MATCH('Output|Models'!$F12,'Input|Rate of change'!$C$14:$O$14,0)))*IF('Calc|Opex forecast'!$E$67="$millions",1000000,IF('Output|Models'!D47="$000",1000,1))/IF($E12="$millions",1000000,IF($E12="$000",1000,1))) -> 0 | M12: =IF(M11="",0,'Calc|Opex forecast'!M67*IF('Calc|Opex forecast'!$F$67="nominal",LOOKUP($F12,Nominal_to_Real,'Input|Rate of change'!S$27:S$32),INDEX('Input|Rate of change'!$C$14:$O$22,MATCH('Calc|Opex forecast'!$F$67,'Input|Rate of change'!$C$14:$C$22,0),MATCH('Output|Models'!$F12,'Input|Rate of change'!$C$14:$O$14,0)))*IF('Calc|Opex forecast'!$E$67="$millions",1000000,IF('Output|Models'!E47="$000",1000,1))/IF($E12="$millions",1000000,IF($E12="$000",1000,1))) -> 0 | N12: =IF(N11="",0,'Calc|Opex forecast'!N67*IF('Calc|Opex forecast'!$F$67="nominal",LOOKUP($F12,Nominal_to_Real,'Input|Rate of change'!T$27:T$32),INDEX('Input|Rate of change'!$C$14:$O$22,MATCH('Calc|Opex forecast'!$F$67,'Input|Rate of change'!$C$14:$C$22,0),MATCH('Output|Models'!$F12,'Input|Rate of change'!$C$14:$O$14,0)))*IF('Calc|Opex forecast'!$E$67="$millions",1000000,IF('Output|Models'!F47="$000",1000,1))/IF($E12="$millions",1000000,IF($E12="$000",1000,1))) -> 0 | O12: =IF(O11="",0,'Calc|Opex forecast'!O67*IF('Calc|Opex forecast'!$F$67="nominal",LOOKUP($F12,Nominal_to_Real,'Input|Rate of change'!U$27:U$32),INDEX('Input|Rate of change'!$C$14:$O$22,MATCH('Calc|Opex forecast'!$F$67,'Input|Rate of change'!$C$14:$C$22,0),MATCH('Output|Models'!$F12,'Input|Rate of change'!$C$14:$O$14,0)))*IF('Calc|Opex forecast'!$E$67="$millions",1000000,IF('Output|Models'!G47="$000",1000,1))/IF($E12="$millions",1000000,IF($E12="$000",1000,1))) -> 11.78174834 | P12: =IF(P11="",0,'Calc|Opex forecast'!P67*IF('Calc|Opex forecast'!$F$67="nominal",LOOKUP($F12,Nominal_to_Real,'Input|Rate of change'!V$27:V$32),INDEX('Input|Rate of change'!$C$14:$O$22,MATCH('Calc|Opex forecast'!$F$67,'Input|Rate of change'!$C$14:$C$22,0),MATCH('Output|Models'!$F12,'Input|Rate of change'!$C$14:$O$14,0)))*IF('Calc|Opex forecast'!$E$67="$millions",1000000,IF('Output|Models'!H47="$000",1000,1))/IF($E12="$millions",1000000,IF($E12="$000",1000,1))) -> 12.43509715 | Q12: =IF(Q11="",0,'Calc|Opex forecast'!Q67*IF('Calc|Opex forecast'!$F$67="nominal",LOOKUP($F12,Nominal_to_Real,'Input|Rate of change'!W$27:W$32),INDEX('Input|Rate of change'!$C$14:$O$22,MATCH('Calc|Opex forecast'!$F$67,'Input|Rate of change'!$C$14:$C$22,0),MATCH('Output|Models'!$F12,'Input|Rate of change'!$C$14:$O$14,0)))*IF('Calc|Opex forecast'!$E$67="$millions",1000000,IF('Output|Models'!I47="$000",1000,1))/IF($E12="$millions",1000000,IF($E12="$000",1000,1))) -> 12.44581638 | R12: =IF(R11="",0,'Calc|Opex forecast'!R67*IF('Calc|Opex forecast'!$F$67="nominal",LOOKUP($F12,Nominal_to_Real,'Input|Rate of change'!X$27:X$32),INDEX('Input|Rate of change'!$C$14:$O$22,MATCH('Calc|Opex forecast'!$F$67,'Input|Rate of change'!$C$14:$C$22,0),MATCH('Output|Models'!$F12,'Input|Rate of change'!$C$14:$O$14,0)))*IF('Calc|Opex forecast'!$E$67="$millions",1000000,IF('Output|Models'!J47="$000",1000,1))/IF($E12="$millions",1000000,IF($E12="$000",1000,1))) -> 12.83547694 | S12: =IF(S11="",0,'Calc|Opex forecast'!S67*IF('Calc|Opex forecast'!$F$67="nominal",LOOKUP($F12,Nominal_to_Real,'Input|Rate of change'!Y$27:Y$32),INDEX('Input|Rate of change'!$C$14:$O$22,MATCH('Calc|Opex forecast'!$F$67,'Input|Rate of change'!$C$14:$C$22,0),MATCH('Output|Models'!$F12,'Input|Rate of change'!$C$14:$O$14,0)))*IF('Calc|Opex forecast'!$E$67="$millions",1000000,IF('Output|Models'!K47="$000",1000,1))/IF($E12="$millions",1000000,IF($E12="$000",1000,1))) -> 13.21550618
S13: =SUM(O12:S12) -> 62.713645
B15: End

Sheet Lookup|Tables
B1: =Index!$B$1 -> JEN opex model - Metering services | J1: Back to Index | L1: Key: | M1: Input | N1: External Link | O1: Internal Link | U1: Overall Check: | V1: ='Check|List'!$S$1 -> Ok
B2: =Index!$C$14 -> Lookup | Tables
B7: Unit Denominations
C9: =B7 -> Unit Denominations | D9: Source | G9: Ref
C10: Dollars | D10: AER | G10: $dollars
C11: Thousands | D11: AER | G11: $000
C12: Millions | D12: AER | G12: $millions
C14: Percent | D14: AER | G14: Per cent
C15: Unit | D15: AER | G15: unit
C16: Number | D16: AER | G16: number
C17: Factor | D17: AER | G17: factor
C19: Actual | D19: AER | G19: Actual
C20: Estimate | D20: AER | G20: Estimate
B22: Years
C24: =B22 -> Years | D24: Source | G24: Ref
C25: nominal | D25: AER | G25: nominal
C26: =G26 -> 2008 | D26: AER | G26: 2008
C27: =G27 -> 2009 | D27: AER | G27: 2009
C28: 2010 | D28: AER | G28: 2010
C29: 2011 | D29: AER | G29: 2011
C30: 2012 | D30: AER | G30: 2012
C31: 2013 | D31: AER | G31: 2013
C32: 2014 | D32: AER | G32: 2014
C33: 2015 | D33: AER | G33: 2015
C34: 2016 | D34: AER | G34: 2016
C35: 2017 | D35: AER | G35: 2017
C36: 2018 | D36: AER | G36: 2018
C37: 2019 | D37: AER | G37: 2019
C38: 2020 | D38: AER | G38: 2020
C39: 2021 | D39: AER | G39: 2021
C40: 2022 | D40: AER | G40: 2022
C41: 2023 | D41: AER | G41: 2023
C42: 2024 | D42: AER | G42: 2024
B44: End

Sheet Check|List
B1: =Index!$B$1 -> JEN opex model - Metering services | J1: Back to Index | L1: Key: | M1: Input | N1: External Link | O1: Internal Link | R1: Overall Check: | S1: =IF(COUNTIF(G10:G15,"Check")=0,"Ok","Check") -> Ok
B2: =Index!$C$15 -> Check | List
B7: Check List
C9: Sheet | D9: Source | E9: Unit | G9: Status
C10: =Index!C7 -> Input | General | D10: =C10 -> Input | General | E10: Ok/Check | G10: ='Input|General'!S1 -> OK
C11: =Index!C9 -> Input | Reported opex | D11: =C11 -> Input | Reported opex | E11: Ok/Check | G11: ='Input|Reported opex'!S1 -> OK
C12: =Index!C10 -> Input | Rate of change | D12: Input | Rate of change | E12: Ok/Check | G12: ='Input|Rate of change'!T1 -> Ok
C13: =Index!C11 -> Input | Step changes | D13: Input | Step changes | E13: Ok/Check | G13: ='Input|Step changes'!S1 -> OK
C14: =Index!C12 -> Calc | Opex Forecast | D14: Calc | Opex Forecast | E14: Ok/Check | G14: ='Calc|Opex forecast'!S1 -> n/a
C15: =Index!C13 -> Output | Models | D15: Output | Models | E15: Ok/Check | G15: ='Output|Models'!S1 -> OK
B17: End
